Workbook

Sheet Cover
A2: Cap and Floor Financial Model 1 (CFFM1)
B3: Regime design model
C4: =MID(CELL("filename"),SEARCH("[",CELL("filename"))+1,SEARCH("]",CELL("filename"))-SEARCH("[",CELL("filename"))-1) -> VLCFFM1 (Viking Link FPA decision) FINAL.xlsm
C5: DISCLAIMER: In the event of any inconsistency between this model and the licence, licence conditions take precedence.
C6: For guidance on the use of the CFFM1, please refer to the CFFM1 Handbook (CFFM1H)
B8: Model key
E10: Sample | G10: Calculated value
E11: Sample | G11: Formula changes in cells to the right
E12: Sample | G12: Import from other sheet
E13: Sample | G13: Export to other sheet
E14: Sample | G14: Import from & export to other sheet
E15: Sample | G15: Initial input
E16: Sample | G16: Initial input for non-GB indexed portion (to be left empty if GB-indexed only)
E17: Sample | G17: Updated input
E18: Sample | G18: Notes and instructions
E19: Sample | G19: Cell intentionally blank
B21: Contents
E23: Cover | G23: Model key and content directory
E24: Version Control | G24: Version control and log of changes
E25: Inputs | G25: Input data
E26: Data Sources | G26: Sources of input data
E27: Pre Op RAV | G27: Pre-operational RAV balances
E28: Finance | G28: Interest during construction and transaction costs
E29: Op RAV | G29: Operational RAV balances, return on RAV and RAV depreciation
E30: Allowances Cap | G30: Cap allowances (excluding tax) and annuitisation
E31: Allowances Floor | G31: Floor allowances (excluding tax) and annuitisation
E32: Tax Deductions | G32: Tax calculations
E33: Tax Cap | G33: Tax allowances at cap and annuitisation
E34: Tax Floor | G34: Tax allowances at floor and annuitisation
E35: Cap Floor Levels | G35: Cap and Floor values
B37: Checks
E39: Depreciation | G39: ='Op Rav'!I27 -> TRUE
B41: End of sheet

Sheet Version Control
A1: Data Sources
B2: Version number | C2: File pathname | D2: Based on version | E2: Author or editor | F2: Date | G2: Description of changes | H2: Rationale for changes | I2: Location of changes | J2: Impact of changes on outputs | K2: Quality assurance performed? By? | L2: Comments on QA performed
B4: 1.1 | C4: link | D4: N/a | E4: Andrew Stone & Neill Aitken (NGV) | F4: 2017-01-31 | G4: N/a | H4: N/a | I4: N/a | J4: N/a | K4: Internal (ORE) and external (BDO) | L4: Comments reflected in version 1.1
B5: 2.1 | C5: link | D5: 1.1 | E5: Martin Namor | F5: 2019-03-20 | G5: CFFM split into CFFM1 (up to PCR) & CFFM2 (operations) | H5: Simplification and standardisation | I5: Throughout the model | J5: No impact | K5: Internal (ORE - Svitlana Voronkova) | L5: Comments reflected in version 2.2
B6: 2.2 | C6: link | D6: 2.1 | E6: Martin Namor | F6: 2019-09-05 | G6: Minor changes | H6: Reflecting comments from QA and tidying up | I6: Throughout the model | J6: No impact | K6: Internal (ORE - Svitlana Voronkova) | L6: Further comments reflected in version 2.2
B7: 2.3 | D7: 2.2 | E7: Martin Namor | F7: 2020-08-14 | G7: Minor changes to three formulas | H7: Allowing all construction costs to be transferred into the operational RAV; simplifying formulas used to calculate IDC | I7: Inputs sheet and Finance sheet | J7: Potential small impact if construction costs are incurred in the period after the period in which operations start | K7: Internal (ORE - Svitlana Voronkova) | L7: Comments reflected in version 2.3

Sheet Inputs
A1: Inputs | H1: Licence
E2: Parameter | G2: Units | H2: Terminology | I2: Constant | K2: Annual values
B4: Indexation, currency and base year price term
E6: GB indexed portion of interconnector | G6: choice % | I6: 1
E7: Non-GB indexed portion of interconnector | G7: % | I7: =100%-I6 -> 0
E9: Currency of cost inputs | G9: choice | I9: £
E11: Base year price term | G11: choice | I11: £m 19/20 prices
B13: Variables set after financial close
C15: Actual values
E17: Year commencing | K17: =$I$84 -> 2013-04-01 | L17: =+K18+1 -> 2014-04-01 | M17: =+L18+1 -> 2015-04-01 | N17: =+M18+1 -> 2016-04-01 | O17: =+N18+1 -> 2017-04-01 | P17: =+O18+1 -> 2018-04-01 | Q17: =+P18+1 -> 2019-04-01 | R17: =+Q18+1 -> 2020-04-01 | S17: =+R18+1 -> 2021-04-01 | T17: =+S18+1 -> 2022-04-01 | U17: =+T18+1 -> 2023-04-01 | V17: =+U18+1 -> 2024-04-01 | W17: =+V18+1 -> 2025-04-01 | X17: =+W18+1 -> 2026-04-01 | Y17: =+X18+1 -> 2027-04-01 | Z17: =+Y18+1 -> 2028-04-01 | AA17: =+Z18+1 -> 2029-04-01 | AB17: =+AA18+1 -> 2030-04-01 | AC17: =+AB18+1 -> 2031-04-01 | AD17: =+AC18+1 -> 2032-04-01 | AE17: =+AD18+1 -> 2033-04-01 | AF17: =+AE18+1 -> 2034-04-01 | AG17: =+AF18+1 -> 2035-04-01 | AH17: =+AG18+1 -> 2036-04-01 | AI17: =+AH18+1 -> 2037-04-01 | AJ17: =+AI18+1 -> 2038-04-01 | AK17: =+AJ18+1 -> 2039-04-01 | AL17: =+AK18+1 -> 2040-04-01 | AM17: =+AL18+1 -> 2041-04-01 | AN17: =+AM18+1 -> 2042-04-01 | AO17: =+AN18+1 -> 2043-04-01 | AP17: =+AO18+1 -> 2044-04-01 | AQ17: =+AP18+1 -> 2045-04-01 | AR17: =+AQ18+1 -> 2046-04-01 | AS17: =+AR18+1 -> 2047-04-01 | AT17: =+AS18+1 -> 2048-04-01 | AU17: =+AT18+1 -> 2049-04-01 | AV17: =+AU18+1 -> 2050-04-01 | AW17: =+AV18+1 -> 2051-04-01 | AX17: =+AW18+1 -> 2052-04-01
E18: Year ending | K18: =EOMONTH(K17,11) -> 2014-03-31 | L18: =DATE(YEAR(K18) + 1, MONTH(K18), DAY(K18)) -> 2015-03-31 | M18: =DATE(YEAR(L18) + 1, MONTH(L18), DAY(L18)) -> 2016-03-31 | N18: =DATE(YEAR(M18) + 1, MONTH(M18), DAY(M18)) -> 2017-03-31 | O18: =DATE(YEAR(N18) + 1, MONTH(N18), DAY(N18)) -> 2018-03-31 | P18: =DATE(YEAR(O18) + 1, MONTH(O18), DAY(O18)) -> 2019-03-31 | Q18: =DATE(YEAR(P18) + 1, MONTH(P18), DAY(P18)) -> 2020-03-31 | R18: =DATE(YEAR(Q18) + 1, MONTH(Q18), DAY(Q18)) -> 2021-03-31 | S18: =DATE(YEAR(R18) + 1, MONTH(R18), DAY(R18)) -> 2022-03-31 | T18: =DATE(YEAR(S18) + 1, MONTH(S18), DAY(S18)) -> 2023-03-31 | U18: =DATE(YEAR(T18) + 1, MONTH(T18), DAY(T18)) -> 2024-03-31 | V18: =DATE(YEAR(U18) + 1, MONTH(U18), DAY(U18)) -> 2025-03-31 | W18: =DATE(YEAR(V18) + 1, MONTH(V18), DAY(V18)) -> 2026-03-31 | X18: =DATE(YEAR(W18) + 1, MONTH(W18), DAY(W18)) -> 2027-03-31 | Y18: =DATE(YEAR(X18) + 1, MONTH(X18), DAY(X18)) -> 2028-03-31 | Z18: =DATE(YEAR(Y18) + 1, MONTH(Y18), DAY(Y18)) -> 2029-03-31 | AA18: =DATE(YEAR(Z18) + 1, MONTH(Z18), DAY(Z18)) -> 2030-03-31 | AB18: =DATE(YEAR(AA18) + 1, MONTH(AA18), DAY(AA18)) -> 2031-03-31 | AC18: =DATE(YEAR(AB18) + 1, MONTH(AB18), DAY(AB18)) -> 2032-03-31 | AD18: =DATE(YEAR(AC18) + 1, MONTH(AC18), DAY(AC18)) -> 2033-03-31 | AE18: =DATE(YEAR(AD18) + 1, MONTH(AD18), DAY(AD18)) -> 2034-03-31 | AF18: =DATE(YEAR(AE18) + 1, MONTH(AE18), DAY(AE18)) -> 2035-03-31 | AG18: =DATE(YEAR(AF18) + 1, MONTH(AF18), DAY(AF18)) -> 2036-03-31 | AH18: =DATE(YEAR(AG18) + 1, MONTH(AG18), DAY(AG18)) -> 2037-03-31 | AI18: =DATE(YEAR(AH18) + 1, MONTH(AH18), DAY(AH18)) -> 2038-03-31 | AJ18: =DATE(YEAR(AI18) + 1, MONTH(AI18), DAY(AI18)) -> 2039-03-31 | AK18: =DATE(YEAR(AJ18) + 1, MONTH(AJ18), DAY(AJ18)) -> 2040-03-31 | AL18: =DATE(YEAR(AK18) + 1, MONTH(AK18), DAY(AK18)) -> 2041-03-31 | AM18: =DATE(YEAR(AL18) + 1, MONTH(AL18), DAY(AL18)) -> 2042-03-31 | AN18: =DATE(YEAR(AM18) + 1, MONTH(AM18), DAY(AM18)) -> 2043-03-31 | AO18: =DATE(YEAR(AN18) + 1, MONTH(AN18), DAY(AN18)) -> 2044-03-31 | AP18: =DATE(YEAR(AO18) + 1, MONTH(AO18), DAY(AO18)) -> 2045-03-31 | AQ18: =DATE(YEAR(AP18) + 1, MONTH(AP18), DAY(AP18)) -> 2046-03-31 | AR18: =DATE(YEAR(AQ18) + 1, MONTH(AQ18), DAY(AQ18)) -> 2047-03-31 | AS18: =DATE(YEAR(AR18) + 1, MONTH(AR18), DAY(AR18)) -> 2048-03-31 | AT18: =DATE(YEAR(AS18) + 1, MONTH(AS18), DAY(AS18)) -> 2049-03-31 | AU18: =DATE(YEAR(AT18) + 1, MONTH(AT18), DAY(AT18)) -> 2050-03-31 | AV18: =DATE(YEAR(AU18) + 1, MONTH(AU18), DAY(AU18)) -> 2051-03-31 | AW18: =DATE(YEAR(AV18) + 1, MONTH(AV18), DAY(AV18)) -> 2052-03-31 | AX18: =DATE(YEAR(AW18) + 1, MONTH(AW18), DAY(AW18)) -> 2053-03-31
E20: Development costs | G20: =CONCATENATE($I$9,"m nominal prices") -> £m nominal prices | K20: 0 | L20: 1.04476513 | M20: 4.28656587 | N20: 6.9791947 | O20: 6.95986221 | P20: 2.29393096 | Q20: -0.82025805 | R20: 0 | S20: 0 | T20: 0 | U20: 0 | V20: 0 | W20: 0 | X20: 0 | Y20: 0 | Z20: 0 | AA20: 0 | AB20: 0 | AC20: 0 | AD20: 0 | AE20: 0 | AF20: 0 | AG20: 0 | AH20: 0 | AI20: 0 | AJ20: 0 | AK20: 0 | AL20: 0 | AM20: 0 | AN20: 0 | AO20: 0 | AP20: 0 | AQ20: 0 | AR20: 0 | AS20: 0 | AT20: 0 | AU20: 0 | AV20: 0 | AW20: 0 | AX20: 0
E21: Capex | G21: =CONCATENATE($I$9,"m nominal prices") -> £m nominal prices | K21: 0 | L21: 0 | M21: 0 | N21: 0 | O21: 0 | P21: 5.2279186 | Q21: 69.32087305 | R21: 166.74904 | S21: 251.3800351 | T21: 184.7754168 | U21: 76.04698584 | V21: 3.391085106 | W21: 0 | X21: 0 | Y21: 0 | Z21: 0 | AA21: 0 | AB21: 0 | AC21: 0 | AD21: 0 | AE21: 0 | AF21: 0 | AG21: 0 | AH21: 0 | AI21: 0 | AJ21: 0 | AK21: 0 | AL21: 0 | AM21: 0 | AN21: 0 | AO21: 0 | AP21: 0 | AQ21: 0 | AR21: 0 | AS21: 0 | AT21: 0 | AU21: 0 | AV21: 0 | AW21: 0 | AX21: 0
E22: Spares | G22: £m nominal prices | K22: 0 | L22: 0 | M22: 0 | N22: 0 | O22: 0 | P22: 0 | Q22: 1.362326499 | R22: 1.463752389 | S22: 2.776933773 | T22: 3.43631043 | U22: 0.01114358755 | V22: 0.03343076265 | W22: 0 | X22: 0 | Y22: 0 | Z22: 0 | AA22: 0 | AB22: 0 | AC22: 0 | AD22: 0 | AE22: 0 | AF22: 0 | AG22: 0 | AH22: 0 | AI22: 0 | AJ22: 0 | AK22: 0 | AL22: 0 | AM22: 0 | AN22: 0 | AO22: 0 | AP22: 0 | AQ22: 0 | AR22: 0 | AS22: 0 | AT22: 0 | AU22: 0 | AV22: 0 | AW22: 0 | AX22: 0
E24: Base year UK RPI inflation index value (CHAW) | G24: Jan 1987 = 100 | H24: UK RPI index 2019/20 | I24: 290.6416667
E28: 12 month average UK RPI inflation index value (CHAW) | G28: =G24 -> Jan 1987 = 100 | H28: UK RPI index t | K28: 251.7333333 | L28: 256.6666667 | M28: 259.4333333 | N28: 264.9916667 | O28: 274.9083333 | P28: 283.3083333 | Q28: 290.6416667 | R28: 295.2919333 | S28: 302.3789397 | T28: 311.5259027 | U28: 321.0274427 | V28: 330.5619577 | W28: =V28*(1+$I$103) -> 341.073828 | X28: =W28*(1+$I$103) -> 351.9199757 | Y28: 363.111031 | Z28: 374.6579617 | AA28: 386.5720849 | AB28: 398.8650772 | AC28: 411.5489867 | AD28: 424.6362445 | AE28: 438.139677 | AF28: 452.0725188 | AG28: 466.4484249 | AH28: 481.2814848 | AI28: 496.586236 | AJ28: 512.3776783 | AK28: 528.6712885 | AL28: 545.4830354 | AM28: 562.829396 | AN28: 580.7273707 | AO28: 599.1945011 | AP28: 618.2488863 | AQ28: 637.9092009 | AR28: 658.1947134 | AS28: 679.1253053 | AT28: 700.72149 | AU28: 723.0044334 | AV28: 745.9959744 | AW28: 769.7186464 | AX28: 794.1956993
E32: Indexation factor | H32: =IF(I6=100%,"CRPIt","PPPIt") -> CRPIt | K32: =IF($I$6=100%,(K28/$I$24),($I$6*(K28/$I$24)+$I$7*(K29/$I$25)/(K30/$I$26))) -> 0.866129541 | L32: =IF($I$6=100%,(L28/$I$24),($I$6*(L28/$I$24)+$I$7*(L29/$I$25)/(L30/$I$26))) -> 0.8831034779 | M32: =IF($I$6=100%,(M28/$I$24),($I$6*(M28/$I$24)+$I$7*(M29/$I$25)/(M30/$I$26))) -> 0.8926226453 | N32: =IF($I$6=100%,(N28/$I$24),($I$6*(N28/$I$24)+$I$7*(N29/$I$25)/(N30/$I$26))) -> 0.9117469966 | O32: 0.9458669037 | P32: 0.9747684721 | Q32: 1 | R32: 1.016 | S32: 1.040384 | T32: 1.071855616 | U32: 1.104547212 | V32: 1.137352264 | W32: 1.173520067 | X32: 1.210838005 | Y32: 1.249342653 | Z32: 1.28907175 | AA32: 1.330064231 | AB32: 1.372360274 | AC32: 1.41600133 | AD32: 1.461030173 | AE32: 1.507490932 | AF32: 1.555429144 | AG32: 1.604891791 | AH32: 1.65592735 | AI32: 1.708585839 | AJ32: 1.762918869 | AK32: 1.818979689 | AL32: 1.876823243 | AM32: 1.936506222 | AN32: 1.99808712 | AO32: 2.061626291 | AP32: 2.127186007 | AQ32: 2.194830522 | AR32: 2.264626132 | AS32: 2.336641243 | AT32: 2.410946435 | AU32: 2.487614531 | AV32: 2.566720673 | AW32: 2.648342391 | AX32: 2.732559679
E34: =E20 -> Development costs | G34: =$I$11 -> £m 19/20 prices | K34: =IF($I$9="£",K20/K$32,K20/K$32/K$30) -> 0 | L34: =IF($I$9="£",L20/L$32,L20/L$32/L$30) -> 1.183060826 | M34: =IF($I$9="£",M20/M$32,M20/M$32/M$30) -> 4.802215015 | N34: =IF($I$9="£",N20/N$32,N20/N$32/N$30) -> 7.654749318 | O34: 7.358183464 | P34: 2.35330853 | Q34: -0.82025805 | R34: 0 | S34: 0 | T34: 0 | U34: 0 | V34: 0 | W34: 0 | X34: 0 | Y34: 0 | Z34: 0 | AA34: 0 | AB34: 0 | AC34: 0 | AD34: 0 | AE34: 0 | AF34: 0 | AG34: 0 | AH34: 0 | AI34: 0 | AJ34: 0 | AK34: 0 | AL34: 0 | AM34: 0 | AN34: 0 | AO34: 0 | AP34: 0 | AQ34: 0 | AR34: 0 | AS34: 0 | AT34: 0 | AU34: 0 | AV34: 0 | AW34: 0 | AX34: 0
E35: =E21 -> Capex | G35: =$I$11 -> £m 19/20 prices | K35: =IF($I$9="£",K21/K$32,K21/K$32/K$30) -> 0 | L35: 0 | M35: 0 | N35: 0 | O35: 0 | P35: 5.363241375 | Q35: 69.32087305 | R35: 164.1230709 | S35: 241.6223578 | T35: 172.388346 | U35: 68.84901341 | V35: 2.981560957 | W35: 0 | X35: 0 | Y35: 0 | Z35: 0 | AA35: 0 | AB35: 0 | AC35: 0 | AD35: 0 | AE35: 0 | AF35: 0 | AG35: 0 | AH35: 0 | AI35: 0 | AJ35: 0 | AK35: 0 | AL35: 0 | AM35: 0 | AN35: 0 | AO35: 0 | AP35: 0 | AQ35: 0 | AR35: 0 | AS35: 0 | AT35: 0 | AU35: 0 | AV35: 0 | AW35: 0 | AX35: 0
E36: Spares | G36: £m 19/20 prices | K36: =IF($I$9="£",K22/K$32,K22/K$32/K$30) -> 0 | L36: 0 | M36: 0 | N36: 0 | O36: 0 | P36: 0 | Q36: 1.362326499 | R36: 1.44070117 | S36: 2.669143099 | T36: 3.205945259 | U36: 0.01008882864 | V36: 0.029393499 | W36: 0 | X36: 0 | Y36: 0 | Z36: 0 | AA36: 0 | AB36: 0 | AC36: 0 | AD36: 0 | AE36: 0 | AF36: 0 | AG36: 0 | AH36: 0 | AI36: 0 | AJ36: 0 | AK36: 0 | AL36: 0 | AM36: 0 | AN36: 0 | AO36: 0 | AP36: 0 | AQ36: 0 | AR36: 0 | AS36: 0 | AT36: 0 | AU36: 0 | AV36: 0 | AW36: 0 | AX36: 0
C38: Ex-ante allowances for the operational period
E40: Operational Year | K40: Year 1 | L40: Year 2 | M40: Year 3 | N40: Year 4 | O40: Year 5 | P40: Year 6 | Q40: Year 7 | R40: Year 8 | S40: Year 9 | T40: Year 10 | U40: Year 11 | V40: Year 12 | W40: Year 13 | X40: Year 14 | Y40: Year 15 | Z40: Year 16 | AA40: Year 17 | AB40: Year 18 | AC40: Year 19 | AD40: Year 20 | AE40: Year 21 | AF40: Year 22 | AG40: Year 23 | AH40: Year 24 | AI40: Year 25
E42: Replacement Capex | G42: £m 2018 prices | K42: 0 | L42: 0 | M42: 0 | N42: 0 | O42: 0 | P42: 0 | Q42: 0 | R42: 0 | S42: 0 | T42: 0 | U42: 0 | V42: 0 | W42: 0 | X42: 0 | Y42: 27.87543974 | Z42: 0 | AA42: 0 | AB42: 0 | AC42: 0 | AD42: 0 | AE42: 0 | AF42: 0 | AG42: 0 | AH42: 0 | AI42: 0
E43: Decommissioning baseline | G43: £m 2018 prices | K43: 0 | L43: 0 | M43: 0 | N43: 0 | O43: 0 | P43: 0 | Q43: 0 | R43: 0 | S43: 0 | T43: 0 | U43: 0 | V43: 0 | W43: 0 | X43: 0 | Y43: 0 | Z43: 0 | AA43: 0 | AB43: 0 | AC43: 0 | AD43: 0 | AE43: 0 | AF43: 0 | AG43: 0 | AH43: 0 | AI43: 83.43
E44: Controllable Opex | G44: £m 2018 prices | K44: 11.71 | L44: 11.71 | M44: 11.71 | N44: 11.71 | O44: 11.71 | P44: 11.71 | Q44: 11.71 | R44: 11.71 | S44: 11.71 | T44: 11.71 | U44: 11.71 | V44: 11.71 | W44: 11.71 | X44: 11.71 | Y44: 11.71 | Z44: 11.71 | AA44: 11.71 | AB44: 11.71 | AC44: 11.71 | AD44: 11.71 | AE44: 11.71 | AF44: 11.71 | AG44: 11.71 | AH44: 11.71 | AI44: 11.71
E45: Non-controllable Opex baseline | G45: £m 2018 prices | K45: 5.94 | L45: 5.94 | M45: 5.94 | N45: 5.94 | O45: 5.94 | P45: 5.94 | Q45: 5.94 | R45: 5.94 | S45: 5.94 | T45: 5.94 | U45: 5.94 | V45: 5.94 | W45: 5.94 | X45: 5.94 | Y45: 5.94 | Z45: 5.94 | AA45: 5.94 | AB45: 5.94 | AC45: 5.94 | AD45: 5.94 | AE45: 5.94 | AF45: 5.94 | AG45: 5.94 | AH45: 5.94 | AI45: 5.94
E47: =E24 -> Base year UK RPI inflation index value (CHAW) | G47: =G24 -> Jan 1987 = 100 | H47: =H24 -> UK RPI index 2019/20 | I47: =I24 -> 290.6416667
E48: =IF(E25="","",E25) ->  | G48: =IF(G25="","",G25) -> 
E49: =IF(E26="","",E26) -> 
E51: 2018 average UK RPI inflation index value (CHAW) | G51: =G24 -> Jan 1987 = 100 | I51: 281.5833333
G52: =IF(G25="","",G25) -> 
G53: =IF(G26="","",G26) -> 
E55: =IF(E30="","",E30) ->  | G55: =IF(G30="","",G30) ->  | H55: =IF(H30="","",H30) -> 
E57: Indexation conversion from 2018 to 2019/20 terms | I57: =IF($I$6=100%,(I51/$I$47),$I$6*(I51/$I$47)+$I$7*((I52/$I$48)/(I53/$I$49))) -> 0.9688333286
E59: =E42 -> Replacement Capex | G59: =$I$11 -> £m 19/20 prices | K59: =IF($I$9="£",K42/$I$57,K42/K$55/$I$57) -> 0 | L59: 0 | M59: 0 | N59: 0 | O59: 0 | P59: 0 | Q59: 0 | R59: 0 | S59: 0 | T59: 0 | U59: 0 | V59: 0 | W59: 0 | X59: 0 | Y59: 28.77217259 | Z59: 0 | AA59: 0 | AB59: 0 | AC59: 0 | AD59: 0 | AE59: 0 | AF59: 0 | AG59: 0 | AH59: 0 | AI59: 0
E60: =E43 -> Decommissioning baseline | G60: £m 19/20 prices | K60: =IF($I$9="£",K43/$I$57,K43/K$55/$I$57) -> 0 | L60: 0 | M60: 0 | N60: 0 | O60: 0 | P60: 0 | Q60: 0 | R60: 0 | S60: 0 | T60: 0 | U60: 0 | V60: 0 | W60: 0 | X60: 0 | Y60: 0 | Z60: 0 | AA60: 0 | AB60: 0 | AC60: 0 | AD60: 0 | AE60: 0 | AF60: 0 | AG60: 0 | AH60: 0 | AI60: 86.1138831
E61: Controllable Opex | G61: £m 19/20 prices | K61: =IF($I$9="£",K44/$I$57,K44/K$55/$I$57) -> 12.08670228 | L61: =IF($I$9="£",L44/$I$57,L44/L$55/$I$57) -> 12.08670228 | M61: 12.08670228 | N61: 12.08670228 | O61: 12.08670228 | P61: 12.08670228 | Q61: 12.08670228 | R61: 12.08670228 | S61: 12.08670228 | T61: 12.08670228 | U61: 12.08670228 | V61: 12.08670228 | W61: 12.08670228 | X61: 12.08670228 | Y61: 12.08670228 | Z61: 12.08670228 | AA61: 12.08670228 | AB61: 12.08670228 | AC61: 12.08670228 | AD61: 12.08670228 | AE61: 12.08670228 | AF61: 12.08670228 | AG61: 12.08670228 | AH61: 12.08670228 | AI61: 12.08670228
E62: Non-controllable Opex baseline | G62: £m 19/20 prices | K62: =IF($I$9="£",K45/$I$57,K45/K$55/$I$57) -> 6.131085528 | L62: 6.131085528 | M62: 6.131085528 | N62: 6.131085528 | O62: 6.131085528 | P62: 6.131085528 | Q62: 6.131085528 | R62: 6.131085528 | S62: 6.131085528 | T62: 6.131085528 | U62: 6.131085528 | V62: 6.131085528 | W62: 6.131085528 | X62: 6.131085528 | Y62: 6.131085528 | Z62: 6.131085528 | AA62: 6.131085528 | AB62: 6.131085528 | AC62: 6.131085528 | AD62: 6.131085528 | AE62: 6.131085528 | AF62: 6.131085528 | AG62: 6.131085528 | AH62: 6.131085528 | AI62: 6.131085528
B64: Variables set at financial close
C66: Finance
E68: Cap return rate | G68: real annual % | I68: 0.0823
E69: Floor return rate | G69: real annual % | I69: 0.0017
E70: Interest during construction (IDC) rate | G70: real annual % | I70: 0.0439
E71: Cost of debt (for tax) | G71: real annual % | I71: =I69 -> 0.0017
E73: Pre-operational notional gearing | G73: % | I73: 0.2332
E74: Operational notional gearing | G74: % | I74: 0.5
E76: Equity transaction costs | G76: % | I76: 0.05
E77: Debt transaction costs | G77: % | I77: 0.025
C79: Model operation
C80: Note: changes in these variables may require structural changes to the model.
E81: Year commencing | K81: =$I$84 -> 2013-04-01 | L81: =+K82+1 -> 2014-04-01 | M81: =+L82+1 -> 2015-04-01 | N81: =+M82+1 -> 2016-04-01 | O81: =+N82+1 -> 2017-04-01 | P81: =+O82+1 -> 2018-04-01 | Q81: =+P82+1 -> 2019-04-01 | R81: =+Q82+1 -> 2020-04-01 | S81: =+R82+1 -> 2021-04-01 | T81: =+S82+1 -> 2022-04-01 | U81: =+T82+1 -> 2023-04-01 | V81: =+U82+1 -> 2024-04-01 | W81: =+V82+1 -> 2025-04-01 | X81: =+W82+1 -> 2026-04-01 | Y81: =+X82+1 -> 2027-04-01 | Z81: =+Y82+1 -> 2028-04-01 | AA81: =+Z82+1 -> 2029-04-01 | AB81: =+AA82+1 -> 2030-04-01 | AC81: =+AB82+1 -> 2031-04-01 | AD81: =+AC82+1 -> 2032-04-01 | AE81: =+AD82+1 -> 2033-04-01 | AF81: =+AE82+1 -> 2034-04-01 | AG81: =+AF82+1 -> 2035-04-01 | AH81: =+AG82+1 -> 2036-04-01 | AI81: =+AH82+1 -> 2037-04-01 | AJ81: =+AI82+1 -> 2038-04-01 | AK81: =+AJ82+1 -> 2039-04-01 | AL81: =+AK82+1 -> 2040-04-01 | AM81: =+AL82+1 -> 2041-04-01 | AN81: =+AM82+1 -> 2042-04-01 | AO81: =+AN82+1 -> 2043-04-01 | AP81: =+AO82+1 -> 2044-04-01 | AQ81: =+AP82+1 -> 2045-04-01 | AR81: =+AQ82+1 -> 2046-04-01 | AS81: =+AR82+1 -> 2047-04-01 | AT81: =+AS82+1 -> 2048-04-01 | AU81: =+AT82+1 -> 2049-04-01 | AV81: =+AU82+1 -> 2050-04-01 | AW81: =+AV82+1 -> 2051-04-01 | AX81: =+AW82+1 -> 2052-04-01
E82: Year ending | K82: =EOMONTH(K81,11) -> 2014-03-31 | L82: =DATE(YEAR(K82) + 1, MONTH(K82), DAY(K82)) -> 2015-03-31 | M82: =DATE(YEAR(L82) + 1, MONTH(L82), DAY(L82)) -> 2016-03-31 | N82: =DATE(YEAR(M82) + 1, MONTH(M82), DAY(M82)) -> 2017-03-31 | O82: =DATE(YEAR(N82) + 1, MONTH(N82), DAY(N82)) -> 2018-03-31 | P82: =DATE(YEAR(O82) + 1, MONTH(O82), DAY(O82)) -> 2019-03-31 | Q82: =DATE(YEAR(P82) + 1, MONTH(P82), DAY(P82)) -> 2020-03-31 | R82: =DATE(YEAR(Q82) + 1, MONTH(Q82), DAY(Q82)) -> 2021-03-31 | S82: =DATE(YEAR(R82) + 1, MONTH(R82), DAY(R82)) -> 2022-03-31 | T82: =DATE(YEAR(S82) + 1, MONTH(S82), DAY(S82)) -> 2023-03-31 | U82: =DATE(YEAR(T82) + 1, MONTH(T82), DAY(T82)) -> 2024-03-31 | V82: =DATE(YEAR(U82) + 1, MONTH(U82), DAY(U82)) -> 2025-03-31 | W82: =DATE(YEAR(V82) + 1, MONTH(V82), DAY(V82)) -> 2026-03-31 | X82: =DATE(YEAR(W82) + 1, MONTH(W82), DAY(W82)) -> 2027-03-31 | Y82: =DATE(YEAR(X82) + 1, MONTH(X82), DAY(X82)) -> 2028-03-31 | Z82: =DATE(YEAR(Y82) + 1, MONTH(Y82), DAY(Y82)) -> 2029-03-31 | AA82: =DATE(YEAR(Z82) + 1, MONTH(Z82), DAY(Z82)) -> 2030-03-31 | AB82: =DATE(YEAR(AA82) + 1, MONTH(AA82), DAY(AA82)) -> 2031-03-31 | AC82: =DATE(YEAR(AB82) + 1, MONTH(AB82), DAY(AB82)) -> 2032-03-31 | AD82: =DATE(YEAR(AC82) + 1, MONTH(AC82), DAY(AC82)) -> 2033-03-31 | AE82: =DATE(YEAR(AD82) + 1, MONTH(AD82), DAY(AD82)) -> 2034-03-31 | AF82: =DATE(YEAR(AE82) + 1, MONTH(AE82), DAY(AE82)) -> 2035-03-31 | AG82: =DATE(YEAR(AF82) + 1, MONTH(AF82), DAY(AF82)) -> 2036-03-31 | AH82: =DATE(YEAR(AG82) + 1, MONTH(AG82), DAY(AG82)) -> 2037-03-31 | AI82: =DATE(YEAR(AH82) + 1, MONTH(AH82), DAY(AH82)) -> 2038-03-31 | AJ82: =DATE(YEAR(AI82) + 1, MONTH(AI82), DAY(AI82)) -> 2039-03-31 | AK82: =DATE(YEAR(AJ82) + 1, MONTH(AJ82), DAY(AJ82)) -> 2040-03-31 | AL82: =DATE(YEAR(AK82) + 1, MONTH(AK82), DAY(AK82)) -> 2041-03-31 | AM82: =DATE(YEAR(AL82) + 1, MONTH(AL82), DAY(AL82)) -> 2042-03-31 | AN82: =DATE(YEAR(AM82) + 1, MONTH(AM82), DAY(AM82)) -> 2043-03-31 | AO82: =DATE(YEAR(AN82) + 1, MONTH(AN82), DAY(AN82)) -> 2044-03-31 | AP82: =DATE(YEAR(AO82) + 1, MONTH(AO82), DAY(AO82)) -> 2045-03-31 | AQ82: =DATE(YEAR(AP82) + 1, MONTH(AP82), DAY(AP82)) -> 2046-03-31 | AR82: =DATE(YEAR(AQ82) + 1, MONTH(AQ82), DAY(AQ82)) -> 2047-03-31 | AS82: =DATE(YEAR(AR82) + 1, MONTH(AR82), DAY(AR82)) -> 2048-03-31 | AT82: =DATE(YEAR(AS82) + 1, MONTH(AS82), DAY(AS82)) -> 2049-03-31 | AU82: =DATE(YEAR(AT82) + 1, MONTH(AT82), DAY(AT82)) -> 2050-03-31 | AV82: =DATE(YEAR(AU82) + 1, MONTH(AU82), DAY(AU82)) -> 2051-03-31 | AW82: =DATE(YEAR(AV82) + 1, MONTH(AV82), DAY(AV82)) -> 2052-03-31 | AX82: =DATE(YEAR(AW82) + 1, MONTH(AW82), DAY(AW82)) -> 2053-03-31
E84: Model start date | G84: date | I84: 2013-04-01
E85: Regime start date | G85: date | I85: 2021-01-01
E86: End date for IDC | G86: date | I86: 2023-12-30
E87: Start of operations | G87: date | I87: 2023-12-31
E88: Regime end date | G88: date | I88: =DATE(YEAR($I$85)+I89,MONTH($I$85),DAY($I$85))-1 -> 2045-12-31
E89: Number of operational years | G89: full years | I89: 25
E91: Days in year | G91: days | K91: =K$82-K$81+1 -> 365 | L91: 365 | M91: =M$82-M$81+1 -> 366 | N91: =N$82-N$81+1 -> 365 | O91: 365 | P91: 365 | Q91: 366 | R91: 365 | S91: 365 | T91: 365 | U91: 366 | V91: 365 | W91: 365 | X91: 365 | Y91: 366 | Z91: 365 | AA91: 365 | AB91: 365 | AC91: 366 | AD91: 365 | AE91: 365 | AF91: 365 | AG91: 366 | AH91: 365 | AI91: 365 | AJ91: 365 | AK91: 366 | AL91: 365 | AM91: 365 | AN91: 365 | AO91: 366 | AP91: 365 | AQ91: 365 | AR91: 365 | AS91: 366 | AT91: 365 | AU91: 365 | AV91: 365 | AW91: 366 | AX91: 365
E92: IDC flag | G92: flag | K92: =IF($I$86>=K$82,1,IF($I$86>=K$81,($I$86-K$81+1)/K$91,0)) -> 1 | L92: 1 | M92: 1 | N92: 1 | O92: 1 | P92: 1 | Q92: 1 | R92: 1 | S92: 1 | T92: 1 | U92: 0.7486338798 | V92: 0 | W92: 0 | X92: 0 | Y92: 0 | Z92: 0 | AA92: 0 | AB92: 0 | AC92: 0 | AD92: 0 | AE92: 0 | AF92: 0 | AG92: 0 | AH92: 0 | AI92: 0 | AJ92: 0 | AK92: 0 | AL92: 0 | AM92: 0 | AN92: 0 | AO92: 0 | AP92: 0 | AQ92: 0 | AR92: 0 | AS92: 0 | AT92: 0 | AU92: 0 | AV92: 0 | AW92: 0 | AX92: 0
E93: Post-IDC and pre-operations flag | G93: flag | K93: =IF(OR(K92=1,K94=1),0,IF($I$87<K81,0,IF($I$87<K82,($I$87-(MAX($I$86+1,K81)))/K91,MIN(1,(K82-$I$86)/K91)))) -> 0 | L93: =IF(OR(L92=1,L94=1),0,IF($I$87<L81,0,IF($I$87<L82,($I$87-(MAX($I$86+1,L81)))/L91,MIN(1,(L82-$I$86)/L91)))) -> 0 | M93: 0 | N93: 0 | O93: 0 | P93: 0 | Q93: 0 | R93: 0 | S93: 0 | T93: 0 | U93: 0 | V93: 0 | W93: 0 | X93: 0 | Y93: 0 | Z93: 0 | AA93: 0 | AB93: 0 | AC93: 0 | AD93: 0 | AE93: 0 | AF93: 0 | AG93: 0 | AH93: 0 | AI93: 0 | AJ93: 0 | AK93: 0 | AL93: 0 | AM93: 0 | AN93: 0 | AO93: 0 | AP93: 0 | AQ93: 0 | AR93: 0 | AS93: 0 | AT93: 0 | AU93: 0 | AV93: 0 | AW93: 0 | AX93: 0
E94: Operations flag | G94: flag | K94: =IF(OR($I$87>K$82,$I$88<K$81),0,IF($I$87>=K$81,(K$82-$I$87+1)/K$91,IF($I$88<=K$82,($I$88-K$81+1)/K$91,1))) -> 0 | L94: 0 | M94: 0 | N94: 0 | O94: 0 | P94: 0 | Q94: 0 | R94: 0 | S94: 0 | T94: 0 | U94: 0.2513661202 | V94: 1 | W94: 1 | X94: 1 | Y94: 1 | Z94: 1 | AA94: 1 | AB94: 1 | AC94: 1 | AD94: 1 | AE94: 1 | AF94: 1 | AG94: 1 | AH94: 1 | AI94: 1 | AJ94: 1 | AK94: 1 | AL94: 1 | AM94: 1 | AN94: 1 | AO94: 1 | AP94: 1 | AQ94: 0.7534246575 | AR94: 0 | AS94: 0 | AT94: 0 | AU94: 0 | AV94: 0 | AW94: 0 | AX94: 0
E95: Transfer construction to operations flag | G95: flag | H95: ` | K95: =IF(AND(SUM(K34:K36)<>0,SUM(L34:$AX36)=0),1,0) -> 0 | L95: =IF(AND(SUM(L34:L36)<>0,SUM(M34:$AX36)=0),1,0) -> 0 | M95: =IF(AND(SUM(M34:M36)<>0,SUM(N34:$AX36)=0),1,0) -> 0 | N95: =IF(AND(SUM(N34:N36)<>0,SUM(O34:$AX36)=0),1,0) -> 0 | O95: =IF(AND(SUM(O34:O36)<>0,SUM(P34:$AX36)=0),1,0) -> 0 | P95: =IF(AND(SUM(P34:P36)<>0,SUM(Q34:$AX36)=0),1,0) -> 0 | Q95: =IF(AND(SUM(Q34:Q36)<>0,SUM(R34:$AX36)=0),1,0) -> 0 | R95: =IF(AND(SUM(R34:R36)<>0,SUM(S34:$AX36)=0),1,0) -> 0 | S95: =IF(AND(SUM(S34:S36)<>0,SUM(T34:$AX36)=0),1,0) -> 0 | T95: =IF(AND(SUM(T34:T36)<>0,SUM(U34:$AX36)=0),1,0) -> 0 | U95: =IF(AND(SUM(U34:U36)<>0,SUM(V34:$AX36)=0),1,0) -> 0 | V95: =IF(AND(SUM(V34:V36)<>0,SUM(W34:$AX36)=0),1,0) -> 1 | W95: =IF(AND(SUM(W34:W36)<>0,SUM(X34:$AX36)=0),1,0) -> 0 | X95: =IF(AND(SUM(X34:X36)<>0,SUM(Y34:$AX36)=0),1,0) -> 0 | Y95: =IF(AND(SUM(Y34:Y36)<>0,SUM(Z34:$AX36)=0),1,0) -> 0 | Z95: =IF(AND(SUM(Z34:Z36)<>0,SUM(AA34:$AX36)=0),1,0) -> 0 | AA95: =IF(AND(SUM(AA34:AA36)<>0,SUM(AB34:$AX36)=0),1,0) -> 0 | AB95: =IF(AND(SUM(AB34:AB36)<>0,SUM(AC34:$AX36)=0),1,0) -> 0 | AC95: =IF(AND(SUM(AC34:AC36)<>0,SUM(AD34:$AX36)=0),1,0) -> 0 | AD95: =IF(AND(SUM(AD34:AD36)<>0,SUM(AE34:$AX36)=0),1,0) -> 0 | AE95: =IF(AND(SUM(AE34:AE36)<>0,SUM(AF34:$AX36)=0),1,0) -> 0 | AF95: =IF(AND(SUM(AF34:AF36)<>0,SUM(AG34:$AX36)=0),1,0) -> 0 | AG95: =IF(AND(SUM(AG34:AG36)<>0,SUM(AH34:$AX36)=0),1,0) -> 0 | AH95: =IF(AND(SUM(AH34:AH36)<>0,SUM(AI34:$AX36)=0),1,0) -> 0 | AI95: =IF(AND(SUM(AI34:AI36)<>0,SUM(AJ34:$AX36)=0),1,0) -> 0 | AJ95: =IF(AND(SUM(AJ34:AJ36)<>0,SUM(AK34:$AX36)=0),1,0) -> 0 | AK95: =IF(AND(SUM(AK34:AK36)<>0,SUM(AL34:$AX36)=0),1,0) -> 0 | AL95: =IF(AND(SUM(AL34:AL36)<>0,SUM(AM34:$AX36)=0),1,0) -> 0 | AM95: =IF(AND(SUM(AM34:AM36)<>0,SUM(AN34:$AX36)=0),1,0) -> 0 | AN95: =IF(AND(SUM(AN34:AN36)<>0,SUM(AO34:$AX36)=0),1,0) -> 0 | AO95: =IF(AND(SUM(AO34:AO36)<>0,SUM(AP34:$AX36)=0),1,0) -> 0 | AP95: =IF(AND(SUM(AP34:AP36)<>0,SUM(AQ34:$AX36)=0),1,0) -> 0 | AQ95: =IF(AND(SUM(AQ34:AQ36)<>0,SUM(AR34:$AX36)=0),1,0) -> 0 | AR95: =IF(AND(SUM(AR34:AR36)<>0,SUM(AS34:$AX36)=0),1,0) -> 0 | AS95: =IF(AND(SUM(AS34:AS36)<>0,SUM(AT34:$AX36)=0),1,0) -> 0 | AT95: =IF(AND(SUM(AT34:AT36)<>0,SUM(AU34:$AX36)=0),1,0) -> 0 | AU95: =IF(AND(SUM(AU34:AU36)<>0,SUM(AV34:$AX36)=0),1,0) -> 0 | AV95: =IF(AND(SUM(AV34:AV36)<>0,SUM(AW34:$AX36)=0),1,0) -> 0 | AW95: =IF(AND(SUM(AW34:AW36)<>0,SUM(AX34:$AX36)=0),1,0) -> 0 | AX95: =IF(AND(SUM(AX34:AX36)<>0,SUM($AX34:AY36)=0),1,0) -> 0
E96: Initial transaction costs flag | G96: flag | K96: =IF(AND(SUM($J35:K35)=0,L35>0),1,0) -> 0 | L96: =IF(AND(SUM($J35:L35)=0,M35>0),1,0) -> 0 | M96: =IF(AND(SUM($J35:M35)=0,N35>0),1,0) -> 0 | N96: =IF(AND(SUM($J35:N35)=0,O35>0),1,0) -> 0 | O96: =IF(AND(SUM($J35:O35)=0,P35>0),1,0) -> 1 | P96: =IF(AND(SUM($J35:P35)=0,Q35>0),1,0) -> 0 | Q96: =IF(AND(SUM($J35:Q35)=0,R35>0),1,0) -> 0 | R96: =IF(AND(SUM($J35:R35)=0,S35>0),1,0) -> 0 | S96: =IF(AND(SUM($J35:S35)=0,T35>0),1,0) -> 0 | T96: =IF(AND(SUM($J35:T35)=0,U35>0),1,0) -> 0 | U96: =IF(AND(SUM($J35:U35)=0,V35>0),1,0) -> 0 | V96: =IF(AND(SUM($J35:V35)=0,W35>0),1,0) -> 0 | W96: =IF(AND(SUM($J35:W35)=0,X35>0),1,0) -> 0 | X96: =IF(AND(SUM($J35:X35)=0,Y35>0),1,0) -> 0 | Y96: =IF(AND(SUM($J35:Y35)=0,Z35>0),1,0) -> 0 | Z96: =IF(AND(SUM($J35:Z35)=0,AA35>0),1,0) -> 0 | AA96: =IF(AND(SUM($J35:AA35)=0,AB35>0),1,0) -> 0 | AB96: =IF(AND(SUM($J35:AB35)=0,AC35>0),1,0) -> 0 | AC96: =IF(AND(SUM($J35:AC35)=0,AD35>0),1,0) -> 0 | AD96: =IF(AND(SUM($J35:AD35)=0,AE35>0),1,0) -> 0 | AE96: =IF(AND(SUM($J35:AE35)=0,AF35>0),1,0) -> 0 | AF96: =IF(AND(SUM($J35:AF35)=0,AG35>0),1,0) -> 0 | AG96: =IF(AND(SUM($J35:AG35)=0,AH35>0),1,0) -> 0 | AH96: =IF(AND(SUM($J35:AH35)=0,AI35>0),1,0) -> 0 | AI96: =IF(AND(SUM($J35:AI35)=0,AJ35>0),1,0) -> 0 | AJ96: =IF(AND(SUM($J35:AJ35)=0,AK35>0),1,0) -> 0 | AK96: =IF(AND(SUM($J35:AK35)=0,AL35>0),1,0) -> 0 | AL96: =IF(AND(SUM($J35:AL35)=0,AM35>0),1,0) -> 0 | AM96: =IF(AND(SUM($J35:AM35)=0,AN35>0),1,0) -> 0 | AN96: =IF(AND(SUM($J35:AN35)=0,AO35>0),1,0) -> 0 | AO96: =IF(AND(SUM($J35:AO35)=0,AP35>0),1,0) -> 0 | AP96: =IF(AND(SUM($J35:AP35)=0,AQ35>0),1,0) -> 0 | AQ96: =IF(AND(SUM($J35:AQ35)=0,AR35>0),1,0) -> 0 | AR96: =IF(AND(SUM($J35:AR35)=0,AS35>0),1,0) -> 0 | AS96: =IF(AND(SUM($J35:AS35)=0,AT35>0),1,0) -> 0 | AT96: =IF(AND(SUM($J35:AT35)=0,AU35>0),1,0) -> 0 | AU96: =IF(AND(SUM($J35:AU35)=0,AV35>0),1,0) -> 0 | AV96: =IF(AND(SUM($J35:AV35)=0,AW35>0),1,0) -> 0 | AW96: =IF(AND(SUM($J35:AW35)=0,AX35>0),1,0) -> 0 | AX96: =IF(AND(SUM($J35:AX35)=0,AY35>0),1,0) -> 0
C98: Tax - Financial years
E100: Year commencing | K100: =K17 -> 2013-04-01 | L100: =+K101+1 -> 2014-04-01 | M100: =+L101+1 -> 2015-04-01 | N100: =+M101+1 -> 2016-04-01 | O100: 2017-04-01 | P100: 2018-04-01 | Q100: 2019-04-01 | R100: 2020-04-01 | S100: 2021-04-01 | T100: 2022-04-01 | U100: 2023-04-01 | V100: 2024-04-01 | W100: 2025-04-01 | X100: 2026-04-01 | Y100: 2027-04-01 | Z100: 2028-04-01 | AA100: 2029-04-01 | AB100: 2030-04-01 | AC100: 2031-04-01 | AD100: 2032-04-01 | AE100: 2033-04-01 | AF100: 2034-04-01 | AG100: 2035-04-01 | AH100: 2036-04-01 | AI100: 2037-04-01 | AJ100: 2038-04-01 | AK100: 2039-04-01 | AL100: 2040-04-01 | AM100: 2041-04-01 | AN100: 2042-04-01 | AO100: 2043-04-01 | AP100: 2044-04-01 | AQ100: 2045-04-01 | AR100: 2046-04-01 | AS100: 2047-04-01 | AT100: 2048-04-01 | AU100: 2049-04-01 | AV100: 2050-04-01 | AW100: 2051-04-01 | AX100: 2052-04-01
E101: Year ending | K101: =K18 -> 2014-03-31 | L101: =DATE(YEAR(K101) + 1, MONTH(K101), DAY(K101)) -> 2015-03-31 | M101: 2016-03-31 | N101: 2017-03-31 | O101: 2018-03-31 | P101: 2019-03-31 | Q101: 2020-03-31 | R101: 2021-03-31 | S101: 2022-03-31 | T101: 2023-03-31 | U101: 2024-03-31 | V101: 2025-03-31 | W101: 2026-03-31 | X101: 2027-03-31 | Y101: 2028-03-31 | Z101: 2029-03-31 | AA101: 2030-03-31 | AB101: 2031-03-31 | AC101: 2032-03-31 | AD101: 2033-03-31 | AE101: 2034-03-31 | AF101: 2035-03-31 | AG101: 2036-03-31 | AH101: 2037-03-31 | AI101: 2038-03-31 | AJ101: 2039-03-31 | AK101: 2040-03-31 | AL101: 2041-03-31 | AM101: 2042-03-31 | AN101: 2043-03-31 | AO101: 2044-03-31 | AP101: 2045-03-31 | AQ101: 2046-03-31 | AR101: 2047-03-31 | AS101: 2048-03-31 | AT101: 2049-03-31 | AU101: 2050-03-31 | AV101: 2051-03-31 | AW101: 2052-03-31 | AX101: 2053-03-31
E103: Long-term expected UK RPI inflation | G103: % | I103: 0.0318
E104: =E24 -> Base year UK RPI inflation index value (CHAW) | G104: =G24 -> Jan 1987 = 100 | H104: =H24 -> UK RPI index 2019/20 | I104: =I24 -> 290.6416667
E106: =E28 -> 12 month average UK RPI inflation index value (CHAW) | G106: =G28 -> Jan 1987 = 100 | H106: =H28 -> UK RPI index t | K106: 251.7333333 | L106: 256.6666667 | M106: 259.4333333 | N106: 264.9916667 | O106: 274.9083333 | P106: 283.3083333 | Q106: 290.6416667 | R106: 295.2919333 | S106: 302.3789397 | T106: 311.5259027 | U106: 321.0274427 | V106: 330.5619577 | W106: =V106*(1+$I$103) -> 341.073828 | X106: =W106*(1+$I$103) -> 351.9199757 | Y106: =X106*(1+$I$103) -> 363.111031 | Z106: =Y106*(1+$I$103) -> 374.6579617 | AA106: =Z106*(1+$I$103) -> 386.5720849 | AB106: =AA106*(1+$I$103) -> 398.8650772 | AC106: =AB106*(1+$I$103) -> 411.5489867 | AD106: =AC106*(1+$I$103) -> 424.6362445 | AE106: =AD106*(1+$I$103) -> 438.139677 | AF106: =AE106*(1+$I$103) -> 452.0725188 | AG106: =AF106*(1+$I$103) -> 466.4484249 | AH106: =AG106*(1+$I$103) -> 481.2814848 | AI106: =AH106*(1+$I$103) -> 496.586236 | AJ106: =AI106*(1+$I$103) -> 512.3776783 | AK106: =AJ106*(1+$I$103) -> 528.6712885 | AL106: =AK106*(1+$I$103) -> 545.4830354 | AM106: =AL106*(1+$I$103) -> 562.829396 | AN106: =AM106*(1+$I$103) -> 580.7273707 | AO106: =AN106*(1+$I$103) -> 599.1945011 | AP106: =AO106*(1+$I$103) -> 618.2488863 | AQ106: =AP106*(1+$I$103) -> 637.9092009 | AR106: =AQ106*(1+$I$103) -> 658.1947134 | AS106: =AR106*(1+$I$103) -> 679.1253053 | AT106: =AS106*(1+$I$103) -> 700.72149 | AU106: =AT106*(1+$I$103) -> 723.0044334 | AV106: =AU106*(1+$I$103) -> 745.9959744 | AW106: =AV106*(1+$I$103) -> 769.7186464 | AX106: =AW106*(1+$I$103) -> 794.1956993
E107: UK RPI inflation uplift from 2019/20 term | G107: scalar | K107: =K106/$I$104 -> 0.866129541 | L107: =L106/$I$104 -> 0.8831034779 | M107: 0.8926226453 | N107: 0.9117469966 | O107: 0.9458669037 | P107: 0.9747684721 | Q107: 1 | R107: 1.016 | S107: 1.040384 | T107: 1.071855616 | U107: 1.104547212 | V107: 1.137352264 | W107: 1.173520067 | X107: 1.210838005 | Y107: 1.249342653 | Z107: 1.28907175 | AA107: 1.330064231 | AB107: 1.372360274 | AC107: 1.41600133 | AD107: 1.461030173 | AE107: 1.507490932 | AF107: 1.555429144 | AG107: 1.604891791 | AH107: 1.65592735 | AI107: 1.708585839 | AJ107: 1.762918869 | AK107: 1.818979689 | AL107: 1.876823243 | AM107: 1.936506222 | AN107: 1.99808712 | AO107: 2.061626291 | AP107: 2.127186007 | AQ107: 2.194830522 | AR107: 2.264626132 | AS107: 2.336641243 | AT107: 2.410946435 | AU107: 2.487614531 | AV107: 2.566720673 | AW107: 2.648342391 | AX107: 2.732559679
C109: Tax - Operational years
E111: Operational Year | K111: Year 1 | L111: Year 2 | M111: Year 3 | N111: Year 4 | O111: Year 5 | P111: Year 6 | Q111: Year 7 | R111: Year 8 | S111: Year 9 | T111: Year 10 | U111: Year 11 | V111: Year 12 | W111: Year 13 | X111: Year 14 | Y111: Year 15 | Z111: Year 16 | AA111: Year 17 | AB111: Year 18 | AC111: Year 19 | AD111: Year 20 | AE111: Year 21 | AF111: Year 22 | AG111: Year 23 | AH111: Year 24 | AI111: Year 25
E113: Corporation tax rate | G113: % | K113: 0.19 | L113: 0.19 | M113: 0.19 | N113: 0.19 | O113: 0.19 | P113: 0.19 | Q113: 0.19 | R113: 0.19 | S113: 0.19 | T113: 0.19 | U113: 0.19 | V113: 0.19 | W113: 0.19 | X113: 0.19 | Y113: 0.19 | Z113: 0.19 | AA113: 0.19 | AB113: 0.19 | AC113: 0.19 | AD113: 0.19 | AE113: 0.19 | AF113: 0.19 | AG113: 0.19 | AH113: 0.19 | AI113: 0.19
E114: Capital allowance rate (declining balance) | G114: % | K114: 0.08 | L114: 0.08 | M114: 0.08 | N114: 0.08 | O114: 0.08 | P114: 0.08 | Q114: 0.08 | R114: 0.08 | S114: 0.08 | T114: 0.08 | U114: 0.08 | V114: 0.08 | W114: 0.08 | X114: 0.08 | Y114: 0.08 | Z114: 0.08 | AA114: 0.08 | AB114: 0.08 | AC114: 0.08 | AD114: 0.08 | AE114: 0.08 | AF114: 0.08 | AG114: 0.08 | AH114: 0.08 | AI114: 0.08
E116: =E103 -> Long-term expected UK RPI inflation | G116: % | I116: =I103 -> 0.0318
E117: Start of price base year | G117: date | I117: 2019-04-01
E118: End of price base year | G118: date | I118: =EOMONTH(I117,11) -> 2020-03-31
E119: UK RPI uplift from 2019/20 term to start of regime | G119: scalar | I119: =(1+$I$116)^((I85-AVERAGE(I117,I118))/365.25) -> 1.040079468
C121: Tax - Annuity
E123: Tax element of Cap and Floor annuity previously calculated and fixed | G123: choice | I123: No
B125: End of sheet

Sheet Data Sources
A1: Data Sources | H1: Licence | I1: Reference row in
E2: Parameter | G2: Units | H2: Terminology | I2: Inputs sheet | K2: Source | L2: Link
B4: Indexation, currency and base year price term
E6: =Inputs!E6 -> GB indexed portion of interconnector | G6: =Inputs!G6 -> choice % | I6: =ROW(Inputs!E6) -> 6 | K6: Viking Link licence - Special conditions - Schedule 1
E7: =Inputs!E9 -> Currency of cost inputs | G7: =Inputs!G9 -> choice | I7: =ROW(Inputs!E9) -> 9 | K7: Final Project Assessment (FPA) decision
E8: =Inputs!E11 -> Base year price term | G8: =Inputs!G11 -> choice | I8: =ROW(Inputs!E11) -> 11 | K8: Viking Link licence - Special conditions - Schedule 1
B10: Variables set after financial close
C12: Actual values
E14: =Inputs!E20 -> Development costs | G14: =Inputs!G20 -> £m nominal prices | I14: =ROW(Inputs!E20) -> 20 | K14: Final Project Assessment (FPA) decision
E15: =Inputs!E21 -> Capex | G15: =Inputs!G21 -> £m nominal prices | I15: =ROW(Inputs!E21) -> 21 | K15: Final Project Assessment (FPA) decision
E16: =Inputs!E22 -> Spares | G16: =Inputs!G22 -> £m nominal prices | I16: =ROW(Inputs!E22) -> 22 | K16: Final Project Assessment (FPA) decision
E18: =Inputs!E24 -> Base year UK RPI inflation index value (CHAW) | G18: =Inputs!G24 -> Jan 1987 = 100 | H18: =Inputs!H24 -> UK RPI index 2019/20 | I18: =ROW(Inputs!E24) -> 24 | K18: Office for National Statistics | L18: RPI All Items Index: Jan 1987=100
E22: =Inputs!E28 -> 12 month average UK RPI inflation index value (CHAW) | G22: =Inputs!G28 -> Jan 1987 = 100 | H22: =Inputs!H28 -> UK RPI index t | I22: =ROW(Inputs!E28) -> 28 | K22: Office for National Statistics for actuals (see link above); HM Treasury for forecasts | L22: Forecasts for the UK economy - August 2020
C24: Ex-ante allowances for the operational period
E26: =Inputs!E42 -> Replacement Capex | G26: =Inputs!G42 -> £m 2018 prices | I26: =ROW(Inputs!E42) -> 42 | K26: Final Project Assessment (FPA) decision
E27: =Inputs!E43 -> Decommissioning baseline | G27: =Inputs!G43 -> £m 2018 prices | I27: =ROW(Inputs!E43) -> 43 | K27: Final Project Assessment (FPA) decision
E28: =Inputs!E44 -> Controllable Opex | G28: =Inputs!G44 -> £m 2018 prices | I28: =ROW(Inputs!E44) -> 44 | K28: Final Project Assessment (FPA) decision
E29: =Inputs!E45 -> Non-controllable Opex baseline | G29: =Inputs!G45 -> £m 2018 prices | I29: =ROW(Inputs!E45) -> 45 | K29: Final Project Assessment (FPA) decision
E31: =Inputs!E51 -> 2018 average UK RPI inflation index value (CHAW) | G31: =Inputs!G51 -> Jan 1987 = 100 | I31: =ROW(Inputs!E51) -> 51 | K31: Office for National Statistics | L31: RPI All Items Index: Jan 1987=100
E32: =Inputs!E52 -> 0 | G32: =Inputs!G52 ->  | I32: =ROW(Inputs!E52) -> 52
E33: =Inputs!E53 -> 0 | G33: =Inputs!G53 ->  | I33: =ROW(Inputs!E53) -> 53
E35: =Inputs!E55 ->  | G35: =Inputs!G55 ->  | H35: =Inputs!H55 ->  | I35: =ROW(Inputs!E55) -> 55
B37: Variables set at financial close
C39: Finance
E41: =Inputs!E68 -> Cap return rate | G41: =Inputs!G68 -> real annual % | I41: =ROW(Inputs!E68) -> 68 | K41: Viking Link Cap and Floor Financial Model 1 Handbook (VLCFFM1H)
E42: =Inputs!E69 -> Floor return rate | G42: =Inputs!G69 -> real annual % | I42: =ROW(Inputs!E69) -> 69 | K42: Viking Link Cap and Floor Financial Model 1 Handbook (VLCFFM1H)
E43: =Inputs!E70 -> Interest during construction (IDC) rate | G43: =Inputs!G70 -> real annual % | I43: =ROW(Inputs!E70) -> 70 | K43: Viking Link Cap and Floor Financial Model 1 Handbook (VLCFFM1H)
E45: =Inputs!E73 -> Pre-operational notional gearing | G45: =Inputs!G73 -> % | I45: =ROW(Inputs!E73) -> 73 | K45: Viking Link Cap and Floor Financial Model 1 Handbook (VLCFFM1H)
E46: =Inputs!E74 -> Operational notional gearing | G46: =Inputs!G74 -> % | I46: =ROW(Inputs!E74) -> 74 | K46: Viking Link Cap and Floor Financial Model 1 Handbook (VLCFFM1H)
E48: =Inputs!E76 -> Equity transaction costs | G48: =Inputs!G76 -> % | I48: =ROW(Inputs!E76) -> 76 | K48: Viking Link Cap and Floor Financial Model 1 Handbook (VLCFFM1H)
E49: =Inputs!E77 -> Debt transaction costs | G49: =Inputs!G77 -> % | I49: =ROW(Inputs!E77) -> 77 | K49: Viking Link Cap and Floor Financial Model 1 Handbook (VLCFFM1H)
C51: Model operation
E53: =Inputs!E85 -> Regime start date | G53: =Inputs!G85 -> date | I53: =ROW(Inputs!I85) -> 85 | K53: Final Project Assessment (FPA) decision
E54: =Inputs!E86 -> End date for IDC | G54: =Inputs!G86 -> date | I54: =ROW(Inputs!I86) -> 86 | K54: Final Project Assessment (FPA) decision
E55: =Inputs!E87 -> Start of operations | G55: =Inputs!G87 -> date | I55: =ROW(Inputs!I87) -> 87 | K55: Final Project Assessment (FPA) decision
E56: =Inputs!E89 -> Number of operational years | G56: =Inputs!G89 -> full years | I56: =ROW(Inputs!I89) -> 89 | K56: Viking Link licence - Special conditions - Schedule 1
C58: Tax - Financial years
E60: =Inputs!E103 -> Long-term expected UK RPI inflation | G60: =Inputs!G103 -> % | I60: =ROW(Inputs!E103) -> 103 | K60: Viking Link Cap and Floor Financial Model 1 Handbook (VLCFFM1H)
E61: =Inputs!E106 -> 12 month average UK RPI inflation index value (CHAW) | G61: =Inputs!G106 -> Jan 1987 = 100 | H61: =Inputs!H106 -> UK RPI index t | I61: =ROW(Inputs!E106) -> 106 | K61: Office for National Statistics | L61: RPI All Items Index: Jan 1987=100
C63: Tax - Operational years
E65: =Inputs!E113 -> Corporation tax rate | G65: =Inputs!G113 -> % | I65: =ROW(Inputs!E113) -> 113 | K65: Viking Link Cap and Floor Financial Model 1 Handbook (VLCFFM1H)
E66: =Inputs!E114 -> Capital allowance rate (declining balance) | G66: =Inputs!G114 -> % | I66: =ROW(Inputs!E114) -> 114 | K66: Viking Link Cap and Floor Financial Model 1 Handbook (VLCFFM1H)
E67: =Inputs!E117 -> Start of price base year | G67: =Inputs!G117 -> date | I67: =ROW(Inputs!E117) -> 117 | K67: Viking Link licence - Special conditions - Schedule 1
C69: Tax - Annuity
E71: =Inputs!E123 -> Tax element of Cap and Floor annuity previously calculated and fixed | G71: =Inputs!G123 -> choice | I71: =ROW(Inputs!E123) -> 123 | K71: Viking Link Cap and Floor Financial Model 1 Handbook (VLCFFM1H)
B73: End of sheet

Sheet Pre Op RAV
A1: Pre Op RAV | H1: Licence
E2: Parameter | G2: Units | H2: Terminology | I2: Constant | K2: Annual values
E3: Year commencing | K3: =Inputs!K17 -> 2013-04-01 | L3: =+K4+1 -> 2014-04-01 | M3: =+L4+1 -> 2015-04-01 | N3: =+M4+1 -> 2016-04-01 | O3: 2017-04-01 | P3: 2018-04-01 | Q3: 2019-04-01 | R3: 2020-04-01 | S3: 2021-04-01 | T3: 2022-04-01 | U3: 2023-04-01 | V3: 2024-04-01 | W3: 2025-04-01 | X3: 2026-04-01 | Y3: 2027-04-01 | Z3: 2028-04-01 | AA3: 2029-04-01 | AB3: 2030-04-01 | AC3: 2031-04-01 | AD3: 2032-04-01 | AE3: 2033-04-01 | AF3: 2034-04-01 | AG3: 2035-04-01 | AH3: 2036-04-01 | AI3: 2037-04-01 | AJ3: 2038-04-01 | AK3: 2039-04-01 | AL3: 2040-04-01 | AM3: 2041-04-01 | AN3: 2042-04-01 | AO3: 2043-04-01 | AP3: 2044-04-01 | AQ3: 2045-04-01 | AR3: 2046-04-01 | AS3: 2047-04-01 | AT3: 2048-04-01 | AU3: 2049-04-01 | AV3: 2050-04-01 | AW3: 2051-04-01 | AX3: 2052-04-01
E4: Year ending | K4: =Inputs!K18 -> 2014-03-31 | L4: =DATE(YEAR(K4) + 1, MONTH(K4), DAY(K4)) -> 2015-03-31 | M4: 2016-03-31 | N4: 2017-03-31 | O4: 2018-03-31 | P4: 2019-03-31 | Q4: 2020-03-31 | R4: 2021-03-31 | S4: 2022-03-31 | T4: 2023-03-31 | U4: 2024-03-31 | V4: 2025-03-31 | W4: 2026-03-31 | X4: 2027-03-31 | Y4: 2028-03-31 | Z4: 2029-03-31 | AA4: 2030-03-31 | AB4: 2031-03-31 | AC4: 2032-03-31 | AD4: 2033-03-31 | AE4: 2034-03-31 | AF4: 2035-03-31 | AG4: 2036-03-31 | AH4: 2037-03-31 | AI4: 2038-03-31 | AJ4: 2039-03-31 | AK4: 2040-03-31 | AL4: 2041-03-31 | AM4: 2042-03-31 | AN4: 2043-03-31 | AO4: 2044-03-31 | AP4: 2045-03-31 | AQ4: 2046-03-31 | AR4: 2047-03-31 | AS4: 2048-03-31 | AT4: 2049-03-31 | AU4: 2050-03-31 | AV4: 2051-03-31 | AW4: 2052-03-31 | AX4: 2053-03-31
B6: Flags
E8: IDC flag | G8: flag | K8: =Inputs!K92 -> 1 | L8: =Inputs!L92 -> 1 | M8: =Inputs!M92 -> 1 | N8: =Inputs!N92 -> 1 | O8: =Inputs!O92 -> 1 | P8: =Inputs!P92 -> 1 | Q8: =Inputs!Q92 -> 1 | R8: =Inputs!R92 -> 1 | S8: =Inputs!S92 -> 1 | T8: =Inputs!T92 -> 1 | U8: =Inputs!U92 -> 0.7486338798 | V8: =Inputs!V92 -> 0 | W8: =Inputs!W92 -> 0 | X8: =Inputs!X92 -> 0 | Y8: =Inputs!Y92 -> 0 | Z8: =Inputs!Z92 -> 0 | AA8: =Inputs!AA92 -> 0 | AB8: =Inputs!AB92 -> 0 | AC8: =Inputs!AC92 -> 0 | AD8: =Inputs!AD92 -> 0 | AE8: =Inputs!AE92 -> 0 | AF8: =Inputs!AF92 -> 0 | AG8: =Inputs!AG92 -> 0 | AH8: =Inputs!AH92 -> 0 | AI8: =Inputs!AI92 -> 0 | AJ8: =Inputs!AJ92 -> 0 | AK8: =Inputs!AK92 -> 0 | AL8: =Inputs!AL92 -> 0 | AM8: =Inputs!AM92 -> 0 | AN8: =Inputs!AN92 -> 0 | AO8: =Inputs!AO92 -> 0 | AP8: =Inputs!AP92 -> 0 | AQ8: =Inputs!AQ92 -> 0 | AR8: =Inputs!AR92 -> 0 | AS8: =Inputs!AS92 -> 0 | AT8: =Inputs!AT92 -> 0 | AU8: =Inputs!AU92 -> 0 | AV8: =Inputs!AV92 -> 0 | AW8: =Inputs!AW92 -> 0 | AX8: =Inputs!AX92 -> 0
E9: Post-IDC and pre-operations flag | G9: flag | K9: =Inputs!K93 -> 0 | L9: =Inputs!L93 -> 0 | M9: =Inputs!M93 -> 0 | N9: =Inputs!N93 -> 0 | O9: =Inputs!O93 -> 0 | P9: =Inputs!P93 -> 0 | Q9: =Inputs!Q93 -> 0 | R9: =Inputs!R93 -> 0 | S9: =Inputs!S93 -> 0 | T9: =Inputs!T93 -> 0 | U9: =Inputs!U93 -> 0 | V9: =Inputs!V93 -> 0 | W9: =Inputs!W93 -> 0 | X9: =Inputs!X93 -> 0 | Y9: =Inputs!Y93 -> 0 | Z9: =Inputs!Z93 -> 0 | AA9: =Inputs!AA93 -> 0 | AB9: =Inputs!AB93 -> 0 | AC9: =Inputs!AC93 -> 0 | AD9: =Inputs!AD93 -> 0 | AE9: =Inputs!AE93 -> 0 | AF9: =Inputs!AF93 -> 0 | AG9: =Inputs!AG93 -> 0 | AH9: =Inputs!AH93 -> 0 | AI9: =Inputs!AI93 -> 0 | AJ9: =Inputs!AJ93 -> 0 | AK9: =Inputs!AK93 -> 0 | AL9: =Inputs!AL93 -> 0 | AM9: =Inputs!AM93 -> 0 | AN9: =Inputs!AN93 -> 0 | AO9: =Inputs!AO93 -> 0 | AP9: =Inputs!AP93 -> 0 | AQ9: =Inputs!AQ93 -> 0 | AR9: =Inputs!AR93 -> 0 | AS9: =Inputs!AS93 -> 0 | AT9: =Inputs!AT93 -> 0 | AU9: =Inputs!AU93 -> 0 | AV9: =Inputs!AV93 -> 0 | AW9: =Inputs!AW93 -> 0 | AX9: =Inputs!AX93 -> 0
E10: Operations flag | G10: flag | K10: =Inputs!K94 -> 0 | L10: =Inputs!L94 -> 0 | M10: =Inputs!M94 -> 0 | N10: =Inputs!N94 -> 0 | O10: =Inputs!O94 -> 0 | P10: =Inputs!P94 -> 0 | Q10: =Inputs!Q94 -> 0 | R10: =Inputs!R94 -> 0 | S10: =Inputs!S94 -> 0 | T10: =Inputs!T94 -> 0 | U10: =Inputs!U94 -> 0.2513661202 | V10: =Inputs!V94 -> 1 | W10: =Inputs!W94 -> 1 | X10: =Inputs!X94 -> 1 | Y10: =Inputs!Y94 -> 1 | Z10: =Inputs!Z94 -> 1 | AA10: =Inputs!AA94 -> 1 | AB10: =Inputs!AB94 -> 1 | AC10: =Inputs!AC94 -> 1 | AD10: =Inputs!AD94 -> 1 | AE10: =Inputs!AE94 -> 1 | AF10: =Inputs!AF94 -> 1 | AG10: =Inputs!AG94 -> 1 | AH10: =Inputs!AH94 -> 1 | AI10: =Inputs!AI94 -> 1 | AJ10: =Inputs!AJ94 -> 1 | AK10: =Inputs!AK94 -> 1 | AL10: =Inputs!AL94 -> 1 | AM10: =Inputs!AM94 -> 1 | AN10: =Inputs!AN94 -> 1 | AO10: =Inputs!AO94 -> 1 | AP10: =Inputs!AP94 -> 1 | AQ10: =Inputs!AQ94 -> 0.7534246575 | AR10: =Inputs!AR94 -> 0 | AS10: =Inputs!AS94 -> 0 | AT10: =Inputs!AT94 -> 0 | AU10: =Inputs!AU94 -> 0 | AV10: =Inputs!AV94 -> 0 | AW10: =Inputs!AW94 -> 0 | AX10: =Inputs!AX94 -> 0
E11: Transfer construction to operations flag | G11: flag | K11: =Inputs!K95 -> 0 | L11: =Inputs!L95 -> 0 | M11: =Inputs!M95 -> 0 | N11: =Inputs!N95 -> 0 | O11: =Inputs!O95 -> 0 | P11: =Inputs!P95 -> 0 | Q11: =Inputs!Q95 -> 0 | R11: =Inputs!R95 -> 0 | S11: =Inputs!S95 -> 0 | T11: =Inputs!T95 -> 0 | U11: =Inputs!U95 -> 0 | V11: =Inputs!V95 -> 1 | W11: =Inputs!W95 -> 0 | X11: =Inputs!X95 -> 0 | Y11: =Inputs!Y95 -> 0 | Z11: =Inputs!Z95 -> 0 | AA11: =Inputs!AA95 -> 0 | AB11: =Inputs!AB95 -> 0 | AC11: =Inputs!AC95 -> 0 | AD11: =Inputs!AD95 -> 0 | AE11: =Inputs!AE95 -> 0 | AF11: =Inputs!AF95 -> 0 | AG11: =Inputs!AG95 -> 0 | AH11: =Inputs!AH95 -> 0 | AI11: =Inputs!AI95 -> 0 | AJ11: =Inputs!AJ95 -> 0 | AK11: =Inputs!AK95 -> 0 | AL11: =Inputs!AL95 -> 0 | AM11: =Inputs!AM95 -> 0 | AN11: =Inputs!AN95 -> 0 | AO11: =Inputs!AO95 -> 0 | AP11: =Inputs!AP95 -> 0 | AQ11: =Inputs!AQ95 -> 0 | AR11: =Inputs!AR95 -> 0 | AS11: =Inputs!AS95 -> 0 | AT11: =Inputs!AT95 -> 0 | AU11: =Inputs!AU95 -> 0 | AV11: =Inputs!AV95 -> 0 | AW11: =Inputs!AW95 -> 0 | AX11: =Inputs!AX95 -> 0
B13: RAV
C15: Pre-operational
E17: Opening pre-operational RAV (before transfers) | G17: =Inputs!$I$11 -> £m 19/20 prices | L17: =K24 -> 0 | M17: =L24 -> 1.208471252 | N17: 6.166882751 | O17: 14.25677111 | P17: 22.3988699 | Q17: 31.26447047 | R17: 104.0004766 | S17: 277.6859387 | T17: 539.4148785 | U17: 742.4609931 | V17: =U24 -> 836.6900947 | W17: 0 | X17: 0 | Y17: 0 | Z17: 0 | AA17: 0 | AB17: 0 | AC17: 0 | AD17: 0 | AE17: 0 | AF17: 0 | AG17: 0 | AH17: 0 | AI17: 0 | AJ17: 0 | AK17: 0 | AL17: 0 | AM17: 0 | AN17: 0 | AO17: 0 | AP17: 0 | AQ17: 0 | AR17: 0 | AS17: 0 | AT17: 0 | AU17: 0 | AV17: 0 | AW17: 0 | AX17: 0
E18: =Inputs!E34 -> Development costs | G18: =Inputs!$I$11 -> £m 19/20 prices | K18: =Inputs!K34 -> 0 | L18: =Inputs!L34 -> 1.183060826 | M18: =Inputs!M34 -> 4.802215015 | N18: =Inputs!N34 -> 7.654749318 | O18: =Inputs!O34 -> 7.358183464 | P18: =Inputs!P34 -> 2.35330853 | Q18: =Inputs!Q34 -> -0.82025805 | R18: =Inputs!R34 -> 0 | S18: =Inputs!S34 -> 0 | T18: =Inputs!T34 -> 0 | U18: =Inputs!U34 -> 0 | V18: =Inputs!V34 -> 0 | W18: =Inputs!W34 -> 0 | X18: =Inputs!X34 -> 0 | Y18: =Inputs!Y34 -> 0 | Z18: =Inputs!Z34 -> 0 | AA18: =Inputs!AA34 -> 0 | AB18: =Inputs!AB34 -> 0 | AC18: =Inputs!AC34 -> 0 | AD18: =Inputs!AD34 -> 0 | AE18: =Inputs!AE34 -> 0 | AF18: =Inputs!AF34 -> 0 | AG18: =Inputs!AG34 -> 0 | AH18: =Inputs!AH34 -> 0 | AI18: =Inputs!AI34 -> 0 | AJ18: =Inputs!AJ34 -> 0 | AK18: =Inputs!AK34 -> 0 | AL18: =Inputs!AL34 -> 0 | AM18: =Inputs!AM34 -> 0 | AN18: =Inputs!AN34 -> 0 | AO18: =Inputs!AO34 -> 0 | AP18: =Inputs!AP34 -> 0 | AQ18: =Inputs!AQ34 -> 0 | AR18: =Inputs!AR34 -> 0 | AS18: =Inputs!AS34 -> 0 | AT18: =Inputs!AT34 -> 0 | AU18: =Inputs!AU34 -> 0 | AV18: =Inputs!AV34 -> 0 | AW18: =Inputs!AW34 -> 0 | AX18: =Inputs!AX34 -> 0
E19: =Inputs!E35 -> Capex | G19: =Inputs!$I$11 -> £m 19/20 prices | K19: =Inputs!K35 -> 0 | L19: =Inputs!L35 -> 0 | M19: =Inputs!M35 -> 0 | N19: =Inputs!N35 -> 0 | O19: =Inputs!O35 -> 0 | P19: =Inputs!P35 -> 5.363241375 | Q19: =Inputs!Q35 -> 69.32087305 | R19: =Inputs!R35 -> 164.1230709 | S19: =Inputs!S35 -> 241.6223578 | T19: =Inputs!T35 -> 172.388346 | U19: =Inputs!U35 -> 68.84901341 | V19: =Inputs!V35 -> 2.981560957 | W19: =Inputs!W35 -> 0 | X19: =Inputs!X35 -> 0 | Y19: =Inputs!Y35 -> 0 | Z19: =Inputs!Z35 -> 0 | AA19: =Inputs!AA35 -> 0 | AB19: =Inputs!AB35 -> 0 | AC19: =Inputs!AC35 -> 0 | AD19: =Inputs!AD35 -> 0 | AE19: =Inputs!AE35 -> 0 | AF19: =Inputs!AF35 -> 0 | AG19: =Inputs!AG35 -> 0 | AH19: =Inputs!AH35 -> 0 | AI19: =Inputs!AI35 -> 0 | AJ19: =Inputs!AJ35 -> 0 | AK19: =Inputs!AK35 -> 0 | AL19: =Inputs!AL35 -> 0 | AM19: =Inputs!AM35 -> 0 | AN19: =Inputs!AN35 -> 0 | AO19: =Inputs!AO35 -> 0 | AP19: =Inputs!AP35 -> 0 | AQ19: =Inputs!AQ35 -> 0 | AR19: =Inputs!AR35 -> 0 | AS19: =Inputs!AS35 -> 0 | AT19: =Inputs!AT35 -> 0 | AU19: =Inputs!AU35 -> 0 | AV19: =Inputs!AV35 -> 0 | AW19: =Inputs!AW35 -> 0 | AX19: =Inputs!AX35 -> 0
E20: =Inputs!E36 -> Spares | G20: =Inputs!$I$11 -> £m 19/20 prices | K20: =Inputs!K36 -> 0 | L20: =Inputs!L36 -> 0 | M20: =Inputs!M36 -> 0 | N20: =Inputs!N36 -> 0 | O20: =Inputs!O36 -> 0 | P20: =Inputs!P36 -> 0 | Q20: =Inputs!Q36 -> 1.362326499 | R20: =Inputs!R36 -> 1.44070117 | S20: =Inputs!S36 -> 2.669143099 | T20: =Inputs!T36 -> 3.205945259 | U20: =Inputs!U36 -> 0.01008882864 | V20: =Inputs!V36 -> 0.029393499 | W20: =Inputs!W36 -> 0 | X20: =Inputs!X36 -> 0 | Y20: =Inputs!Y36 -> 0 | Z20: =Inputs!Z36 -> 0 | AA20: =Inputs!AA36 -> 0 | AB20: =Inputs!AB36 -> 0 | AC20: =Inputs!AC36 -> 0 | AD20: =Inputs!AD36 -> 0 | AE20: =Inputs!AE36 -> 0 | AF20: =Inputs!AF36 -> 0 | AG20: =Inputs!AG36 -> 0 | AH20: =Inputs!AH36 -> 0 | AI20: =Inputs!AI36 -> 0 | AJ20: =Inputs!AJ36 -> 0 | AK20: =Inputs!AK36 -> 0 | AL20: =Inputs!AL36 -> 0 | AM20: =Inputs!AM36 -> 0 | AN20: =Inputs!AN36 -> 0 | AO20: =Inputs!AO36 -> 0 | AP20: =Inputs!AP36 -> 0 | AQ20: =Inputs!AQ36 -> 0 | AR20: =Inputs!AR36 -> 0 | AS20: =Inputs!AS36 -> 0 | AT20: =Inputs!AT36 -> 0 | AU20: =Inputs!AU36 -> 0 | AV20: =Inputs!AV36 -> 0 | AW20: =Inputs!AW36 -> 0 | AX20: =Inputs!AX36 -> 0
E21: =Finance!E24 -> Capitalised interest during construction | G21: =Inputs!$I$11 -> £m 19/20 prices | K21: =Finance!K24 -> 0 | L21: =Finance!L24 -> 0.02541042627 | M21: =Finance!M24 -> 0.1561964837 | N21: =Finance!N24 -> 0.4351390375 | O21: =Finance!O24 -> 0.783915333 | P21: =Finance!P24 -> 1.14905066 | Q21: =Finance!Q24 -> 2.873064651 | R21: =Finance!R24 -> 8.121690004 | S21: =Finance!S24 -> 17.43743893 | T21: =Finance!T24 -> 27.45182322 | U21: =Finance!U24 -> 25.36999939 | V21: =Finance!V24 -> 0 | W21: =Finance!W24 -> 0 | X21: =Finance!X24 -> 0 | Y21: =Finance!Y24 -> 0 | Z21: =Finance!Z24 -> 0 | AA21: =Finance!AA24 -> 0 | AB21: =Finance!AB24 -> 0 | AC21: =Finance!AC24 -> 0 | AD21: =Finance!AD24 -> 0 | AE21: =Finance!AE24 -> 0 | AF21: =Finance!AF24 -> 0 | AG21: =Finance!AG24 -> 0 | AH21: =Finance!AH24 -> 0 | AI21: =Finance!AI24 -> 0 | AJ21: =Finance!AJ24 -> 0 | AK21: =Finance!AK24 -> 0 | AL21: =Finance!AL24 -> 0 | AM21: =Finance!AM24 -> 0 | AN21: =Finance!AN24 -> 0 | AO21: =Finance!AO24 -> 0 | AP21: =Finance!AP24 -> 0 | AQ21: =Finance!AQ24 -> 0 | AR21: =Finance!AR24 -> 0 | AS21: =Finance!AS24 -> 0 | AT21: =Finance!AT24 -> 0 | AU21: =Finance!AU24 -> 0 | AV21: =Finance!AV24 -> 0 | AW21: =Finance!AW24 -> 0 | AX21: =Finance!AX24 -> 0
E22: Closing pre-operational RAV (after IDC) | G22: =Inputs!$I$11 -> £m 19/20 prices | K22: =SUM(K17:K21) -> 0 | L22: 1.208471252 | M22: 6.166882751 | N22: 14.25677111 | O22: 22.3988699 | P22: 31.26447047 | Q22: 104.0004766 | R22: 277.6859387 | S22: 539.4148785 | T22: 742.4609931 | U22: 836.6900947 | V22: =SUM(V17:V21) -> 839.7010492 | W22: 0 | X22: 0 | Y22: 0 | Z22: 0 | AA22: 0 | AB22: 0 | AC22: 0 | AD22: 0 | AE22: 0 | AF22: 0 | AG22: 0 | AH22: 0 | AI22: 0 | AJ22: 0 | AK22: 0 | AL22: 0 | AM22: 0 | AN22: 0 | AO22: 0 | AP22: 0 | AQ22: 0 | AR22: 0 | AS22: 0 | AT22: 0 | AU22: 0 | AV22: 0 | AW22: 0 | AX22: 0
E23: Pre-operational RAV transfers | G23: =Inputs!$I$11 -> £m 19/20 prices | K23: =-K22*K11 -> 0 | L23: 0 | M23: 0 | N23: 0 | O23: 0 | P23: 0 | Q23: 0 | R23: 0 | S23: 0 | T23: 0 | U23: 0 | V23: =-V22*V11 -> -839.7010492 | W23: =-W22*W11 -> 0 | X23: 0 | Y23: 0 | Z23: 0 | AA23: 0 | AB23: 0 | AC23: 0 | AD23: 0 | AE23: 0 | AF23: 0 | AG23: 0 | AH23: 0 | AI23: 0 | AJ23: 0 | AK23: 0 | AL23: 0 | AM23: 0 | AN23: 0 | AO23: 0 | AP23: 0 | AQ23: 0 | AR23: 0 | AS23: 0 | AT23: 0 | AU23: 0 | AV23: 0 | AW23: 0 | AX23: 0
E24: Closing pre-operational RAV (after IDC) - adjusted for RAV transfers | G24: =Inputs!$I$11 -> £m 19/20 prices | K24: =SUM(K22:K23) -> 0 | L24: 1.208471252 | M24: 6.166882751 | N24: 14.25677111 | O24: 22.3988699 | P24: 31.26447047 | Q24: 104.0004766 | R24: 277.6859387 | S24: 539.4148785 | T24: 742.4609931 | U24: =SUM(U22:U23) -> 836.6900947 | V24: =SUM(V22:V23) -> 0 | W24: 0 | X24: 0 | Y24: 0 | Z24: 0 | AA24: 0 | AB24: 0 | AC24: 0 | AD24: 0 | AE24: 0 | AF24: 0 | AG24: 0 | AH24: 0 | AI24: 0 | AJ24: 0 | AK24: 0 | AL24: 0 | AM24: 0 | AN24: 0 | AO24: 0 | AP24: 0 | AQ24: 0 | AR24: 0 | AS24: 0 | AT24: 0 | AU24: 0 | AV24: 0 | AW24: 0 | AX24: 0
B26: End of sheet

Sheet Finance
A1: Finance | H1: Licence
E2: Parameter | G2: Units | H2: Terminology | I2: Constant | K2: Annual values
E3: Year commencing | K3: =Inputs!K17 -> 2013-04-01 | L3: =+K4+1 -> 2014-04-01 | M3: 2015-04-01 | N3: 2016-04-01 | O3: 2017-04-01 | P3: 2018-04-01 | Q3: 2019-04-01 | R3: 2020-04-01 | S3: 2021-04-01 | T3: 2022-04-01 | U3: 2023-04-01 | V3: 2024-04-01 | W3: 2025-04-01 | X3: 2026-04-01 | Y3: 2027-04-01 | Z3: 2028-04-01 | AA3: 2029-04-01 | AB3: 2030-04-01 | AC3: 2031-04-01 | AD3: 2032-04-01 | AE3: 2033-04-01 | AF3: 2034-04-01 | AG3: 2035-04-01 | AH3: 2036-04-01 | AI3: 2037-04-01 | AJ3: 2038-04-01 | AK3: 2039-04-01 | AL3: 2040-04-01 | AM3: 2041-04-01 | AN3: 2042-04-01 | AO3: 2043-04-01 | AP3: 2044-04-01 | AQ3: 2045-04-01 | AR3: 2046-04-01 | AS3: 2047-04-01 | AT3: 2048-04-01 | AU3: =+AT4+1 -> 2049-04-01 | AV3: =+AU4+1 -> 2050-04-01 | AW3: =+AV4+1 -> 2051-04-01 | AX3: =+AW4+1 -> 2052-04-01
E4: Year ending | K4: =Inputs!K18 -> 2014-03-31 | L4: =DATE(YEAR(K4) + 1, MONTH(K4), DAY(K4)) -> 2015-03-31 | M4: 2016-03-31 | N4: 2017-03-31 | O4: 2018-03-31 | P4: 2019-03-31 | Q4: 2020-03-31 | R4: 2021-03-31 | S4: 2022-03-31 | T4: 2023-03-31 | U4: 2024-03-31 | V4: 2025-03-31 | W4: 2026-03-31 | X4: 2027-03-31 | Y4: 2028-03-31 | Z4: 2029-03-31 | AA4: 2030-03-31 | AB4: 2031-03-31 | AC4: 2032-03-31 | AD4: 2033-03-31 | AE4: 2034-03-31 | AF4: 2035-03-31 | AG4: 2036-03-31 | AH4: 2037-03-31 | AI4: 2038-03-31 | AJ4: 2039-03-31 | AK4: 2040-03-31 | AL4: 2041-03-31 | AM4: 2042-03-31 | AN4: 2043-03-31 | AO4: 2044-03-31 | AP4: 2045-03-31 | AQ4: 2046-03-31 | AR4: 2047-03-31 | AS4: 2048-03-31 | AT4: 2049-03-31 | AU4: =DATE(YEAR(AT4) + 1, MONTH(AT4), DAY(AT4)) -> 2050-03-31 | AV4: =DATE(YEAR(AU4) + 1, MONTH(AU4), DAY(AU4)) -> 2051-03-31 | AW4: =DATE(YEAR(AV4) + 1, MONTH(AV4), DAY(AV4)) -> 2052-03-31 | AX4: =DATE(YEAR(AW4) + 1, MONTH(AW4), DAY(AW4)) -> 2053-03-31
B6: Flags
E8: IDC flag | G8: flag | K8: =Inputs!K92 -> 1 | L8: =Inputs!L92 -> 1 | M8: =Inputs!M92 -> 1 | N8: =Inputs!N92 -> 1 | O8: =Inputs!O92 -> 1 | P8: =Inputs!P92 -> 1 | Q8: =Inputs!Q92 -> 1 | R8: =Inputs!R92 -> 1 | S8: =Inputs!S92 -> 1 | T8: =Inputs!T92 -> 1 | U8: =Inputs!U92 -> 0.7486338798 | V8: =Inputs!V92 -> 0 | W8: =Inputs!W92 -> 0 | X8: =Inputs!X92 -> 0 | Y8: =Inputs!Y92 -> 0 | Z8: =Inputs!Z92 -> 0 | AA8: =Inputs!AA92 -> 0 | AB8: =Inputs!AB92 -> 0 | AC8: =Inputs!AC92 -> 0 | AD8: =Inputs!AD92 -> 0 | AE8: =Inputs!AE92 -> 0 | AF8: =Inputs!AF92 -> 0 | AG8: =Inputs!AG92 -> 0 | AH8: =Inputs!AH92 -> 0 | AI8: =Inputs!AI92 -> 0 | AJ8: =Inputs!AJ92 -> 0 | AK8: =Inputs!AK92 -> 0 | AL8: =Inputs!AL92 -> 0 | AM8: =Inputs!AM92 -> 0 | AN8: =Inputs!AN92 -> 0 | AO8: =Inputs!AO92 -> 0 | AP8: =Inputs!AP92 -> 0 | AQ8: =Inputs!AQ92 -> 0 | AR8: =Inputs!AR92 -> 0 | AS8: =Inputs!AS92 -> 0 | AT8: =Inputs!AT92 -> 0 | AU8: =Inputs!AU92 -> 0 | AV8: =Inputs!AV92 -> 0 | AW8: =Inputs!AW92 -> 0 | AX8: =Inputs!AX92 -> 0
E9: Post-IDC and pre-operations flag | G9: flag | K9: =Inputs!K93 -> 0 | L9: =Inputs!L93 -> 0 | M9: =Inputs!M93 -> 0 | N9: =Inputs!N93 -> 0 | O9: =Inputs!O93 -> 0 | P9: =Inputs!P93 -> 0 | Q9: =Inputs!Q93 -> 0 | R9: =Inputs!R93 -> 0 | S9: =Inputs!S93 -> 0 | T9: =Inputs!T93 -> 0 | U9: =Inputs!U93 -> 0 | V9: =Inputs!V93 -> 0 | W9: =Inputs!W93 -> 0 | X9: =Inputs!X93 -> 0 | Y9: =Inputs!Y93 -> 0 | Z9: =Inputs!Z93 -> 0 | AA9: =Inputs!AA93 -> 0 | AB9: =Inputs!AB93 -> 0 | AC9: =Inputs!AC93 -> 0 | AD9: =Inputs!AD93 -> 0 | AE9: =Inputs!AE93 -> 0 | AF9: =Inputs!AF93 -> 0 | AG9: =Inputs!AG93 -> 0 | AH9: =Inputs!AH93 -> 0 | AI9: =Inputs!AI93 -> 0 | AJ9: =Inputs!AJ93 -> 0 | AK9: =Inputs!AK93 -> 0 | AL9: =Inputs!AL93 -> 0 | AM9: =Inputs!AM93 -> 0 | AN9: =Inputs!AN93 -> 0 | AO9: =Inputs!AO93 -> 0 | AP9: =Inputs!AP93 -> 0 | AQ9: =Inputs!AQ93 -> 0 | AR9: =Inputs!AR93 -> 0 | AS9: =Inputs!AS93 -> 0 | AT9: =Inputs!AT93 -> 0 | AU9: =Inputs!AU93 -> 0 | AV9: =Inputs!AV93 -> 0 | AW9: =Inputs!AW93 -> 0 | AX9: =Inputs!AX93 -> 0
E10: Operations flag | G10: flag | K10: =Inputs!K94 -> 0 | L10: =Inputs!L94 -> 0 | M10: =Inputs!M94 -> 0 | N10: =Inputs!N94 -> 0 | O10: =Inputs!O94 -> 0 | P10: =Inputs!P94 -> 0 | Q10: =Inputs!Q94 -> 0 | R10: =Inputs!R94 -> 0 | S10: =Inputs!S94 -> 0 | T10: =Inputs!T94 -> 0 | U10: =Inputs!U94 -> 0.2513661202 | V10: =Inputs!V94 -> 1 | W10: =Inputs!W94 -> 1 | X10: =Inputs!X94 -> 1 | Y10: =Inputs!Y94 -> 1 | Z10: =Inputs!Z94 -> 1 | AA10: =Inputs!AA94 -> 1 | AB10: =Inputs!AB94 -> 1 | AC10: =Inputs!AC94 -> 1 | AD10: =Inputs!AD94 -> 1 | AE10: =Inputs!AE94 -> 1 | AF10: =Inputs!AF94 -> 1 | AG10: =Inputs!AG94 -> 1 | AH10: =Inputs!AH94 -> 1 | AI10: =Inputs!AI94 -> 1 | AJ10: =Inputs!AJ94 -> 1 | AK10: =Inputs!AK94 -> 1 | AL10: =Inputs!AL94 -> 1 | AM10: =Inputs!AM94 -> 1 | AN10: =Inputs!AN94 -> 1 | AO10: =Inputs!AO94 -> 1 | AP10: =Inputs!AP94 -> 1 | AQ10: =Inputs!AQ94 -> 0.7534246575 | AR10: =Inputs!AR94 -> 0 | AS10: =Inputs!AS94 -> 0 | AT10: =Inputs!AT94 -> 0 | AU10: =Inputs!AU94 -> 0 | AV10: =Inputs!AV94 -> 0 | AW10: =Inputs!AW94 -> 0 | AX10: =Inputs!AX94 -> 0
E11: Transfer construction to operations flag | G11: flag | K11: =Inputs!K95 -> 0 | L11: =Inputs!L95 -> 0 | M11: =Inputs!M95 -> 0 | N11: =Inputs!N95 -> 0 | O11: =Inputs!O95 -> 0 | P11: =Inputs!P95 -> 0 | Q11: =Inputs!Q95 -> 0 | R11: =Inputs!R95 -> 0 | S11: =Inputs!S95 -> 0 | T11: =Inputs!T95 -> 0 | U11: =Inputs!U95 -> 0 | V11: =Inputs!V95 -> 1 | W11: =Inputs!W95 -> 0 | X11: =Inputs!X95 -> 0 | Y11: =Inputs!Y95 -> 0 | Z11: =Inputs!Z95 -> 0 | AA11: =Inputs!AA95 -> 0 | AB11: =Inputs!AB95 -> 0 | AC11: =Inputs!AC95 -> 0 | AD11: =Inputs!AD95 -> 0 | AE11: =Inputs!AE95 -> 0 | AF11: =Inputs!AF95 -> 0 | AG11: =Inputs!AG95 -> 0 | AH11: =Inputs!AH95 -> 0 | AI11: =Inputs!AI95 -> 0 | AJ11: =Inputs!AJ95 -> 0 | AK11: =Inputs!AK95 -> 0 | AL11: =Inputs!AL95 -> 0 | AM11: =Inputs!AM95 -> 0 | AN11: =Inputs!AN95 -> 0 | AO11: =Inputs!AO95 -> 0 | AP11: =Inputs!AP95 -> 0 | AQ11: =Inputs!AQ95 -> 0 | AR11: =Inputs!AR95 -> 0 | AS11: =Inputs!AS95 -> 0 | AT11: =Inputs!AT95 -> 0 | AU11: =Inputs!AU95 -> 0 | AV11: =Inputs!AV95 -> 0 | AW11: =Inputs!AW95 -> 0 | AX11: =Inputs!AX95 -> 0
E12: Initial transaction costs flag | G12: flag | K12: =Inputs!K96 -> 0 | L12: =Inputs!L96 -> 0 | M12: =Inputs!M96 -> 0 | N12: =Inputs!N96 -> 0 | O12: =Inputs!O96 -> 1 | P12: =Inputs!P96 -> 0 | Q12: =Inputs!Q96 -> 0 | R12: =Inputs!R96 -> 0 | S12: =Inputs!S96 -> 0 | T12: =Inputs!T96 -> 0 | U12: =Inputs!U96 -> 0 | V12: =Inputs!V96 -> 0 | W12: =Inputs!W96 -> 0 | X12: =Inputs!X96 -> 0 | Y12: =Inputs!Y96 -> 0 | Z12: =Inputs!Z96 -> 0 | AA12: =Inputs!AA96 -> 0 | AB12: =Inputs!AB96 -> 0 | AC12: =Inputs!AC96 -> 0 | AD12: =Inputs!AD96 -> 0 | AE12: =Inputs!AE96 -> 0 | AF12: =Inputs!AF96 -> 0 | AG12: =Inputs!AG96 -> 0 | AH12: =Inputs!AH96 -> 0 | AI12: =Inputs!AI96 -> 0 | AJ12: =Inputs!AJ96 -> 0 | AK12: =Inputs!AK96 -> 0 | AL12: =Inputs!AL96 -> 0 | AM12: =Inputs!AM96 -> 0 | AN12: =Inputs!AN96 -> 0 | AO12: =Inputs!AO96 -> 0 | AP12: =Inputs!AP96 -> 0 | AQ12: =Inputs!AQ96 -> 0 | AR12: =Inputs!AR96 -> 0 | AS12: =Inputs!AS96 -> 0 | AT12: =Inputs!AT96 -> 0 | AU12: =Inputs!AU96 -> 0 | AV12: =Inputs!AV96 -> 0 | AW12: =Inputs!AW96 -> 0 | AX12: =Inputs!AX96 -> 0
B14: Pre-operational interest during construction
C16: Pre-operational interest during construction
E18: Interest during construction rate | G18: =Inputs!G70 -> real annual % | I18: =Inputs!I70 -> 0.0439
E20: Opening pre-operational RAV (before transfers) | G20: =Inputs!$I$11 -> £m 19/20 prices | K20: ='Pre Op RAV'!K17 -> 0 | L20: ='Pre Op RAV'!L17 -> 0 | M20: ='Pre Op RAV'!M17 -> 1.208471252 | N20: ='Pre Op RAV'!N17 -> 6.166882751 | O20: ='Pre Op RAV'!O17 -> 14.25677111 | P20: ='Pre Op RAV'!P17 -> 22.3988699 | Q20: ='Pre Op RAV'!Q17 -> 31.26447047 | R20: ='Pre Op RAV'!R17 -> 104.0004766 | S20: ='Pre Op RAV'!S17 -> 277.6859387 | T20: ='Pre Op RAV'!T17 -> 539.4148785 | U20: ='Pre Op RAV'!U17 -> 742.4609931 | V20: ='Pre Op RAV'!V17 -> 836.6900947 | W20: ='Pre Op RAV'!W17 -> 0 | X20: ='Pre Op RAV'!X17 -> 0 | Y20: ='Pre Op RAV'!Y17 -> 0 | Z20: ='Pre Op RAV'!Z17 -> 0 | AA20: ='Pre Op RAV'!AA17 -> 0 | AB20: ='Pre Op RAV'!AB17 -> 0 | AC20: ='Pre Op RAV'!AC17 -> 0 | AD20: ='Pre Op RAV'!AD17 -> 0 | AE20: ='Pre Op RAV'!AE17 -> 0 | AF20: ='Pre Op RAV'!AF17 -> 0 | AG20: ='Pre Op RAV'!AG17 -> 0 | AH20: ='Pre Op RAV'!AH17 -> 0 | AI20: ='Pre Op RAV'!AI17 -> 0 | AJ20: ='Pre Op RAV'!AJ17 -> 0 | AK20: ='Pre Op RAV'!AK17 -> 0 | AL20: ='Pre Op RAV'!AL17 -> 0 | AM20: ='Pre Op RAV'!AM17 -> 0 | AN20: ='Pre Op RAV'!AN17 -> 0 | AO20: ='Pre Op RAV'!AO17 -> 0 | AP20: ='Pre Op RAV'!AP17 -> 0 | AQ20: ='Pre Op RAV'!AQ17 -> 0 | AR20: ='Pre Op RAV'!AR17 -> 0 | AS20: ='Pre Op RAV'!AS17 -> 0 | AT20: ='Pre Op RAV'!AT17 -> 0 | AU20: ='Pre Op RAV'!AU17 -> 0 | AV20: ='Pre Op RAV'!AV17 -> 0 | AW20: ='Pre Op RAV'!AW17 -> 0 | AX20: ='Pre Op RAV'!AX17 -> 0
E21: Development costs | G21: =Inputs!$I$11 -> £m 19/20 prices | K21: =Inputs!K34 -> 0 | L21: =Inputs!L34 -> 1.183060826 | M21: =Inputs!M34 -> 4.802215015 | N21: =Inputs!N34 -> 7.654749318 | O21: =Inputs!O34 -> 7.358183464 | P21: =Inputs!P34 -> 2.35330853 | Q21: =Inputs!Q34 -> -0.82025805 | R21: =Inputs!R34 -> 0 | S21: =Inputs!S34 -> 0 | T21: =Inputs!T34 -> 0 | U21: =Inputs!U34 -> 0 | V21: =Inputs!V34 -> 0 | W21: =Inputs!W34 -> 0 | X21: =Inputs!X34 -> 0 | Y21: =Inputs!Y34 -> 0 | Z21: =Inputs!Z34 -> 0 | AA21: =Inputs!AA34 -> 0 | AB21: =Inputs!AB34 -> 0 | AC21: =Inputs!AC34 -> 0 | AD21: =Inputs!AD34 -> 0 | AE21: =Inputs!AE34 -> 0 | AF21: =Inputs!AF34 -> 0 | AG21: =Inputs!AG34 -> 0 | AH21: =Inputs!AH34 -> 0 | AI21: =Inputs!AI34 -> 0 | AJ21: =Inputs!AJ34 -> 0 | AK21: =Inputs!AK34 -> 0 | AL21: =Inputs!AL34 -> 0 | AM21: =Inputs!AM34 -> 0 | AN21: =Inputs!AN34 -> 0 | AO21: =Inputs!AO34 -> 0 | AP21: =Inputs!AP34 -> 0 | AQ21: =Inputs!AQ34 -> 0 | AR21: =Inputs!AR34 -> 0 | AS21: =Inputs!AS34 -> 0 | AT21: =Inputs!AT34 -> 0 | AU21: =Inputs!AU34 -> 0 | AV21: =Inputs!AV34 -> 0 | AW21: =Inputs!AW34 -> 0 | AX21: =Inputs!AX34 -> 0
E22: Capex | G22: =Inputs!$I$11 -> £m 19/20 prices | K22: =Inputs!K35 -> 0 | L22: =Inputs!L35 -> 0 | M22: =Inputs!M35 -> 0 | N22: =Inputs!N35 -> 0 | O22: =Inputs!O35 -> 0 | P22: =Inputs!P35 -> 5.363241375 | Q22: =Inputs!Q35 -> 69.32087305 | R22: =Inputs!R35 -> 164.1230709 | S22: =Inputs!S35 -> 241.6223578 | T22: =Inputs!T35 -> 172.388346 | U22: =Inputs!U35 -> 68.84901341 | V22: =Inputs!V35 -> 2.981560957 | W22: =Inputs!W35 -> 0 | X22: =Inputs!X35 -> 0 | Y22: =Inputs!Y35 -> 0 | Z22: =Inputs!Z35 -> 0 | AA22: =Inputs!AA35 -> 0 | AB22: =Inputs!AB35 -> 0 | AC22: =Inputs!AC35 -> 0 | AD22: =Inputs!AD35 -> 0 | AE22: =Inputs!AE35 -> 0 | AF22: =Inputs!AF35 -> 0 | AG22: =Inputs!AG35 -> 0 | AH22: =Inputs!AH35 -> 0 | AI22: =Inputs!AI35 -> 0 | AJ22: =Inputs!AJ35 -> 0 | AK22: =Inputs!AK35 -> 0 | AL22: =Inputs!AL35 -> 0 | AM22: =Inputs!AM35 -> 0 | AN22: =Inputs!AN35 -> 0 | AO22: =Inputs!AO35 -> 0 | AP22: =Inputs!AP35 -> 0 | AQ22: =Inputs!AQ35 -> 0 | AR22: =Inputs!AR35 -> 0 | AS22: =Inputs!AS35 -> 0 | AT22: =Inputs!AT35 -> 0 | AU22: =Inputs!AU35 -> 0 | AV22: =Inputs!AV35 -> 0 | AW22: =Inputs!AW35 -> 0 | AX22: =Inputs!AX35 -> 0
E23: Spares | G23: =Inputs!$I$11 -> £m 19/20 prices | K23: =Inputs!K36 -> 0 | L23: =Inputs!L36 -> 0 | M23: =Inputs!M36 -> 0 | N23: =Inputs!N36 -> 0 | O23: =Inputs!O36 -> 0 | P23: =Inputs!P36 -> 0 | Q23: =Inputs!Q36 -> 1.362326499 | R23: =Inputs!R36 -> 1.44070117 | S23: =Inputs!S36 -> 2.669143099 | T23: =Inputs!T36 -> 3.205945259 | U23: =Inputs!U36 -> 0.01008882864 | V23: =Inputs!V36 -> 0.029393499 | W23: =Inputs!W36 -> 0 | X23: =Inputs!X36 -> 0 | Y23: =Inputs!Y36 -> 0 | Z23: =Inputs!Z36 -> 0 | AA23: =Inputs!AA36 -> 0 | AB23: =Inputs!AB36 -> 0 | AC23: =Inputs!AC36 -> 0 | AD23: =Inputs!AD36 -> 0 | AE23: =Inputs!AE36 -> 0 | AF23: =Inputs!AF36 -> 0 | AG23: =Inputs!AG36 -> 0 | AH23: =Inputs!AH36 -> 0 | AI23: =Inputs!AI36 -> 0 | AJ23: =Inputs!AJ36 -> 0 | AK23: =Inputs!AK36 -> 0 | AL23: =Inputs!AL36 -> 0 | AM23: =Inputs!AM36 -> 0 | AN23: =Inputs!AN36 -> 0 | AO23: =Inputs!AO36 -> 0 | AP23: =Inputs!AP36 -> 0 | AQ23: =Inputs!AQ36 -> 0 | AR23: =Inputs!AR36 -> 0 | AS23: =Inputs!AS36 -> 0 | AT23: =Inputs!AT36 -> 0 | AU23: =Inputs!AU36 -> 0 | AV23: =Inputs!AV36 -> 0 | AW23: =Inputs!AW36 -> 0 | AX23: =Inputs!AX36 -> 0
E24: Capitalised interest during construction | G24: =Inputs!$I$11 -> £m 19/20 prices | K24: =((1+$I18)^K8-1)*(K20+(K21+K22+K23)/(2+$I18)) -> 0 | L24: =((1+$I18)^L8-1)*(L20+(L21+L22+L23)/(2+$I18)) -> 0.02541042627 | M24: 0.1561964837 | N24: 0.4351390375 | O24: 0.783915333 | P24: 1.14905066 | Q24: 2.873064651 | R24: 8.121690004 | S24: 17.43743893 | T24: 27.45182322 | U24: 25.36999939 | V24: =((1+$I18)^V8-1)*(V20+(V21+V22+V23)/(2+$I18)) -> 0 | W24: =((1+$I18)^W8-1)*(W20+(W21+W22+W23)/(2+$I18)) -> 0 | X24: =((1+$I18)^X8-1)*(X20+(X21+X22+X23)/(2+$I18)) -> 0 | Y24: =((1+$I18)^Y8-1)*(Y20+(Y21+Y22+Y23)/(2+$I18)) -> 0 | Z24: =((1+$I18)^Z8-1)*(Z20+(Z21+Z22+Z23)/(2+$I18)) -> 0 | AA24: =((1+$I18)^AA8-1)*(AA20+(AA21+AA22+AA23)/(2+$I18)) -> 0 | AB24: =((1+$I18)^AB8-1)*(AB20+(AB21+AB22+AB23)/(2+$I18)) -> 0 | AC24: =((1+$I18)^AC8-1)*(AC20+(AC21+AC22+AC23)/(2+$I18)) -> 0 | AD24: =((1+$I18)^AD8-1)*(AD20+(AD21+AD22+AD23)/(2+$I18)) -> 0 | AE24: =((1+$I18)^AE8-1)*(AE20+(AE21+AE22+AE23)/(2+$I18)) -> 0 | AF24: =((1+$I18)^AF8-1)*(AF20+(AF21+AF22+AF23)/(2+$I18)) -> 0 | AG24: =((1+$I18)^AG8-1)*(AG20+(AG21+AG22+AG23)/(2+$I18)) -> 0 | AH24: =((1+$I18)^AH8-1)*(AH20+(AH21+AH22+AH23)/(2+$I18)) -> 0 | AI24: =((1+$I18)^AI8-1)*(AI20+(AI21+AI22+AI23)/(2+$I18)) -> 0 | AJ24: =((1+$I18)^AJ8-1)*(AJ20+(AJ21+AJ22+AJ23)/(2+$I18)) -> 0 | AK24: =((1+$I18)^AK8-1)*(AK20+(AK21+AK22+AK23)/(2+$I18)) -> 0 | AL24: =((1+$I18)^AL8-1)*(AL20+(AL21+AL22+AL23)/(2+$I18)) -> 0 | AM24: =((1+$I18)^AM8-1)*(AM20+(AM21+AM22+AM23)/(2+$I18)) -> 0 | AN24: =((1+$I18)^AN8-1)*(AN20+(AN21+AN22+AN23)/(2+$I18)) -> 0 | AO24: =((1+$I18)^AO8-1)*(AO20+(AO21+AO22+AO23)/(2+$I18)) -> 0 | AP24: =((1+$I18)^AP8-1)*(AP20+(AP21+AP22+AP23)/(2+$I18)) -> 0 | AQ24: =((1+$I18)^AQ8-1)*(AQ20+(AQ21+AQ22+AQ23)/(2+$I18)) -> 0 | AR24: =((1+$I18)^AR8-1)*(AR20+(AR21+AR22+AR23)/(2+$I18)) -> 0 | AS24: =((1+$I18)^AS8-1)*(AS20+(AS21+AS22+AS23)/(2+$I18)) -> 0 | AT24: =((1+$I18)^AT8-1)*(AT20+(AT21+AT22+AT23)/(2+$I18)) -> 0 | AU24: =((1+$I18)^AU8-1)*(AU20+(AU21+AU22+AU23)/(2+$I18)) -> 0 | AV24: =((1+$I18)^AV8-1)*(AV20+(AV21+AV22+AV23)/(2+$I18)) -> 0 | AW24: =((1+$I18)^AW8-1)*(AW20+(AW21+AW22+AW23)/(2+$I18)) -> 0 | AX24: =((1+$I18)^AX8-1)*(AX20+(AX21+AX22+AX23)/(2+$I18)) -> 0
B26: Transaction costs
C28: Parameters
E30: Pre-operational notional gearing | G30: =Inputs!G73 -> % | I30: =Inputs!I73 -> 0.2332
E31: Operational notional gearing | G31: =Inputs!G74 -> % | I31: =Inputs!I74 -> 0.5
E33: Debt transaction costs | G33: =Inputs!G77 -> % | I33: =Inputs!I77 -> 0.025
E34: Equity transaction costs | G34: =Inputs!G76 -> % | I34: =Inputs!I76 -> 0.05
C36: Allowance
E38: Transaction costs - opening | G38: =Inputs!$I$11 -> £m 19/20 prices | K38: =J46 -> 0 | L38: 0 | M38: 0 | N38: 0 | O38: 0 | P38: 37.88622592 | Q38: 39.54943124 | R38: 41.28565127 | S38: 43.09809136 | T38: 44.99009757 | U38: 46.96516285 | V38: 48.50031011 | W38: 0 | X38: 0 | Y38: 0 | Z38: 0 | AA38: 0 | AB38: 0 | AC38: 0 | AD38: 0 | AE38: 0 | AF38: 0 | AG38: 0 | AH38: 0 | AI38: 0 | AJ38: 0 | AK38: 0 | AL38: 0 | AM38: 0 | AN38: 0 | AO38: 0 | AP38: 0 | AQ38: 0 | AR38: 0 | AS38: 0 | AT38: 0 | AU38: =AT46 -> 0 | AV38: =AU46 -> 0 | AW38: =AV46 -> 0 | AX38: =AW46 -> 0
E39: Initial debt transaction costs | G39: =Inputs!$I$11 -> £m 19/20 prices | K39: =$I30*K$12*$I33*'Op Rav'!$K$11 -> 0 | L39: =$I30*L$12*$I33*'Op Rav'!$K$11 -> 0 | M39: =$I30*M$12*$I33*'Op Rav'!$K$11 -> 0 | N39: =$I30*N$12*$I33*'Op Rav'!$K$11 -> 0 | O39: =$I30*O$12*$I33*'Op Rav'!$K$11 -> 4.895457117 | P39: =$I30*P$12*$I33*'Op Rav'!$K$11 -> 0 | Q39: =$I30*Q$12*$I33*'Op Rav'!$K$11 -> 0 | R39: =$I30*R$12*$I33*'Op Rav'!$K$11 -> 0 | S39: =$I30*S$12*$I33*'Op Rav'!$K$11 -> 0 | T39: =$I30*T$12*$I33*'Op Rav'!$K$11 -> 0 | U39: =$I30*U$12*$I33*'Op Rav'!$K$11 -> 0 | V39: =$I30*V$12*$I33*'Op Rav'!$K$11 -> 0 | W39: =$I30*W$12*$I33*'Op Rav'!$K$11 -> 0 | X39: =$I30*X$12*$I33*'Op Rav'!$K$11 -> 0 | Y39: =$I30*Y$12*$I33*'Op Rav'!$K$11 -> 0 | Z39: =$I30*Z$12*$I33*'Op Rav'!$K$11 -> 0 | AA39: =$I30*AA$12*$I33*'Op Rav'!$K$11 -> 0 | AB39: =$I30*AB$12*$I33*'Op Rav'!$K$11 -> 0 | AC39: =$I30*AC$12*$I33*'Op Rav'!$K$11 -> 0 | AD39: =$I30*AD$12*$I33*'Op Rav'!$K$11 -> 0 | AE39: =$I30*AE$12*$I33*'Op Rav'!$K$11 -> 0 | AF39: =$I30*AF$12*$I33*'Op Rav'!$K$11 -> 0 | AG39: =$I30*AG$12*$I33*'Op Rav'!$K$11 -> 0 | AH39: =$I30*AH$12*$I33*'Op Rav'!$K$11 -> 0 | AI39: =$I30*AI$12*$I33*'Op Rav'!$K$11 -> 0 | AJ39: =$I30*AJ$12*$I33*'Op Rav'!$K$11 -> 0 | AK39: =$I30*AK$12*$I33*'Op Rav'!$K$11 -> 0 | AL39: =$I30*AL$12*$I33*'Op Rav'!$K$11 -> 0 | AM39: =$I30*AM$12*$I33*'Op Rav'!$K$11 -> 0 | AN39: =$I30*AN$12*$I33*'Op Rav'!$K$11 -> 0 | AO39: =$I30*AO$12*$I33*'Op Rav'!$K$11 -> 0 | AP39: =$I30*AP$12*$I33*'Op Rav'!$K$11 -> 0 | AQ39: =$I30*AQ$12*$I33*'Op Rav'!$K$11 -> 0 | AR39: =$I30*AR$12*$I33*'Op Rav'!$K$11 -> 0 | AS39: =$I30*AS$12*$I33*'Op Rav'!$K$11 -> 0 | AT39: =$I30*AT$12*$I33*'Op Rav'!$K$11 -> 0 | AU39: =$I30*AU$12*$I33*'Op Rav'!$K$11 -> 0 | AV39: =$I30*AV$12*$I33*'Op Rav'!$K$11 -> 0 | AW39: =$I30*AW$12*$I33*'Op Rav'!$K$11 -> 0 | AX39: =$I30*AX$12*$I33*'Op Rav'!$K$11 -> 0
E40: Initial equity transaction costs | G40: =Inputs!$I$11 -> £m 19/20 prices | K40: =(1-$I30)*K$12*$I34*'Op Rav'!$K$11 -> 0 | L40: =(1-$I30)*L$12*$I34*'Op Rav'!$K$11 -> 0 | M40: =(1-$I30)*M$12*$I34*'Op Rav'!$K$11 -> 0 | N40: =(1-$I30)*N$12*$I34*'Op Rav'!$K$11 -> 0 | O40: =(1-$I30)*O$12*$I34*'Op Rav'!$K$11 -> 32.19413822 | P40: =(1-$I30)*P$12*$I34*'Op Rav'!$K$11 -> 0 | Q40: =(1-$I30)*Q$12*$I34*'Op Rav'!$K$11 -> 0 | R40: =(1-$I30)*R$12*$I34*'Op Rav'!$K$11 -> 0 | S40: =(1-$I30)*S$12*$I34*'Op Rav'!$K$11 -> 0 | T40: =(1-$I30)*T$12*$I34*'Op Rav'!$K$11 -> 0 | U40: =(1-$I30)*U$12*$I34*'Op Rav'!$K$11 -> 0 | V40: =(1-$I30)*V$12*$I34*'Op Rav'!$K$11 -> 0 | W40: =(1-$I30)*W$12*$I34*'Op Rav'!$K$11 -> 0 | X40: =(1-$I30)*X$12*$I34*'Op Rav'!$K$11 -> 0 | Y40: =(1-$I30)*Y$12*$I34*'Op Rav'!$K$11 -> 0 | Z40: =(1-$I30)*Z$12*$I34*'Op Rav'!$K$11 -> 0 | AA40: =(1-$I30)*AA$12*$I34*'Op Rav'!$K$11 -> 0 | AB40: =(1-$I30)*AB$12*$I34*'Op Rav'!$K$11 -> 0 | AC40: =(1-$I30)*AC$12*$I34*'Op Rav'!$K$11 -> 0 | AD40: =(1-$I30)*AD$12*$I34*'Op Rav'!$K$11 -> 0 | AE40: =(1-$I30)*AE$12*$I34*'Op Rav'!$K$11 -> 0 | AF40: =(1-$I30)*AF$12*$I34*'Op Rav'!$K$11 -> 0 | AG40: =(1-$I30)*AG$12*$I34*'Op Rav'!$K$11 -> 0 | AH40: =(1-$I30)*AH$12*$I34*'Op Rav'!$K$11 -> 0 | AI40: =(1-$I30)*AI$12*$I34*'Op Rav'!$K$11 -> 0 | AJ40: =(1-$I30)*AJ$12*$I34*'Op Rav'!$K$11 -> 0 | AK40: =(1-$I30)*AK$12*$I34*'Op Rav'!$K$11 -> 0 | AL40: =(1-$I30)*AL$12*$I34*'Op Rav'!$K$11 -> 0 | AM40: =(1-$I30)*AM$12*$I34*'Op Rav'!$K$11 -> 0 | AN40: =(1-$I30)*AN$12*$I34*'Op Rav'!$K$11 -> 0 | AO40: =(1-$I30)*AO$12*$I34*'Op Rav'!$K$11 -> 0 | AP40: =(1-$I30)*AP$12*$I34*'Op Rav'!$K$11 -> 0 | AQ40: =(1-$I30)*AQ$12*$I34*'Op Rav'!$K$11 -> 0 | AR40: =(1-$I30)*AR$12*$I34*'Op Rav'!$K$11 -> 0 | AS40: =(1-$I30)*AS$12*$I34*'Op Rav'!$K$11 -> 0 | AT40: =(1-$I30)*AT$12*$I34*'Op Rav'!$K$11 -> 0 | AU40: =(1-$I30)*AU$12*$I34*'Op Rav'!$K$11 -> 0 | AV40: =(1-$I30)*AV$12*$I34*'Op Rav'!$K$11 -> 0 | AW40: =(1-$I30)*AW$12*$I34*'Op Rav'!$K$11 -> 0 | AX40: =(1-$I30)*AX$12*$I34*'Op Rav'!$K$11 -> 0
E41: Final debt transaction costs | G41: =Inputs!$I$11 -> £m 19/20 prices | K41: =($I31-$I30)*'Op Rav'!$K$11*$I33*K$11 -> 0 | L41: =($I31-$I30)*'Op Rav'!$K$11*$I33*L$11 -> 0 | M41: =($I31-$I30)*'Op Rav'!$K$11*$I33*M$11 -> 0 | N41: =($I31-$I30)*'Op Rav'!$K$11*$I33*N$11 -> 0 | O41: =($I31-$I30)*'Op Rav'!$K$11*$I33*O$11 -> 0 | P41: =($I31-$I30)*'Op Rav'!$K$11*$I33*P$11 -> 0 | Q41: =($I31-$I30)*'Op Rav'!$K$11*$I33*Q$11 -> 0 | R41: =($I31-$I30)*'Op Rav'!$K$11*$I33*R$11 -> 0 | S41: =($I31-$I30)*'Op Rav'!$K$11*$I33*S$11 -> 0 | T41: =($I31-$I30)*'Op Rav'!$K$11*$I33*T$11 -> 0 | U41: =($I31-$I30)*'Op Rav'!$K$11*$I33*U$11 -> 0 | V41: =($I31-$I30)*'Op Rav'!$K$11*$I33*V$11 -> 5.600805998 | W41: =($I31-$I30)*'Op Rav'!$K$11*$I33*W$11 -> 0 | X41: =($I31-$I30)*'Op Rav'!$K$11*$I33*X$11 -> 0 | Y41: =($I31-$I30)*'Op Rav'!$K$11*$I33*Y$11 -> 0 | Z41: =($I31-$I30)*'Op Rav'!$K$11*$I33*Z$11 -> 0 | AA41: =($I31-$I30)*'Op Rav'!$K$11*$I33*AA$11 -> 0 | AB41: =($I31-$I30)*'Op Rav'!$K$11*$I33*AB$11 -> 0 | AC41: =($I31-$I30)*'Op Rav'!$K$11*$I33*AC$11 -> 0 | AD41: =($I31-$I30)*'Op Rav'!$K$11*$I33*AD$11 -> 0 | AE41: =($I31-$I30)*'Op Rav'!$K$11*$I33*AE$11 -> 0 | AF41: =($I31-$I30)*'Op Rav'!$K$11*$I33*AF$11 -> 0 | AG41: =($I31-$I30)*'Op Rav'!$K$11*$I33*AG$11 -> 0 | AH41: =($I31-$I30)*'Op Rav'!$K$11*$I33*AH$11 -> 0 | AI41: =($I31-$I30)*'Op Rav'!$K$11*$I33*AI$11 -> 0 | AJ41: =($I31-$I30)*'Op Rav'!$K$11*$I33*AJ$11 -> 0 | AK41: =($I31-$I30)*'Op Rav'!$K$11*$I33*AK$11 -> 0 | AL41: =($I31-$I30)*'Op Rav'!$K$11*$I33*AL$11 -> 0 | AM41: =($I31-$I30)*'Op Rav'!$K$11*$I33*AM$11 -> 0 | AN41: =($I31-$I30)*'Op Rav'!$K$11*$I33*AN$11 -> 0 | AO41: =($I31-$I30)*'Op Rav'!$K$11*$I33*AO$11 -> 0 | AP41: =($I31-$I30)*'Op Rav'!$K$11*$I33*AP$11 -> 0 | AQ41: =($I31-$I30)*'Op Rav'!$K$11*$I33*AQ$11 -> 0 | AR41: =($I31-$I30)*'Op Rav'!$K$11*$I33*AR$11 -> 0 | AS41: =($I31-$I30)*'Op Rav'!$K$11*$I33*AS$11 -> 0 | AT41: =($I31-$I30)*'Op Rav'!$K$11*$I33*AT$11 -> 0 | AU41: =($I31-$I30)*'Op Rav'!$K$11*$I33*AU$11 -> 0 | AV41: =($I31-$I30)*'Op Rav'!$K$11*$I33*AV$11 -> 0 | AW41: =($I31-$I30)*'Op Rav'!$K$11*$I33*AW$11 -> 0 | AX41: =($I31-$I30)*'Op Rav'!$K$11*$I33*AX$11 -> 0
E42: Final equity transaction costs | G42: =Inputs!$I$11 -> £m 19/20 prices | K42: =($I30-$I31)*'Op Rav'!$K$11*$I34*K$11 -> 0 | L42: =($I30-$I31)*'Op Rav'!$K$11*$I34*L$11 -> 0 | M42: =($I30-$I31)*'Op Rav'!$K$11*$I34*M$11 -> 0 | N42: =($I30-$I31)*'Op Rav'!$K$11*$I34*N$11 -> 0 | O42: =($I30-$I31)*'Op Rav'!$K$11*$I34*O$11 -> 0 | P42: =($I30-$I31)*'Op Rav'!$K$11*$I34*P$11 -> 0 | Q42: =($I30-$I31)*'Op Rav'!$K$11*$I34*Q$11 -> 0 | R42: =($I30-$I31)*'Op Rav'!$K$11*$I34*R$11 -> 0 | S42: =($I30-$I31)*'Op Rav'!$K$11*$I34*S$11 -> 0 | T42: =($I30-$I31)*'Op Rav'!$K$11*$I34*T$11 -> 0 | U42: =($I30-$I31)*'Op Rav'!$K$11*$I34*U$11 -> 0 | V42: =($I30-$I31)*'Op Rav'!$K$11*$I34*V$11 -> -11.201612 | W42: =($I30-$I31)*'Op Rav'!$K$11*$I34*W$11 -> 0 | X42: =($I30-$I31)*'Op Rav'!$K$11*$I34*X$11 -> 0 | Y42: =($I30-$I31)*'Op Rav'!$K$11*$I34*Y$11 -> 0 | Z42: =($I30-$I31)*'Op Rav'!$K$11*$I34*Z$11 -> 0 | AA42: =($I30-$I31)*'Op Rav'!$K$11*$I34*AA$11 -> 0 | AB42: =($I30-$I31)*'Op Rav'!$K$11*$I34*AB$11 -> 0 | AC42: =($I30-$I31)*'Op Rav'!$K$11*$I34*AC$11 -> 0 | AD42: =($I30-$I31)*'Op Rav'!$K$11*$I34*AD$11 -> 0 | AE42: =($I30-$I31)*'Op Rav'!$K$11*$I34*AE$11 -> 0 | AF42: =($I30-$I31)*'Op Rav'!$K$11*$I34*AF$11 -> 0 | AG42: =($I30-$I31)*'Op Rav'!$K$11*$I34*AG$11 -> 0 | AH42: =($I30-$I31)*'Op Rav'!$K$11*$I34*AH$11 -> 0 | AI42: =($I30-$I31)*'Op Rav'!$K$11*$I34*AI$11 -> 0 | AJ42: =($I30-$I31)*'Op Rav'!$K$11*$I34*AJ$11 -> 0 | AK42: =($I30-$I31)*'Op Rav'!$K$11*$I34*AK$11 -> 0 | AL42: =($I30-$I31)*'Op Rav'!$K$11*$I34*AL$11 -> 0 | AM42: =($I30-$I31)*'Op Rav'!$K$11*$I34*AM$11 -> 0 | AN42: =($I30-$I31)*'Op Rav'!$K$11*$I34*AN$11 -> 0 | AO42: =($I30-$I31)*'Op Rav'!$K$11*$I34*AO$11 -> 0 | AP42: =($I30-$I31)*'Op Rav'!$K$11*$I34*AP$11 -> 0 | AQ42: =($I30-$I31)*'Op Rav'!$K$11*$I34*AQ$11 -> 0 | AR42: =($I30-$I31)*'Op Rav'!$K$11*$I34*AR$11 -> 0 | AS42: =($I30-$I31)*'Op Rav'!$K$11*$I34*AS$11 -> 0 | AT42: =($I30-$I31)*'Op Rav'!$K$11*$I34*AT$11 -> 0 | AU42: =($I30-$I31)*'Op Rav'!$K$11*$I34*AU$11 -> 0 | AV42: =($I30-$I31)*'Op Rav'!$K$11*$I34*AV$11 -> 0 | AW42: =($I30-$I31)*'Op Rav'!$K$11*$I34*AW$11 -> 0 | AX42: =($I30-$I31)*'Op Rav'!$K$11*$I34*AX$11 -> 0
E43: Transaction costs - annual movement | G43: =Inputs!$I$11 -> £m 19/20 prices | K43: =SUM(K39:K42) -> 0 | L43: 0 | M43: 0 | N43: 0 | O43: 37.08959534 | P43: 0 | Q43: 0 | R43: =SUM(R39:R42) -> 0 | S43: 0 | T43: 0 | U43: 0 | V43: -5.600805998 | W43: 0 | X43: 0 | Y43: 0 | Z43: 0 | AA43: 0 | AB43: 0 | AC43: 0 | AD43: 0 | AE43: 0 | AF43: 0 | AG43: 0 | AH43: 0 | AI43: 0 | AJ43: 0 | AK43: 0 | AL43: 0 | AM43: 0 | AN43: 0 | AO43: 0 | AP43: 0 | AQ43: 0 | AR43: 0 | AS43: 0 | AT43: 0 | AU43: =SUM(AU39:AU42) -> 0 | AV43: 0 | AW43: 0 | AX43: 0
E44: Capitalised IDC on transaction costs | G44: =Inputs!$I$11 -> £m 19/20 prices | K44: =((1+$I18)^K8-1)*(K38+(K39+K40+K41+K42)/(2+$I18)) -> 0 | L44: =((1+$I18)^L8-1)*(L38+(L39+L40+L41+L42)/(2+$I18)) -> 0 | M44: 0 | N44: 0 | O44: 0.7966305766 | P44: 1.663205318 | Q44: 1.736220031 | R44: 1.812440091 | S44: 1.892006211 | T44: 1.975065283 | U44: 1.535147258 | V44: 0 | W44: 0 | X44: 0 | Y44: 0 | Z44: 0 | AA44: 0 | AB44: 0 | AC44: 0 | AD44: 0 | AE44: 0 | AF44: 0 | AG44: 0 | AH44: 0 | AI44: 0 | AJ44: 0 | AK44: 0 | AL44: 0 | AM44: 0 | AN44: 0 | AO44: 0 | AP44: 0 | AQ44: 0 | AR44: 0 | AS44: 0 | AT44: 0 | AU44: 0 | AV44: 0 | AW44: 0 | AX44: 0
E45: Transfer to operational RAV | G45: =Inputs!$I$11 -> £m 19/20 prices | K45: =-SUM(K38,K43,K44)*K$11 -> 0 | L45: 0 | M45: 0 | N45: 0 | O45: 0 | P45: 0 | Q45: 0 | R45: 0 | S45: 0 | T45: 0 | U45: 0 | V45: -42.89950411 | W45: 0 | X45: 0 | Y45: 0 | Z45: 0 | AA45: 0 | AB45: 0 | AC45: 0 | AD45: 0 | AE45: 0 | AF45: 0 | AG45: 0 | AH45: 0 | AI45: 0 | AJ45: 0 | AK45: 0 | AL45: 0 | AM45: 0 | AN45: 0 | AO45: 0 | AP45: 0 | AQ45: 0 | AR45: 0 | AS45: 0 | AT45: 0 | AU45: 0 | AV45: 0 | AW45: 0 | AX45: 0
E46: Transaction costs - closing | G46: =Inputs!$I$11 -> £m 19/20 prices | K46: =SUM(K45,K44,K43,K38) -> 0 | L46: =SUM(L45,L44,L43,L38) -> 0 | M46: 0 | N46: 0 | O46: 37.88622592 | P46: 39.54943124 | Q46: 41.28565127 | R46: 43.09809136 | S46: 44.99009757 | T46: 46.96516285 | U46: 48.50031011 | V46: 0 | W46: 0 | X46: 0 | Y46: 0 | Z46: 0 | AA46: 0 | AB46: 0 | AC46: 0 | AD46: 0 | AE46: 0 | AF46: 0 | AG46: 0 | AH46: 0 | AI46: 0 | AJ46: 0 | AK46: 0 | AL46: 0 | AM46: 0 | AN46: 0 | AO46: 0 | AP46: 0 | AQ46: 0 | AR46: 0 | AS46: 0 | AT46: 0 | AU46: 0 | AV46: 0 | AW46: 0 | AX46: 0
B48: End of sheet

Sheet Op Rav
A1: Op RAV | H1: Licence
E2: Parameter | G2: Units | H2: Terminology | I2: Constant | K2: Annual values
E3: Project year | K3: Year 1 | L3: Year 2 | M3: Year 3 | N3: Year 4 | O3: Year 5 | P3: Year 6 | Q3: Year 7 | R3: Year 8 | S3: Year 9 | T3: Year 10 | U3: Year 11 | V3: Year 12 | W3: Year 13 | X3: Year 14 | Y3: Year 15 | Z3: Year 16 | AA3: Year 17 | AB3: Year 18 | AC3: Year 19 | AD3: Year 20 | AE3: Year 21 | AF3: Year 22 | AG3: Year 23 | AH3: Year 24 | AI3: Year 25
B5: RAV
C7: Operational
E9: Opening operational RAV (before transfers) | G9: =Inputs!$I$11 -> £m 19/20 prices | K9: =J15 -> 0 | L9: 847.2965311 | M9: 811.992509 | N9: 776.6884869 | O9: 741.3844647 | P9: 706.0804426 | Q9: 670.7764205 | R9: 635.4723983 | S9: 600.1683762 | T9: 564.8643541 | U9: 529.560332 | V9: 494.2563098 | W9: 458.9522877 | X9: 423.6482656 | Y9: 388.3442434 | Z9: 381.8123939 | AA9: 343.6311545 | AB9: 305.4499151 | AC9: 267.2686757 | AD9: 229.0874363 | AE9: 190.9061969 | AF9: 152.7249576 | AG9: 114.5437182 | AH9: 76.36247878 | AI9: 38.18123939
E10: Transfers of transaction costs | G10: =Inputs!$I$11 -> £m 19/20 prices | K10: =-SUM(Finance!K45:AX45) -> 42.89950411
E11: Transfers of pre-operational RAV | G11: =Inputs!$I$11 -> £m 19/20 prices | K11: =-SUM('Pre Op RAV'!K23:AX23) -> 839.7010492
E12: Opening operational RAV (after transfers) | G12: =Inputs!$I$11 -> £m 19/20 prices | K12: =SUM(K9:K11) -> 882.6005533 | L12: =SUM(L9:L11) -> 847.2965311 | M12: =SUM(M9:M11) -> 811.992509 | N12: 776.6884869 | O12: 741.3844647 | P12: 706.0804426 | Q12: 670.7764205 | R12: 635.4723983 | S12: 600.1683762 | T12: 564.8643541 | U12: 529.560332 | V12: 494.2563098 | W12: 458.9522877 | X12: 423.6482656 | Y12: 388.3442434 | Z12: 381.8123939 | AA12: 343.6311545 | AB12: 305.4499151 | AC12: 267.2686757 | AD12: 229.0874363 | AE12: 190.9061969 | AF12: 152.7249576 | AG12: 114.5437182 | AH12: 76.36247878 | AI12: 38.18123939
E13: Replacement Capex | G13: =Inputs!$I$11 -> £m 19/20 prices | K13: =Inputs!K59 -> 0 | L13: =Inputs!L59 -> 0 | M13: =Inputs!M59 -> 0 | N13: =Inputs!N59 -> 0 | O13: =Inputs!O59 -> 0 | P13: =Inputs!P59 -> 0 | Q13: =Inputs!Q59 -> 0 | R13: =Inputs!R59 -> 0 | S13: =Inputs!S59 -> 0 | T13: =Inputs!T59 -> 0 | U13: =Inputs!U59 -> 0 | V13: =Inputs!V59 -> 0 | W13: =Inputs!W59 -> 0 | X13: =Inputs!X59 -> 0 | Y13: =Inputs!Y59 -> 28.77217259 | Z13: =Inputs!Z59 -> 0 | AA13: =Inputs!AA59 -> 0 | AB13: =Inputs!AB59 -> 0 | AC13: =Inputs!AC59 -> 0 | AD13: =Inputs!AD59 -> 0 | AE13: =Inputs!AE59 -> 0 | AF13: =Inputs!AF59 -> 0 | AG13: =Inputs!AG59 -> 0 | AH13: =Inputs!AH59 -> 0 | AI13: =Inputs!AI59 -> 0
E14: Depreciation (negative) | G14: =Inputs!$I$11 -> £m 19/20 prices | K14: =- K25 -> -35.30402213 | L14: =- L25 -> -35.30402213 | M14: =- M25 -> -35.30402213 | N14: -35.30402213 | O14: -35.30402213 | P14: -35.30402213 | Q14: -35.30402213 | R14: -35.30402213 | S14: -35.30402213 | T14: -35.30402213 | U14: -35.30402213 | V14: -35.30402213 | W14: -35.30402213 | X14: -35.30402213 | Y14: -35.30402213 | Z14: -38.18123939 | AA14: -38.18123939 | AB14: -38.18123939 | AC14: -38.18123939 | AD14: -38.18123939 | AE14: -38.18123939 | AF14: -38.18123939 | AG14: -38.18123939 | AH14: -38.18123939 | AI14: -38.18123939
E15: Closing operational RAV | G15: =Inputs!$I$11 -> £m 19/20 prices | K15: =SUM(K12:K14) -> 847.2965311 | L15: 811.992509 | M15: 776.6884869 | N15: 741.3844647 | O15: 706.0804426 | P15: 670.7764205 | Q15: 635.4723983 | R15: 600.1683762 | S15: 564.8643541 | T15: 529.560332 | U15: 494.2563098 | V15: 458.9522877 | W15: 423.6482656 | X15: 388.3442434 | Y15: 381.8123939 | Z15: 343.6311545 | AA15: 305.4499151 | AB15: 267.2686757 | AC15: 229.0874363 | AD15: 190.9061969 | AE15: 152.7249576 | AF15: 114.5437182 | AG15: 76.36247878 | AH15: 38.18123939 | AI15: 0
E17: Average operational RAV | G17: =Inputs!$I$11 -> £m 19/20 prices | K17: =AVERAGE(K12, K15) -> 864.9485422 | L17: =AVERAGE(L12, L15) -> 829.6445201 | M17: =AVERAGE(M12, M15) -> 794.3404979 | N17: 759.0364758 | O17: 723.7324537 | P17: 688.4284315 | Q17: 653.1244094 | R17: 617.8203873 | S17: 582.5163652 | T17: 547.212343 | U17: 511.9083209 | V17: 476.6042988 | W17: 441.3002766 | X17: 405.9962545 | Y17: 385.0783187 | Z17: 362.7217742 | AA17: =AVERAGE(AA12, AA15) -> 324.5405348 | AB17: 286.3592954 | AC17: 248.178056 | AD17: 209.9968166 | AE17: 171.8155773 | AF17: 133.6343379 | AG17: 95.45309847 | AH17: 57.27185908 | AI17: 19.09061969
B19: Operational RAV depreciation
E21: Number of operational years | G21: full years | I21: =Inputs!I89 -> 25
E22: Years remaining until end of operational period | G22: full years | K22: =I21 -> 25 | L22: =+K22-1 -> 24 | M22: =+L22-1 -> 23 | N22: 22 | O22: 21 | P22: 20 | Q22: 19 | R22: 18 | S22: 17 | T22: 16 | U22: 15 | V22: 14 | W22: 13 | X22: 12 | Y22: 11 | Z22: 10 | AA22: 9 | AB22: 8 | AC22: 7 | AD22: 6 | AE22: 5 | AF22: 4 | AG22: 3 | AH22: 2 | AI22: 1
E23: Year is before end of operational period | G23: flag | K23: =K22 > 0 -> TRUE | L23: TRUE | M23: TRUE | N23: TRUE | O23: TRUE | P23: TRUE | Q23: TRUE | R23: TRUE | S23: TRUE | T23: TRUE | U23: TRUE | V23: TRUE | W23: TRUE | X23: TRUE | Y23: TRUE | Z23: TRUE | AA23: TRUE | AB23: TRUE | AC23: TRUE | AD23: TRUE | AE23: TRUE | AF23: TRUE | AG23: TRUE | AH23: TRUE | AI23: TRUE
E25: RAV depreciation | G25: =Inputs!$I$11 -> £m 19/20 prices | K25: =IF(K23, IF(K22=1,SUM(K12:K13),K12 / K22), 0) -> 35.30402213 | L25: =IF(L23, IF(L22=1,SUM(L12:L13),L12 / L22), 0) -> 35.30402213 | M25: 35.30402213 | N25: 35.30402213 | O25: 35.30402213 | P25: 35.30402213 | Q25: 35.30402213 | R25: 35.30402213 | S25: 35.30402213 | T25: 35.30402213 | U25: 35.30402213 | V25: 35.30402213 | W25: 35.30402213 | X25: 35.30402213 | Y25: 35.30402213 | Z25: 38.18123939 | AA25: 38.18123939 | AB25: 38.18123939 | AC25: 38.18123939 | AD25: 38.18123939 | AE25: 38.18123939 | AF25: 38.18123939 | AG25: 38.18123939 | AH25: 38.18123939 | AI25: 38.18123939
E27: Depreciation equal to additions | G27: check | I27: =IF(ABS(SUM('Pre Op RAV'!K18:AX21,Finance!K39:AX42,Finance!K44:AX44,K13:AI13)-SUM(K25:AI25))<0.00000001,"TRUE","FALSE") -> TRUE
B29: Operational RAV return
E31: Cap return rate | G31: =Inputs!G68 -> real annual % | I31: =Inputs!I68 -> 0.0823
E32: Floor return rate | G32: =Inputs!G69 -> real annual % | I32: =Inputs!I69 -> 0.0017
E34: Opening operational RAV (after transfers) | G34: =Inputs!$I$11 -> £m 19/20 prices | K34: =K12 -> 882.6005533 | L34: 847.2965311 | M34: 811.992509 | N34: 776.6884869 | O34: 741.3844647 | P34: 706.0804426 | Q34: 670.7764205 | R34: 635.4723983 | S34: 600.1683762 | T34: 564.8643541 | U34: 529.560332 | V34: 494.2563098 | W34: 458.9522877 | X34: 423.6482656 | Y34: 388.3442434 | Z34: 381.8123939 | AA34: 343.6311545 | AB34: 305.4499151 | AC34: 267.2686757 | AD34: 229.0874363 | AE34: 190.9061969 | AF34: 152.7249576 | AG34: 114.5437182 | AH34: 76.36247878 | AI34: 38.18123939
E35: Closing operational RAV | G35: =Inputs!$I$11 -> £m 19/20 prices | K35: =K15 -> 847.2965311 | L35: 811.992509 | M35: 776.6884869 | N35: 741.3844647 | O35: 706.0804426 | P35: 670.7764205 | Q35: 635.4723983 | R35: 600.1683762 | S35: 564.8643541 | T35: 529.560332 | U35: 494.2563098 | V35: 458.9522877 | W35: 423.6482656 | X35: 388.3442434 | Y35: 381.8123939 | Z35: 343.6311545 | AA35: 305.4499151 | AB35: 267.2686757 | AC35: 229.0874363 | AD35: 190.9061969 | AE35: 152.7249576 | AF35: 114.5437182 | AG35: 76.36247878 | AH35: 38.18123939 | AI35: 0
E37: NPV neutral return base (cap) | G37: =Inputs!$I$11 -> £m 19/20 prices | K37: =0.5 * K$34 + 0.5 * K$35 / (1 + $I31) -> 832.7335812 | L37: =0.5 * L$34 + 0.5 * L$35 / (1 + $I31) -> 798.7718491 | M37: 764.810117 | N37: 730.848385 | O37: 696.8866529 | P37: 662.9249208 | Q37: 628.9631887 | R37: 595.0014566 | S37: 561.0397245 | T37: 527.0779924 | U37: 493.1162603 | V37: 459.1545282 | W37: 425.1927961 | X37: 391.2310641 | Y37: 370.5614749 | Z37: 349.6566148 | AA37: 312.9270598 | AB37: 276.1975048 | AC37: 239.4679498 | AD37: 202.7383948 | AE37: 166.0088397 | AF37: 129.2792847 | AG37: 92.54972972 | AH37: 55.82017471 | AI37: 19.09061969
E38: NPV neutral return base (floor) | G38: =Inputs!$I$11 -> £m 19/20 prices | K38: =0.5 * K$34 + 0.5 * K$35 / (1 + $I32) -> 864.2295624 | L38: 828.9554978 | M38: 793.6814331 | N38: 758.4073685 | O38: 723.1333039 | P38: 687.8592392 | Q38: 652.5851746 | R38: 617.3111099 | S38: 582.0370453 | T38: 546.7629807 | U38: 511.488916 | V38: 476.2148514 | W38: 440.9407867 | X38: 405.6667221 | Y38: 384.7543289 | Z38: 362.4301834 | AA38: 324.281343 | AB38: 286.1325026 | AC38: 247.9836622 | AD38: 209.8348218 | AE38: 171.6859813 | AF38: 133.5371409 | AG38: 95.38830052 | AH38: 57.23946011 | AI38: 19.09061969
E40: Return (cap) | G40: =Inputs!$I$11 -> £m 19/20 prices | K40: =K37 * $I31 -> 68.53397374 | L40: 65.73892318 | M40: 62.94387263 | N40: 60.14882208 | O40: 57.35377153 | P40: 54.55872098 | Q40: 51.76367043 | R40: 48.96861988 | S40: 46.17356933 | T40: 43.37851878 | U40: 40.58346822 | V40: 37.78841767 | W40: 34.99336712 | X40: 32.19831657 | Y40: 30.49720938 | Z40: 28.7767394 | AA40: 25.75389702 | AB40: 22.73105464 | AC40: 19.70821227 | AD40: 16.68536989 | AE40: 13.66252751 | AF40: 10.63968513 | AG40: 7.616842756 | AH40: 4.594000378 | AI40: 1.571158001
E41: Return (floor) | G41: =Inputs!$I$11 -> £m 19/20 prices | K41: =K38 * $I32 -> 1.469190256 | L41: 1.409224346 | M41: 1.349258436 | N41: 1.289292526 | O41: 1.229326617 | P41: 1.169360707 | Q41: 1.109394797 | R41: 1.049428887 | S41: 0.989462977 | T41: 0.9294970671 | U41: 0.8695311572 | V41: 0.8095652473 | W41: 0.7495993375 | X41: 0.6896334276 | Y41: 0.6540823591 | Z41: 0.6161313118 | AA41: 0.5512782831 | AB41: 0.4864252544 | AC41: 0.4215722257 | AD41: 0.356719197 | AE41: 0.2918661683 | AF41: 0.2270131396 | AG41: 0.1621601109 | AH41: 0.09730708218 | AI41: 0.03245405348
B43: End of sheet

Sheet Allowances Cap
A1: Allowances Cap | H1: Licence
E2: Parameter | G2: Units | H2: Terminology | I2: Constant | K2: Annual values
E3: Project year | K3: Year 1 | L3: Year 2 | M3: Year 3 | N3: Year 4 | O3: Year 5 | P3: Year 6 | Q3: Year 7 | R3: Year 8 | S3: Year 9 | T3: Year 10 | U3: Year 11 | V3: Year 12 | W3: Year 13 | X3: Year 14 | Y3: Year 15 | Z3: Year 16 | AA3: Year 17 | AB3: Year 18 | AC3: Year 19 | AD3: Year 20 | AE3: Year 21 | AF3: Year 22 | AG3: Year 23 | AH3: Year 24 | AI3: Year 25
E4: Year | K4: 1 | L4: =+K4+1 -> 2 | M4: =+L4+1 -> 3 | N4: 4 | O4: 5 | P4: 6 | Q4: 7 | R4: 8 | S4: 9 | T4: 10 | U4: 11 | V4: 12 | W4: 13 | X4: 14 | Y4: 15 | Z4: 16 | AA4: 17 | AB4: 18 | AC4: 19 | AD4: 20 | AE4: 21 | AF4: 22 | AG4: 23 | AH4: 24 | AI4: 25
B6: Unprofiled allowances except tax (cap)
E8: Controllable Opex | G8: =Inputs!$I$11 -> £m 19/20 prices | K8: =Inputs!K61 -> 12.08670228 | L8: =Inputs!L61 -> 12.08670228 | M8: =Inputs!M61 -> 12.08670228 | N8: =Inputs!N61 -> 12.08670228 | O8: =Inputs!O61 -> 12.08670228 | P8: =Inputs!P61 -> 12.08670228 | Q8: =Inputs!Q61 -> 12.08670228 | R8: =Inputs!R61 -> 12.08670228 | S8: =Inputs!S61 -> 12.08670228 | T8: =Inputs!T61 -> 12.08670228 | U8: =Inputs!U61 -> 12.08670228 | V8: =Inputs!V61 -> 12.08670228 | W8: =Inputs!W61 -> 12.08670228 | X8: =Inputs!X61 -> 12.08670228 | Y8: =Inputs!Y61 -> 12.08670228 | Z8: =Inputs!Z61 -> 12.08670228 | AA8: =Inputs!AA61 -> 12.08670228 | AB8: =Inputs!AB61 -> 12.08670228 | AC8: =Inputs!AC61 -> 12.08670228 | AD8: =Inputs!AD61 -> 12.08670228 | AE8: =Inputs!AE61 -> 12.08670228 | AF8: =Inputs!AF61 -> 12.08670228 | AG8: =Inputs!AG61 -> 12.08670228 | AH8: =Inputs!AH61 -> 12.08670228 | AI8: =Inputs!AI61 -> 12.08670228
E9: Non-controllable Opex (baseline) | G9: =Inputs!$I$11 -> £m 19/20 prices | K9: =Inputs!K62 -> 6.131085528 | L9: =Inputs!L62 -> 6.131085528 | M9: =Inputs!M62 -> 6.131085528 | N9: =Inputs!N62 -> 6.131085528 | O9: =Inputs!O62 -> 6.131085528 | P9: =Inputs!P62 -> 6.131085528 | Q9: =Inputs!Q62 -> 6.131085528 | R9: =Inputs!R62 -> 6.131085528 | S9: =Inputs!S62 -> 6.131085528 | T9: =Inputs!T62 -> 6.131085528 | U9: =Inputs!U62 -> 6.131085528 | V9: =Inputs!V62 -> 6.131085528 | W9: =Inputs!W62 -> 6.131085528 | X9: =Inputs!X62 -> 6.131085528 | Y9: =Inputs!Y62 -> 6.131085528 | Z9: =Inputs!Z62 -> 6.131085528 | AA9: =Inputs!AA62 -> 6.131085528 | AB9: =Inputs!AB62 -> 6.131085528 | AC9: =Inputs!AC62 -> 6.131085528 | AD9: =Inputs!AD62 -> 6.131085528 | AE9: =Inputs!AE62 -> 6.131085528 | AF9: =Inputs!AF62 -> 6.131085528 | AG9: =Inputs!AG62 -> 6.131085528 | AH9: =Inputs!AH62 -> 6.131085528 | AI9: =Inputs!AI62 -> 6.131085528
E10: Decommissioning baseline | G10: =Inputs!$I$11 -> £m 19/20 prices | K10: =Inputs!K60 -> 0 | L10: =Inputs!L60 -> 0 | M10: =Inputs!M60 -> 0 | N10: =Inputs!N60 -> 0 | O10: =Inputs!O60 -> 0 | P10: =Inputs!P60 -> 0 | Q10: =Inputs!Q60 -> 0 | R10: =Inputs!R60 -> 0 | S10: =Inputs!S60 -> 0 | T10: =Inputs!T60 -> 0 | U10: =Inputs!U60 -> 0 | V10: =Inputs!V60 -> 0 | W10: =Inputs!W60 -> 0 | X10: =Inputs!X60 -> 0 | Y10: =Inputs!Y60 -> 0 | Z10: =Inputs!Z60 -> 0 | AA10: =Inputs!AA60 -> 0 | AB10: =Inputs!AB60 -> 0 | AC10: =Inputs!AC60 -> 0 | AD10: =Inputs!AD60 -> 0 | AE10: =Inputs!AE60 -> 0 | AF10: =Inputs!AF60 -> 0 | AG10: =Inputs!AG60 -> 0 | AH10: =Inputs!AH60 -> 0 | AI10: =Inputs!AI60 -> 86.1138831
E11: RAV depreciation | G11: =Inputs!$I$11 -> £m 19/20 prices | K11: ='Op Rav'!K25 -> 35.30402213 | L11: ='Op Rav'!L25 -> 35.30402213 | M11: ='Op Rav'!M25 -> 35.30402213 | N11: ='Op Rav'!N25 -> 35.30402213 | O11: ='Op Rav'!O25 -> 35.30402213 | P11: ='Op Rav'!P25 -> 35.30402213 | Q11: ='Op Rav'!Q25 -> 35.30402213 | R11: ='Op Rav'!R25 -> 35.30402213 | S11: ='Op Rav'!S25 -> 35.30402213 | T11: ='Op Rav'!T25 -> 35.30402213 | U11: ='Op Rav'!U25 -> 35.30402213 | V11: ='Op Rav'!V25 -> 35.30402213 | W11: ='Op Rav'!W25 -> 35.30402213 | X11: ='Op Rav'!X25 -> 35.30402213 | Y11: ='Op Rav'!Y25 -> 35.30402213 | Z11: ='Op Rav'!Z25 -> 38.18123939 | AA11: ='Op Rav'!AA25 -> 38.18123939 | AB11: ='Op Rav'!AB25 -> 38.18123939 | AC11: ='Op Rav'!AC25 -> 38.18123939 | AD11: ='Op Rav'!AD25 -> 38.18123939 | AE11: ='Op Rav'!AE25 -> 38.18123939 | AF11: ='Op Rav'!AF25 -> 38.18123939 | AG11: ='Op Rav'!AG25 -> 38.18123939 | AH11: ='Op Rav'!AH25 -> 38.18123939 | AI11: ='Op Rav'!AI25 -> 38.18123939
E12: Return (cap) | G12: =Inputs!$I$11 -> £m 19/20 prices | K12: ='Op Rav'!K40 -> 68.53397374 | L12: ='Op Rav'!L40 -> 65.73892318 | M12: ='Op Rav'!M40 -> 62.94387263 | N12: ='Op Rav'!N40 -> 60.14882208 | O12: ='Op Rav'!O40 -> 57.35377153 | P12: ='Op Rav'!P40 -> 54.55872098 | Q12: ='Op Rav'!Q40 -> 51.76367043 | R12: ='Op Rav'!R40 -> 48.96861988 | S12: ='Op Rav'!S40 -> 46.17356933 | T12: ='Op Rav'!T40 -> 43.37851878 | U12: ='Op Rav'!U40 -> 40.58346822 | V12: ='Op Rav'!V40 -> 37.78841767 | W12: ='Op Rav'!W40 -> 34.99336712 | X12: ='Op Rav'!X40 -> 32.19831657 | Y12: ='Op Rav'!Y40 -> 30.49720938 | Z12: ='Op Rav'!Z40 -> 28.7767394 | AA12: ='Op Rav'!AA40 -> 25.75389702 | AB12: ='Op Rav'!AB40 -> 22.73105464 | AC12: ='Op Rav'!AC40 -> 19.70821227 | AD12: ='Op Rav'!AD40 -> 16.68536989 | AE12: ='Op Rav'!AE40 -> 13.66252751 | AF12: ='Op Rav'!AF40 -> 10.63968513 | AG12: ='Op Rav'!AG40 -> 7.616842756 | AH12: ='Op Rav'!AH40 -> 4.594000378 | AI12: ='Op Rav'!AI40 -> 1.571158001
E13: Unprofiled allowances except tax (cap) | G13: =Inputs!$I$11 -> £m 19/20 prices | K13: =SUM(K8:K12) -> 122.0557837 | L13: =SUM(L8:L12) -> 119.2607331 | M13: 116.4656826 | N13: 113.670632 | O13: 110.8755815 | P13: 108.0805309 | Q13: 105.2854804 | R13: 102.4904298 | S13: 99.69537926 | T13: 96.90032871 | U13: 94.10527816 | V13: 91.31022761 | W13: 88.51517706 | X13: 85.72012651 | Y13: 84.01901932 | Z13: 85.17576659 | AA13: 82.15292422 | AB13: 79.13008184 | AC13: 76.10723946 | AD13: 73.08439708 | AE13: 70.06155471 | AF13: 67.03871233 | AG13: 64.01586995 | AH13: 60.99302757 | AI13: 144.0840683
B15: Profiled allowances except tax (cap)
C17: Annuity parameters
E19: Cap return rate | G19: =Inputs!G68 -> real annual % | I19: =Inputs!I68 -> 0.0823
E20: Number of operational years | G20: =Inputs!G89 -> full years | I20: =Inputs!I89 -> 25
E21: Annuity factor (cap) | G21: scalar | I21: =I19 / (1 - (1 + I19)^(-I20)) -> 0.09552605702
E23: Year is within operational period | G23: flag | K23: =AND(K4 > 0, K4<= $I20) -> TRUE | L23: TRUE | M23: TRUE | N23: TRUE | O23: TRUE | P23: TRUE | Q23: TRUE | R23: TRUE | S23: TRUE | T23: TRUE | U23: TRUE | V23: TRUE | W23: TRUE | X23: TRUE | Y23: TRUE | Z23: TRUE | AA23: TRUE | AB23: TRUE | AC23: TRUE | AD23: TRUE | AE23: TRUE | AF23: TRUE | AG23: TRUE | AH23: TRUE | AI23: TRUE
E24: Discount factor to start of operational period (cap) | G24: scalar | K24: =(1 + $I19) ^ - K4 -> 0.9239582371 | L24: 0.8536988239 | M24: 0.7887820603 | N24: 0.7288016819 | O24: 0.6733823172 | P24: 0.6221771387 | Q24: 0.5748656922 | R24: 0.5311518915 | S24: 0.4907621653 | T24: 0.4534437451 | U24: 0.4189630833 | V24: 0.3871043919 | W24: 0.3576682915 | X24: 0.3304705641 | Y24: 0.3053409998 | Z24: 0.2821223319 | AA24: 0.2606692524 | AB24: 0.2408475029 | AC24: 0.2225330342 | AD24: 0.20561123 | AE24: 0.1899761896 | AF24: 0.1755300652 | AG24: 0.1621824496 | AH24: 0.1498498102 | AI24: 0.1384549665
C26: Allowances except tax
E28: Discounted unprofiled allowances except tax (cap) | G28: =Inputs!$I$11 -> £m 19/20 prices | K28: =K13 * K$24 -> 112.7744467 | L28: =L13 * L$24 -> 101.8127476 | M28: 91.86604105 | N28: 82.8433478 | O28: 74.66165597 | P28: 67.24523547 | Q28: 60.52501055 | R28: 54.43798566 | S28: 48.9267202 | T28: 43.93884795 | U28: 39.4266375 | V28: 35.34659013 | W28: 31.65907215 | X28: 28.32797856 | Y28: =Y13 * Y$24 -> 25.65445136 | Z28: =Z13 * Z$24 -> 24.02998589 | AA28: 21.41474134 | AB28: 19.05828262 | AC28: 16.93637492 | AD28: 15.02697278 | AE28: 13.3100272 | AF28: 11.76730955 | AG28: 10.3822506 | AH28: 9.139793607 | AI28: 19.94915485
E29: NPV of allowances except tax (cap) | G29: =Inputs!$I$11 -> £m 19/20 prices | I29: =SUM(K28:AI28) -> 1060.461662
E31: Annuity factor (cap) | G31: =G$21 -> scalar | I31: =I$21 -> 0.09552605702
E33: Annuity of allowances except tax (cap) | G33: =Inputs!$I$11 -> £m 19/20 prices | I33: =I29 * I31 -> 101.3017212
E34: Annuitised allowances except tax (cap) | G34: =Inputs!$I$11 -> £m 19/20 prices | K34: =K$23 * $I33 -> 101.3017212 | L34: 101.3017212 | M34: 101.3017212 | N34: 101.3017212 | O34: 101.3017212 | P34: 101.3017212 | Q34: 101.3017212 | R34: 101.3017212 | S34: 101.3017212 | T34: 101.3017212 | U34: 101.3017212 | V34: 101.3017212 | W34: 101.3017212 | X34: =X$23 * $I33 -> 101.3017212 | Y34: =Y$23 * $I33 -> 101.3017212 | Z34: 101.3017212 | AA34: 101.3017212 | AB34: 101.3017212 | AC34: 101.3017212 | AD34: 101.3017212 | AE34: 101.3017212 | AF34: 101.3017212 | AG34: 101.3017212 | AH34: 101.3017212 | AI34: 101.3017212
B36: End of sheet

Sheet Allowances Floor
A1: Allowances Floor | H1: Licence
E2: Parameter | G2: Units | H2: Terminology | I2: Constant | K2: Annual values
E3: Project year | K3: Year 1 | L3: Year 2 | M3: Year 3 | N3: Year 4 | O3: Year 5 | P3: Year 6 | Q3: Year 7 | R3: Year 8 | S3: Year 9 | T3: Year 10 | U3: Year 11 | V3: Year 12 | W3: Year 13 | X3: Year 14 | Y3: Year 15 | Z3: Year 16 | AA3: Year 17 | AB3: Year 18 | AC3: Year 19 | AD3: Year 20 | AE3: Year 21 | AF3: Year 22 | AG3: Year 23 | AH3: Year 24 | AI3: Year 25
E4: Year | K4: 1 | L4: =+K4+1 -> 2 | M4: =+L4+1 -> 3 | N4: 4 | O4: 5 | P4: 6 | Q4: 7 | R4: 8 | S4: 9 | T4: 10 | U4: 11 | V4: 12 | W4: 13 | X4: 14 | Y4: 15 | Z4: 16 | AA4: 17 | AB4: 18 | AC4: 19 | AD4: 20 | AE4: 21 | AF4: 22 | AG4: 23 | AH4: 24 | AI4: 25
B6: Unprofiled allowances except tax (floor)
E8: Controllable Opex | G8: =Inputs!$I$11 -> £m 19/20 prices | K8: =Inputs!K61 -> 12.08670228 | L8: =Inputs!L61 -> 12.08670228 | M8: =Inputs!M61 -> 12.08670228 | N8: =Inputs!N61 -> 12.08670228 | O8: =Inputs!O61 -> 12.08670228 | P8: =Inputs!P61 -> 12.08670228 | Q8: =Inputs!Q61 -> 12.08670228 | R8: =Inputs!R61 -> 12.08670228 | S8: =Inputs!S61 -> 12.08670228 | T8: =Inputs!T61 -> 12.08670228 | U8: =Inputs!U61 -> 12.08670228 | V8: =Inputs!V61 -> 12.08670228 | W8: =Inputs!W61 -> 12.08670228 | X8: =Inputs!X61 -> 12.08670228 | Y8: =Inputs!Y61 -> 12.08670228 | Z8: =Inputs!Z61 -> 12.08670228 | AA8: =Inputs!AA61 -> 12.08670228 | AB8: =Inputs!AB61 -> 12.08670228 | AC8: =Inputs!AC61 -> 12.08670228 | AD8: =Inputs!AD61 -> 12.08670228 | AE8: =Inputs!AE61 -> 12.08670228 | AF8: =Inputs!AF61 -> 12.08670228 | AG8: =Inputs!AG61 -> 12.08670228 | AH8: =Inputs!AH61 -> 12.08670228 | AI8: =Inputs!AI61 -> 12.08670228
E9: Non-controllable Opex (baseline) | G9: =Inputs!$I$11 -> £m 19/20 prices | K9: =Inputs!K62 -> 6.131085528 | L9: =Inputs!L62 -> 6.131085528 | M9: =Inputs!M62 -> 6.131085528 | N9: =Inputs!N62 -> 6.131085528 | O9: =Inputs!O62 -> 6.131085528 | P9: =Inputs!P62 -> 6.131085528 | Q9: =Inputs!Q62 -> 6.131085528 | R9: =Inputs!R62 -> 6.131085528 | S9: =Inputs!S62 -> 6.131085528 | T9: =Inputs!T62 -> 6.131085528 | U9: =Inputs!U62 -> 6.131085528 | V9: =Inputs!V62 -> 6.131085528 | W9: =Inputs!W62 -> 6.131085528 | X9: =Inputs!X62 -> 6.131085528 | Y9: =Inputs!Y62 -> 6.131085528 | Z9: =Inputs!Z62 -> 6.131085528 | AA9: =Inputs!AA62 -> 6.131085528 | AB9: =Inputs!AB62 -> 6.131085528 | AC9: =Inputs!AC62 -> 6.131085528 | AD9: =Inputs!AD62 -> 6.131085528 | AE9: =Inputs!AE62 -> 6.131085528 | AF9: =Inputs!AF62 -> 6.131085528 | AG9: =Inputs!AG62 -> 6.131085528 | AH9: =Inputs!AH62 -> 6.131085528 | AI9: =Inputs!AI62 -> 6.131085528
E10: Decommissioning baseline | G10: =Inputs!$I$11 -> £m 19/20 prices | K10: =Inputs!K60 -> 0 | L10: =Inputs!L60 -> 0 | M10: =Inputs!M60 -> 0 | N10: =Inputs!N60 -> 0 | O10: =Inputs!O60 -> 0 | P10: =Inputs!P60 -> 0 | Q10: =Inputs!Q60 -> 0 | R10: =Inputs!R60 -> 0 | S10: =Inputs!S60 -> 0 | T10: =Inputs!T60 -> 0 | U10: =Inputs!U60 -> 0 | V10: =Inputs!V60 -> 0 | W10: =Inputs!W60 -> 0 | X10: =Inputs!X60 -> 0 | Y10: =Inputs!Y60 -> 0 | Z10: =Inputs!Z60 -> 0 | AA10: =Inputs!AA60 -> 0 | AB10: =Inputs!AB60 -> 0 | AC10: =Inputs!AC60 -> 0 | AD10: =Inputs!AD60 -> 0 | AE10: =Inputs!AE60 -> 0 | AF10: =Inputs!AF60 -> 0 | AG10: =Inputs!AG60 -> 0 | AH10: =Inputs!AH60 -> 0 | AI10: =Inputs!AI60 -> 86.1138831
E11: RAV depreciation | G11: =Inputs!$I$11 -> £m 19/20 prices | K11: ='Op Rav'!K25 -> 35.30402213 | L11: ='Op Rav'!L25 -> 35.30402213 | M11: ='Op Rav'!M25 -> 35.30402213 | N11: ='Op Rav'!N25 -> 35.30402213 | O11: ='Op Rav'!O25 -> 35.30402213 | P11: ='Op Rav'!P25 -> 35.30402213 | Q11: ='Op Rav'!Q25 -> 35.30402213 | R11: ='Op Rav'!R25 -> 35.30402213 | S11: ='Op Rav'!S25 -> 35.30402213 | T11: ='Op Rav'!T25 -> 35.30402213 | U11: ='Op Rav'!U25 -> 35.30402213 | V11: ='Op Rav'!V25 -> 35.30402213 | W11: ='Op Rav'!W25 -> 35.30402213 | X11: ='Op Rav'!X25 -> 35.30402213 | Y11: ='Op Rav'!Y25 -> 35.30402213 | Z11: ='Op Rav'!Z25 -> 38.18123939 | AA11: ='Op Rav'!AA25 -> 38.18123939 | AB11: ='Op Rav'!AB25 -> 38.18123939 | AC11: ='Op Rav'!AC25 -> 38.18123939 | AD11: ='Op Rav'!AD25 -> 38.18123939 | AE11: ='Op Rav'!AE25 -> 38.18123939 | AF11: ='Op Rav'!AF25 -> 38.18123939 | AG11: ='Op Rav'!AG25 -> 38.18123939 | AH11: ='Op Rav'!AH25 -> 38.18123939 | AI11: ='Op Rav'!AI25 -> 38.18123939
E12: Return (floor) | G12: =Inputs!$I$11 -> £m 19/20 prices | K12: ='Op Rav'!K41 -> 1.469190256 | L12: ='Op Rav'!L41 -> 1.409224346 | M12: ='Op Rav'!M41 -> 1.349258436 | N12: ='Op Rav'!N41 -> 1.289292526 | O12: ='Op Rav'!O41 -> 1.229326617 | P12: ='Op Rav'!P41 -> 1.169360707 | Q12: ='Op Rav'!Q41 -> 1.109394797 | R12: ='Op Rav'!R41 -> 1.049428887 | S12: ='Op Rav'!S41 -> 0.989462977 | T12: ='Op Rav'!T41 -> 0.9294970671 | U12: ='Op Rav'!U41 -> 0.8695311572 | V12: ='Op Rav'!V41 -> 0.8095652473 | W12: ='Op Rav'!W41 -> 0.7495993375 | X12: ='Op Rav'!X41 -> 0.6896334276 | Y12: ='Op Rav'!Y41 -> 0.6540823591 | Z12: ='Op Rav'!Z41 -> 0.6161313118 | AA12: ='Op Rav'!AA41 -> 0.5512782831 | AB12: ='Op Rav'!AB41 -> 0.4864252544 | AC12: ='Op Rav'!AC41 -> 0.4215722257 | AD12: ='Op Rav'!AD41 -> 0.356719197 | AE12: ='Op Rav'!AE41 -> 0.2918661683 | AF12: ='Op Rav'!AF41 -> 0.2270131396 | AG12: ='Op Rav'!AG41 -> 0.1621601109 | AH12: ='Op Rav'!AH41 -> 0.09730708218 | AI12: ='Op Rav'!AI41 -> 0.03245405348
E13: Unprofiled allowances except tax (floor) | G13: =Inputs!$I$11 -> £m 19/20 prices | K13: =SUM(K8:K12) -> 54.99100019 | L13: 54.93103428 | M13: 54.87106837 | N13: 54.81110246 | O13: 54.75113655 | P13: 54.69117064 | Q13: 54.63120473 | R13: 54.57123882 | S13: 54.51127291 | T13: 54.451307 | U13: 54.39134109 | V13: 54.33137518 | W13: 54.27140928 | X13: 54.21144337 | Y13: 54.1758923 | Z13: 57.01515851 | AA13: 56.95030548 | AB13: 56.88545245 | AC13: 56.82059942 | AD13: 56.75574639 | AE13: 56.69089336 | AF13: 56.62604034 | AG13: 56.56118731 | AH13: 56.49633428 | AI13: 142.5453644
B15: Profiled allowances except tax (floor)
C17: Annuity parameters
E19: Floor return rate | G19: =Inputs!G69 -> real annual % | I19: =Inputs!I69 -> 0.0017
E20: Number of operational years | G20: =Inputs!G89 -> full years | I20: =Inputs!I89 -> 25
E21: Annuity factor (floor) | G21: scalar | I21: =I19 / (1 - (1 + I19)^(-I20)) -> 0.04089000592
E23: Year is within operational period | G23: flag | K23: =AND(K4 > 0, K4<= $I20) -> TRUE | L23: TRUE | M23: TRUE | N23: TRUE | O23: TRUE | P23: TRUE | Q23: TRUE | R23: TRUE | S23: TRUE | T23: TRUE | U23: TRUE | V23: TRUE | W23: TRUE | X23: TRUE | Y23: TRUE | Z23: TRUE | AA23: TRUE | AB23: TRUE | AC23: TRUE | AD23: TRUE | AE23: TRUE | AF23: TRUE | AG23: TRUE | AH23: TRUE | AI23: TRUE
E24: Discount factor to start of operational period (floor) | G24: scalar | K24: =(1 + $I19) ^ - K4 -> 0.9983028851 | L24: 0.9966086504 | M24: 0.994917291 | N24: 0.993228802 | O24: 0.9915431786 | P24: 0.9898604159 | Q24: 0.9881805091 | R24: 0.9865034532 | S24: 0.9848292435 | T24: 0.9831578751 | U24: 0.9814893432 | V24: 0.979823643 | W24: 0.9781607697 | X24: 0.9765007185 | Y24: 0.9748434846 | Z24: 0.9731890631 | AA24: 0.9715374495 | AB24: 0.9698886388 | AC24: 0.9682426263 | AD24: 0.9665994073 | AE24: 0.9649589771 | AF24: 0.9633213308 | AG24: 0.9616864638 | AH24: 0.9600543714 | AI24: 0.9584250488
C26: Allowances except tax
E28: Discounted unprofiled allowances except tax (floor) | G28: =Inputs!$I$11 -> £m 19/20 prices | K28: =K13 * K$24 -> 54.89767415 | L28: =L13 * L$24 -> 54.74474394 | M28: 54.5921747 | N28: 54.43996564 | O28: 54.28811597 | P28: 54.13662492 | Q28: 53.9854917 | R28: 53.83471554 | S28: 53.68429567 | T28: 53.53423129 | U28: 53.38452165 | V28: 53.23516596 | W28: 53.08616347 | X28: =X13 * X$24 -> 52.9375134 | Y28: 52.81301563 | Z28: 55.48652869 | AA28: 55.32935453 | AB28: 55.17255404 | AC28: 55.01612641 | AD28: 54.86007083 | AE28: 54.70438647 | AF28: 54.54907253 | AG28: 54.39412821 | AH28: 54.23955269 | AI28: 136.6190478
E29: NPV of allowances except tax (floor) | G29: =Inputs!$I$11 -> £m 19/20 prices | I29: =SUM(K28:AI28) -> 1437.965236
E31: Annuity factor (floor) | G31: =G$21 -> scalar | I31: =I$21 -> 0.04089000592
E33: Annuity of allowances except tax (floor) | G33: =Inputs!$I$11 -> £m 19/20 prices | I33: =I29 * I31 -> 58.798407
E34: Annuitised allowances except tax (floor) | G34: =Inputs!$I$11 -> £m 19/20 prices | K34: =K$23 * $I33 -> 58.798407 | L34: 58.798407 | M34: 58.798407 | N34: 58.798407 | O34: 58.798407 | P34: 58.798407 | Q34: 58.798407 | R34: 58.798407 | S34: 58.798407 | T34: 58.798407 | U34: 58.798407 | V34: 58.798407 | W34: 58.798407 | X34: =X$23 * $I33 -> 58.798407 | Y34: 58.798407 | Z34: 58.798407 | AA34: 58.798407 | AB34: 58.798407 | AC34: 58.798407 | AD34: 58.798407 | AE34: 58.798407 | AF34: 58.798407 | AG34: 58.798407 | AH34: 58.798407 | AI34: 58.798407
B36: End of sheet

Sheet Tax Deductions
A1: Tax Deductions | H1: Licence
E2: Parameter | G2: Units | H2: Terminology | I2: Constant | K2: Annual values
E3: Project year | K3: Year 1 | L3: Year 2 | M3: Year 3 | N3: Year 4 | O3: Year 5 | P3: Year 6 | Q3: Year 7 | R3: Year 8 | S3: Year 9 | T3: Year 10 | U3: Year 11 | V3: Year 12 | W3: Year 13 | X3: Year 14 | Y3: Year 15 | Z3: Year 16 | AA3: Year 17 | AB3: Year 18 | AC3: Year 19 | AD3: Year 20 | AE3: Year 21 | AF3: Year 22 | AG3: Year 23 | AH3: Year 24 | AI3: Year 25
B5: Tax deductions
C7: Inflation
E9: =Inputs!E119 -> UK RPI uplift from 2019/20 term to start of regime | G9: scalar | I9: =Inputs!I119 -> 1.040079468
E10: =Inputs!E116 -> Long-term expected UK RPI inflation | G10: % | I10: =Inputs!I116 -> 0.0318
E11: Forecast UK inflation uplift | G11: scalar | K11: =I9*(1+$I$10)^0.5 -> 1.05648731 | L11: =K11*(1+$I$10) -> 1.090083606 | M11: =L11*(1+$I$10) -> 1.124748265 | N11: 1.16051526 | O11: 1.197419645 | P11: 1.23549759 | Q11: 1.274786413 | R11: 1.315324621 | S11: 1.357151944 | T11: 1.400309376 | U11: 1.444839214 | V11: 1.490785101 | W11: 1.538192067 | X11: 1.587106575 | Y11: 1.637576564 | Z11: 1.689651499 | AA11: 1.743382416 | AB11: 1.798821977 | AC11: 1.856024516 | AD11: 1.915046096 | AE11: 1.975944562 | AF11: 2.038779599 | AG11: 2.10361279 | AH11: 2.170507677 | AI11: 2.239529821
C13: Total tax deductions
E15: Revenue pool additions | G15: £m nominal | K15: =K27 -> 19.24686163 | L15: 19.85891183 | M15: 20.49042523 | N15: 21.14202075 | O15: 21.81433701 | P15: 22.50803293 | Q15: 23.22378837 | R15: 23.96230484 | S15: 24.72430614 | T15: 25.51053907 | U15: 26.32177421 | V15: 27.15880664 | W15: 28.02245669 | X15: 28.91357081 | Y15: 29.83302236 | Z15: 30.78171247 | AA15: 31.76057093 | AB15: 32.77055708 | AC15: 33.8126608 | AD15: 34.88790341 | AE15: 35.99733874 | AF15: 37.14205411 | AG15: 38.32317143 | AH15: 39.54184828 | AI15: 40.79927906
E16: Capital allowances | G16: £m nominal | K16: =K42 -> 60.55130837 | L16: 55.7072037 | M16: 51.2506274 | N16: 47.15057721 | O16: 43.37853103 | P16: 39.90824855 | Q16: 36.71558867 | R16: 33.77834157 | S16: 31.07607425 | T16: 28.58998831 | U16: 26.30278924 | V16: 24.1985661 | W16: 22.26268082 | X16: 20.48166635 | Y16: 22.61246388 | Z16: 20.80346677 | AA16: 19.13918943 | AB16: 17.60805428 | AC16: 16.19940993 | AD16: 14.90345714 | AE16: 13.71118057 | AF16: 12.61428612 | AG16: 11.60514323 | AH16: 10.67673177 | AI16: 122.7824154
E17: Interest payable | G17: £m nominal | K17: =K58 -> 15.40088931 | L17: 14.99782216 | M17: 14.58123046 | N17: 14.15066042 | O17: 13.70564301 | P17: 13.24569346 | Q17: 12.77031074 | R17: 12.27897699 | S17: 11.771157 | T17: 11.24629759 | U17: 10.70382702 | V17: 10.14315435 | W17: 9.563668843 | X17: 8.964739242 | Y17: 8.345713121 | Z17: 7.705916161 | AA17: 7.044651415 | AB17: 6.361198552 | AC17: 5.654813071 | AD17: 4.924725489 | AE17: 4.170140505 | AF17: 3.39023613 | AG17: 2.584162798 | AH17: 1.751042432 | AI17: 0.8899674963
E18: Debt transaction costs | G18: £m nominal | K18: =SUMPRODUCT(Finance!K39:AX39,Inputs!K107:AX107)+SUMPRODUCT(Finance!K41:AX41,Inputs!K107:AX107) -> 11.00054025
E19: Total tax deductions | G19: £m nominal | K19: =SUM(K15:K18) -> 106.1995996 | L19: 90.56393768 | M19: 86.32228309 | N19: 82.44325838 | O19: 78.89851106 | P19: 75.66197494 | Q19: 72.70968778 | R19: 70.01962341 | S19: =SUM(S15:S18) -> 67.57153739 | T19: 65.34682497 | U19: 63.32839047 | V19: 61.50052709 | W19: 59.84880634 | X19: 58.3599764 | Y19: 60.79119936 | Z19: 59.29109541 | AA19: 57.94441177 | AB19: 56.73980991 | AC19: 55.6668838 | AD19: 54.71608604 | AE19: 53.87865981 | AF19: 53.14657637 | AG19: 52.51247746 | AH19: 51.96962249 | AI19: 164.471662
B21: Tax pools
C23: Revenue pool
E25: Controllable Opex | G25: £m nominal | K25: =Inputs!K61* K$11 -> 12.76944757 | L25: =Inputs!L61* L$11 -> 13.17551601 | M25: =Inputs!M61* M$11 -> 13.59449742 | N25: =Inputs!N61* N$11 -> 14.02680243 | O25: =Inputs!O61* O$11 -> 14.47285475 | P25: =Inputs!P61* P$11 -> 14.93309153 | Q25: =Inputs!Q61* Q$11 -> 15.40796384 | R25: =Inputs!R61* R$11 -> 15.89793709 | S25: =Inputs!S61* S$11 -> 16.40349149 | T25: =Inputs!T61* T$11 -> 16.92512252 | U25: =Inputs!U61* U$11 -> 17.46334142 | V25: =Inputs!V61* V$11 -> 18.01867568 | W25: =Inputs!W61* W$11 -> 18.59166956 | X25: =Inputs!X61* X$11 -> 19.18288466 | Y25: =Inputs!Y61* Y$11 -> 19.79290039 | Z25: =Inputs!Z61* Z$11 -> 20.42231462 | AA25: =Inputs!AA61* AA$11 -> 21.07174422 | AB25: =Inputs!AB61* AB$11 -> 21.74182569 | AC25: =Inputs!AC61* AC$11 -> 22.43321575 | AD25: =Inputs!AD61* AD$11 -> 23.14659201 | AE25: =Inputs!AE61* AE$11 -> 23.88265363 | AF25: =Inputs!AF61* AF$11 -> 24.64212202 | AG25: =Inputs!AG61* AG$11 -> 25.4257415 | AH25: =Inputs!AH61* AH$11 -> 26.23428008 | AI25: =Inputs!AI61* AI$11 -> 27.06853019
E26: Non-controllable Opex (baseline) | G26: £m nominal | K26: =Inputs!K62* K$11 -> 6.477414056 | L26: =Inputs!L62* L$11 -> 6.683395823 | M26: =Inputs!M62* M$11 -> 6.89592781 | N26: =Inputs!N62* N$11 -> 7.115218314 | O26: =Inputs!O62* O$11 -> 7.341482257 | P26: =Inputs!P62* P$11 -> 7.574941393 | Q26: =Inputs!Q62* Q$11 -> 7.815824529 | R26: =Inputs!R62* R$11 -> 8.064367749 | S26: =Inputs!S62* S$11 -> 8.320814643 | T26: =Inputs!T62* T$11 -> 8.585416549 | U26: =Inputs!U62* U$11 -> 8.858432795 | V26: =Inputs!V62* V$11 -> 9.140130958 | W26: =Inputs!W62* W$11 -> 9.430787123 | X26: =Inputs!X62* X$11 -> 9.730686153 | Y26: =Inputs!Y62* Y$11 -> 10.04012197 | Z26: =Inputs!Z62* Z$11 -> 10.35939785 | AA26: =Inputs!AA62* AA$11 -> 10.6888267 | AB26: =Inputs!AB62* AB$11 -> 11.02873139 | AC26: =Inputs!AC62* AC$11 -> 11.37944505 | AD26: =Inputs!AD62* AD$11 -> 11.7413114 | AE26: =Inputs!AE62* AE$11 -> 12.11468511 | AF26: =Inputs!AF62* AF$11 -> 12.49993209 | AG26: =Inputs!AG62* AG$11 -> 12.89742993 | AH26: =Inputs!AH62* AH$11 -> 13.3075682 | AI26: =Inputs!AI62* AI$11 -> 13.73074887
E27: Revenue pool additions | G27: £m nominal | K27: =SUM(K25:K26) -> 19.24686163 | L27: 19.85891183 | M27: 20.49042523 | N27: 21.14202075 | O27: 21.81433701 | P27: 22.50803293 | Q27: 23.22378837 | R27: 23.96230484 | S27: 24.72430614 | T27: 25.51053907 | U27: 26.32177421 | V27: 27.15880664 | W27: 28.02245669 | X27: 28.91357081 | Y27: 29.83302236 | Z27: 30.78171247 | AA27: 31.76057093 | AB27: 32.77055708 | AC27: 33.8126608 | AD27: 34.88790341 | AE27: 35.99733874 | AF27: 37.14205411 | AG27: 38.32317143 | AH27: 39.54184828 | AI27: 40.79927906
C29: Capital allowance pool
E31: Capital allowance rate (declining balance) | G31: =Inputs!G114 -> % | K31: =Inputs!K114 -> 0.08 | L31: =Inputs!L114 -> 0.08 | M31: =Inputs!M114 -> 0.08 | N31: =Inputs!N114 -> 0.08 | O31: =Inputs!O114 -> 0.08 | P31: =Inputs!P114 -> 0.08 | Q31: =Inputs!Q114 -> 0.08 | R31: =Inputs!R114 -> 0.08 | S31: =Inputs!S114 -> 0.08 | T31: =Inputs!T114 -> 0.08 | U31: =Inputs!U114 -> 0.08 | V31: =Inputs!V114 -> 0.08 | W31: =Inputs!W114 -> 0.08 | X31: =Inputs!X114 -> 0.08 | Y31: =Inputs!Y114 -> 0.08 | Z31: =Inputs!Z114 -> 0.08 | AA31: =Inputs!AA114 -> 0.08 | AB31: =Inputs!AB114 -> 0.08 | AC31: =Inputs!AC114 -> 0.08 | AD31: =Inputs!AD114 -> 0.08 | AE31: =Inputs!AE114 -> 0.08 | AF31: =Inputs!AF114 -> 0.08 | AG31: =Inputs!AG114 -> 0.08 | AH31: =Inputs!AH114 -> 0.08 | AI31: =Inputs!AI114 -> 0.08
E32: Number of operational years | G32: =Inputs!G89 -> full years | I32: =Inputs!I89 -> 25
E34: Opening balance brought forward | G34: £m nominal | K34: =J40 -> 0 | L34: 696.3400462 | M34: 640.6328425 | N34: 589.3822151 | O34: 542.2316379 | P34: 498.8531069 | Q34: 458.9448583 | R34: 422.2292697 | S34: 388.4509281 | T34: 357.3748538 | U34: 328.7848655 | V34: 302.4820763 | W34: 278.2835102 | X34: 256.0208294 | Y34: 235.539163 | Z34: 260.0433347 | AA34: 239.2398679 | AB34: 220.1006785 | AC34: 202.4926242 | AD34: 186.2932142 | AE34: 171.3897571 | AF34: 157.6785765 | AG34: 145.0642904 | AH34: 133.4591472 | AI34: 122.7824154
E35: Capex | G35: £m nominal | K35: =SUMPRODUCT('Pre Op RAV'!K19:AX19,Inputs!K107:AX107) -> 756.8913546
E36: Replacement Capex | G36: £m nominal | K36: ='Op Rav'!K13 * K$11 -> 0 | L36: ='Op Rav'!L13 * L$11 -> 0 | M36: ='Op Rav'!M13 * M$11 -> 0 | N36: ='Op Rav'!N13 * N$11 -> 0 | O36: ='Op Rav'!O13 * O$11 -> 0 | P36: ='Op Rav'!P13 * P$11 -> 0 | Q36: ='Op Rav'!Q13 * Q$11 -> 0 | R36: ='Op Rav'!R13 * R$11 -> 0 | S36: ='Op Rav'!S13 * S$11 -> 0 | T36: ='Op Rav'!T13 * T$11 -> 0 | U36: ='Op Rav'!U13 * U$11 -> 0 | V36: ='Op Rav'!V13 * V$11 -> 0 | W36: ='Op Rav'!W13 * W$11 -> 0 | X36: ='Op Rav'!X13 * X$11 -> 0 | Y36: ='Op Rav'!Y13 * Y$11 -> 47.11663552 | Z36: ='Op Rav'!Z13 * Z$11 -> 0 | AA36: ='Op Rav'!AA13 * AA$11 -> 0 | AB36: ='Op Rav'!AB13 * AB$11 -> 0 | AC36: ='Op Rav'!AC13 * AC$11 -> 0 | AD36: ='Op Rav'!AD13 * AD$11 -> 0 | AE36: ='Op Rav'!AE13 * AE$11 -> 0 | AF36: ='Op Rav'!AF13 * AF$11 -> 0 | AG36: ='Op Rav'!AG13 * AG$11 -> 0 | AH36: ='Op Rav'!AH13 * AH$11 -> 0 | AI36: ='Op Rav'!AI13 * AI$11 -> 0
E37: Tax book value pre-depreciation | G37: £m nominal | K37: =SUM(K34:K36) -> 756.8913546 | L37: 696.3400462 | M37: 640.6328425 | N37: 589.3822151 | O37: 542.2316379 | P37: 498.8531069 | Q37: 458.9448583 | R37: 422.2292697 | S37: 388.4509281 | T37: 357.3748538 | U37: 328.7848655 | V37: 302.4820763 | W37: 278.2835102 | X37: 256.0208294 | Y37: 282.6557985 | Z37: 260.0433347 | AA37: 239.2398679 | AB37: 220.1006785 | AC37: 202.4926242 | AD37: 186.2932142 | AE37: 171.3897571 | AF37: 157.6785765 | AG37: 145.0642904 | AH37: 133.4591472 | AI37: 122.7824154
E38: Capital allowance (reducing balance) | G38: £m nominal | K38: =-K37 * K31 -> -60.55130837 | L38: =-L37 * L31 -> -55.7072037 | M38: =-M37 * M31 -> -51.2506274 | N38: -47.15057721 | O38: -43.37853103 | P38: -39.90824855 | Q38: -36.71558867 | R38: -33.77834157 | S38: -31.07607425 | T38: -28.58998831 | U38: -26.30278924 | V38: -24.1985661 | W38: -22.26268082 | X38: -20.48166635 | Y38: -22.61246388 | Z38: -20.80346677 | AA38: -19.13918943 | AB38: -17.60805428 | AC38: -16.19940993 | AD38: -14.90345714 | AE38: -13.71118057 | AF38: -12.61428612 | AG38: -11.60514323 | AH38: -10.67673177 | AI38: -9.822593233
E39: Write-back allowance | G39: £m nominal | AI39: =-SUM(AI37:AI38) -> -112.9598222
E40: Closing balance carried forward | G40: £m nominal | K40: =SUM(K37:K39) -> 696.3400462 | L40: =SUM(L37:L39) -> 640.6328425 | M40: 589.3822151 | N40: 542.2316379 | O40: 498.8531069 | P40: 458.9448583 | Q40: 422.2292697 | R40: 388.4509281 | S40: 357.3748538 | T40: 328.7848655 | U40: 302.4820763 | V40: 278.2835102 | W40: 256.0208294 | X40: 235.539163 | Y40: 260.0433347 | Z40: 239.2398679 | AA40: 220.1006785 | AB40: 202.4926242 | AC40: 186.2932142 | AD40: 171.3897571 | AE40: 157.6785765 | AF40: 145.0642904 | AG40: 133.4591472 | AH40: 122.7824154 | AI40: =SUM(AI37:AI39) -> 0
E42: Capital allowances | G42: £m nominal | K42: =-(K38 + K39) -> 60.55130837 | L42: 55.7072037 | M42: 51.2506274 | N42: 47.15057721 | O42: 43.37853103 | P42: 39.90824855 | Q42: 36.71558867 | R42: 33.77834157 | S42: 31.07607425 | T42: 28.58998831 | U42: 26.30278924 | V42: =-(V38 + V39) -> 24.1985661 | W42: 22.26268082 | X42: 20.48166635 | Y42: 22.61246388 | Z42: 20.80346677 | AA42: 19.13918943 | AB42: 17.60805428 | AC42: 16.19940993 | AD42: 14.90345714 | AE42: 13.71118057 | AF42: 12.61428612 | AG42: 11.60514323 | AH42: 10.67673177 | AI42: 122.7824154
B44: Interest
C46: Cost of debt
E48: Cost of debt (for tax) | G48: =Inputs!G69 -> real annual % | I48: =Inputs!I71 -> 0.0017
E49: Expected UK RPI inflation | G49: =Inputs!G116 -> % | I49: =Inputs!I116 -> 0.0318
E50: Cost of debt (for tax) | G50: nominal annual % | I50: =(1 + I48) * (1 + I$49) - 1 -> 0.03355406
C52: Net debt
E54: Number of operational years | G54: =Inputs!G89 -> full years | I54: =Inputs!I89 -> 25
E55: Operational notional gearing | G55: =Inputs!G74 -> % | I55: =Inputs!I74 -> 0.5
E57: Principal repayments | G57: £m nominal | K57: =K59 - K58 -> 12.01247047 | L57: =L59 - L58 -> 12.41553763 | M57: 12.83212932 | N57: 13.26269936 | O57: 13.70771677 | P57: 14.16766632 | Q57: 14.64304905 | R57: 15.13438279 | S57: 15.64220278 | T57: 16.16706219 | U57: 16.70953277 | V57: 17.27020543 | W57: 17.84969094 | X57: 18.44862054 | Y57: 19.06764666 | Z57: 19.70744362 | AA57: 20.36870837 | AB57: 21.05216123 | AC57: 21.75854671 | AD57: 22.4886343 | AE57: 23.24321928 | AF57: 24.02312365 | AG57: 24.82919699 | AH57: 25.66231735 | AI57: 26.52339229
E58: Net interest paid | G58: £m nominal | K58: =$I50 * K61 -> 15.40088931 | L58: 14.99782216 | M58: 14.58123046 | N58: 14.15066042 | O58: 13.70564301 | P58: 13.24569346 | Q58: 12.77031074 | R58: 12.27897699 | S58: 11.771157 | T58: 11.24629759 | U58: 10.70382702 | V58: 10.14315435 | W58: 9.563668843 | X58: 8.964739242 | Y58: 8.345713121 | Z58: 7.705916161 | AA58: 7.044651415 | AB58: 6.361198552 | AC58: 5.654813071 | AD58: 4.924725489 | AE58: 4.170140505 | AF58: 3.39023613 | AG58: 2.584162798 | AH58: 1.751042432 | AI58: 0.8899674963
E59: Total | G59: £m nominal | K59: =$K$61*$I50/(1-(1+$I50)^(-$I54)) -> 27.41335978 | L59: =$K$61*$I50/(1-(1+$I50)^(-$I54)) -> 27.41335978 | M59: 27.41335978 | N59: 27.41335978 | O59: 27.41335978 | P59: 27.41335978 | Q59: 27.41335978 | R59: 27.41335978 | S59: 27.41335978 | T59: 27.41335978 | U59: 27.41335978 | V59: 27.41335978 | W59: 27.41335978 | X59: 27.41335978 | Y59: 27.41335978 | Z59: 27.41335978 | AA59: 27.41335978 | AB59: 27.41335978 | AC59: 27.41335978 | AD59: 27.41335978 | AE59: 27.41335978 | AF59: 27.41335978 | AG59: 27.41335978 | AH59: 27.41335978 | AI59: 27.41335978
E61: Opening net debt | G61: £m nominal | K61: ='Op Rav'!K12*I9*I55 -> 458.9873568 | L61: =K63 -> 446.9748864 | M61: =L63 -> 434.5593487 | N61: 421.7272194 | O61: 408.4645201 | P61: 394.7568033 | Q61: 380.589137 | R61: 365.9460879 | S61: 350.8117051 | T61: 335.1695023 | U61: 319.0024401 | V61: 302.2929074 | W61: 285.0227019 | X61: 267.173011 | Y61: 248.7243905 | Z61: 229.6567438 | AA61: 209.9493002 | AB61: 189.5805918 | AC61: 168.5284306 | AD61: 146.7698839 | AE61: 124.2812496 | AF61: 101.0380303 | AG61: 77.01490663 | AH61: 52.18570964 | AI61: 26.52339229
E62: Less principal repayment | G62: £m nominal | K62: =IF(K3 = "Year "&$I54, -K61, -K57) -> -12.01247047 | L62: -12.41553763 | M62: -12.83212932 | N62: -13.26269936 | O62: -13.70771677 | P62: -14.16766632 | Q62: -14.64304905 | R62: -15.13438279 | S62: -15.64220278 | T62: -16.16706219 | U62: -16.70953277 | V62: -17.27020543 | W62: -17.84969094 | X62: -18.44862054 | Y62: -19.06764666 | Z62: -19.70744362 | AA62: -20.36870837 | AB62: -21.05216123 | AC62: -21.75854671 | AD62: -22.4886343 | AE62: -23.24321928 | AF62: -24.02312365 | AG62: -24.82919699 | AH62: -25.66231735 | AI62: =IF(AI3 = "Year "&$I54, -AI61, -AI57) -> -26.52339229
E63: Closing net debt | G63: £m nominal | K63: =SUM(K61:K62) -> 446.9748864 | L63: =SUM(L61:L62) -> 434.5593487 | M63: 421.7272194 | N63: 408.4645201 | O63: 394.7568033 | P63: 380.589137 | Q63: 365.9460879 | R63: 350.8117051 | S63: 335.1695023 | T63: 319.0024401 | U63: 302.2929074 | V63: 285.0227019 | W63: 267.173011 | X63: =SUM(X61:X62) -> 248.7243905 | Y63: =SUM(Y61:Y62) -> 229.6567438 | Z63: 209.9493002 | AA63: 189.5805918 | AB63: 168.5284306 | AC63: 146.7698839 | AD63: 124.2812496 | AE63: 101.0380303 | AF63: 77.01490663 | AG63: 52.18570964 | AH63: 26.52339229 | AI63: 0
B65: End of sheet

Sheet Tax Cap
A1: Tax Cap | H1: Licence
E2: Parameter | G2: Units | H2: Terminology | I2: Constant | K2: Annual values
E3: Project year | K3: Year 1 | L3: Year 2 | M3: Year 3 | N3: Year 4 | O3: Year 5 | P3: Year 6 | Q3: Year 7 | R3: Year 8 | S3: Year 9 | T3: Year 10 | U3: Year 11 | V3: Year 12 | W3: Year 13 | X3: Year 14 | Y3: Year 15 | Z3: Year 16 | AA3: Year 17 | AB3: Year 18 | AC3: Year 19 | AD3: Year 20 | AE3: Year 21 | AF3: Year 22 | AG3: Year 23 | AH3: Year 24 | AI3: Year 25
B5: Unprofiled tax allowance (cap)
C7: Profits attributable to corporation tax
E9: Annuitised allowances except tax (cap) | G9: £m nominal prices | K9: ='Allowances Cap'!K34* 'Tax Deductions'!K$11 -> 107.0239829 | L9: ='Allowances Cap'!L34* 'Tax Deductions'!L$11 -> 110.4273456 | M9: ='Allowances Cap'!M34* 'Tax Deductions'!M$11 -> 113.9389352 | N9: ='Allowances Cap'!N34* 'Tax Deductions'!N$11 -> 117.5621933 | O9: ='Allowances Cap'!O34* 'Tax Deductions'!O$11 -> 121.300671 | P9: ='Allowances Cap'!P34* 'Tax Deductions'!P$11 -> 125.1580324 | Q9: ='Allowances Cap'!Q34* 'Tax Deductions'!Q$11 -> 129.1380578 | R9: ='Allowances Cap'!R34* 'Tax Deductions'!R$11 -> 133.244648 | S9: ='Allowances Cap'!S34* 'Tax Deductions'!S$11 -> 137.4818279 | T9: ='Allowances Cap'!T34* 'Tax Deductions'!T$11 -> 141.85375 | U9: ='Allowances Cap'!U34* 'Tax Deductions'!U$11 -> 146.3646992 | V9: ='Allowances Cap'!V34* 'Tax Deductions'!V$11 -> 151.0190967 | W9: ='Allowances Cap'!W34* 'Tax Deductions'!W$11 -> 155.8215039 | X9: ='Allowances Cap'!X34* 'Tax Deductions'!X$11 -> 160.7766278 | Y9: ='Allowances Cap'!Y34* 'Tax Deductions'!Y$11 -> 165.8893245 | Z9: ='Allowances Cap'!Z34* 'Tax Deductions'!Z$11 -> 171.164605 | AA9: ='Allowances Cap'!AA34* 'Tax Deductions'!AA$11 -> 176.6076395 | AB9: ='Allowances Cap'!AB34* 'Tax Deductions'!AB$11 -> 182.2237624 | AC9: ='Allowances Cap'!AC34* 'Tax Deductions'!AC$11 -> 188.0184781 | AD9: ='Allowances Cap'!AD34* 'Tax Deductions'!AD$11 -> 193.9974657 | AE9: ='Allowances Cap'!AE34* 'Tax Deductions'!AE$11 -> 200.1665851 | AF9: ='Allowances Cap'!AF34* 'Tax Deductions'!AF$11 -> 206.5318825 | AG9: ='Allowances Cap'!AG34* 'Tax Deductions'!AG$11 -> 213.0995963 | AH9: ='Allowances Cap'!AH34* 'Tax Deductions'!AH$11 -> 219.8761635 | AI9: ='Allowances Cap'!AI34* 'Tax Deductions'!AI$11 -> 226.8682255
E10: Less tax deductions | G10: £m nominal prices | K10: =-'Tax Deductions'!K19 -> -106.1995996 | L10: =-'Tax Deductions'!L19 -> -90.56393768 | M10: =-'Tax Deductions'!M19 -> -86.32228309 | N10: =-'Tax Deductions'!N19 -> -82.44325838 | O10: =-'Tax Deductions'!O19 -> -78.89851106 | P10: =-'Tax Deductions'!P19 -> -75.66197494 | Q10: =-'Tax Deductions'!Q19 -> -72.70968778 | R10: =-'Tax Deductions'!R19 -> -70.01962341 | S10: =-'Tax Deductions'!S19 -> -67.57153739 | T10: =-'Tax Deductions'!T19 -> -65.34682497 | U10: =-'Tax Deductions'!U19 -> -63.32839047 | V10: =-'Tax Deductions'!V19 -> -61.50052709 | W10: =-'Tax Deductions'!W19 -> -59.84880634 | X10: =-'Tax Deductions'!X19 -> -58.3599764 | Y10: =-'Tax Deductions'!Y19 -> -60.79119936 | Z10: =-'Tax Deductions'!Z19 -> -59.29109541 | AA10: =-'Tax Deductions'!AA19 -> -57.94441177 | AB10: =-'Tax Deductions'!AB19 -> -56.73980991 | AC10: =-'Tax Deductions'!AC19 -> -55.6668838 | AD10: =-'Tax Deductions'!AD19 -> -54.71608604 | AE10: =-'Tax Deductions'!AE19 -> -53.87865981 | AF10: =-'Tax Deductions'!AF19 -> -53.14657637 | AG10: =-'Tax Deductions'!AG19 -> -52.51247746 | AH10: =-'Tax Deductions'!AH19 -> -51.96962249 | AI10: =-'Tax Deductions'!AI19 -> -164.471662
E11: Profits attributable to corporation tax | G11: £m nominal prices | K11: =SUM(K9:K10) -> 0.824383349 | L11: =SUM(L9:L10) -> 19.86340788 | M11: 27.61665206 | N11: 35.11893491 | O11: 42.40215998 | P11: 49.49605744 | Q11: 56.42837003 | R11: 63.22502464 | S11: 69.91029047 | T11: 76.50692501 | U11: 83.03630875 | V11: 89.51856957 | W11: 95.97269759 | X11: 102.4166514 | Y11: 105.0981252 | Z11: 111.8735096 | AA11: 118.6632277 | AB11: 125.4839525 | AC11: 132.3515943 | AD11: 139.2813796 | AE11: 146.2879253 | AF11: 153.3853061 | AG11: 160.5871189 | AH11: 167.906541 | AI11: 62.39656354
C13: Tax losses
E15: Taxable losses brought forward | G15: £m nominal prices | K15: =J18 -> 0 | L15: =K18 -> 0 | M15: 0 | N15: 0 | O15: 0 | P15: 0 | Q15: 0 | R15: 0 | S15: 0 | T15: 0 | U15: 0 | V15: 0 | W15: 0 | X15: 0 | Y15: 0 | Z15: 0 | AA15: 0 | AB15: 0 | AC15: 0 | AD15: 0 | AE15: 0 | AF15: 0 | AG15: 0 | AH15: 0 | AI15: 0
E16: In-year taxable loss | G16: £m nominal prices | K16: =MIN(K11, 0) -> 0 | L16: 0 | M16: 0 | N16: 0 | O16: 0 | P16: 0 | Q16: 0 | R16: 0 | S16: 0 | T16: 0 | U16: 0 | V16: 0 | W16: 0 | X16: 0 | Y16: 0 | Z16: 0 | AA16: 0 | AB16: 0 | AC16: 0 | AD16: 0 | AE16: 0 | AF16: 0 | AG16: 0 | AH16: 0 | AI16: 0
E17: Profits used to offset losses | G17: £m nominal prices | K17: =IF(K11 >= 0, MIN(K11, -K15), 0) -> 0 | L17: 0 | M17: 0 | N17: 0 | O17: 0 | P17: 0 | Q17: 0 | R17: 0 | S17: 0 | T17: 0 | U17: 0 | V17: 0 | W17: 0 | X17: 0 | Y17: 0 | Z17: 0 | AA17: 0 | AB17: 0 | AC17: 0 | AD17: 0 | AE17: 0 | AF17: 0 | AG17: 0 | AH17: 0 | AI17: 0
E18: Taxable losses carried forward | G18: £m nominal prices | K18: =SUM(K15:K17) -> 0 | L18: =SUM(L15:L17) -> 0 | M18: 0 | N18: 0 | O18: 0 | P18: 0 | Q18: 0 | R18: 0 | S18: 0 | T18: 0 | U18: 0 | V18: 0 | W18: 0 | X18: 0 | Y18: 0 | Z18: 0 | AA18: 0 | AB18: 0 | AC18: 0 | AD18: 0 | AE18: 0 | AF18: 0 | AG18: 0 | AH18: 0 | AI18: 0
C20: Tax allowance
E22: Profits attributable to corporation tax (after taxable losses) | G22: £m nominal prices | K22: =MAX(K11 - K17,0) -> 0.824383349 | L22: 19.86340788 | M22: 27.61665206 | N22: 35.11893491 | O22: 42.40215998 | P22: 49.49605744 | Q22: 56.42837003 | R22: 63.22502464 | S22: 69.91029047 | T22: 76.50692501 | U22: 83.03630875 | V22: 89.51856957 | W22: 95.97269759 | X22: =MAX(X11 - X17,0) -> 102.4166514 | Y22: =MAX(Y11 - Y17,0) -> 105.0981252 | Z22: 111.8735096 | AA22: 118.6632277 | AB22: 125.4839525 | AC22: 132.3515943 | AD22: 139.2813796 | AE22: 146.2879253 | AF22: 153.3853061 | AG22: 160.5871189 | AH22: 167.906541 | AI22: 62.39656354
E23: Corporation tax rate | G23: =Inputs!G113 -> % | K23: =Inputs!K113 -> 0.19 | L23: =Inputs!L113 -> 0.19 | M23: =Inputs!M113 -> 0.19 | N23: =Inputs!N113 -> 0.19 | O23: =Inputs!O113 -> 0.19 | P23: =Inputs!P113 -> 0.19 | Q23: =Inputs!Q113 -> 0.19 | R23: =Inputs!R113 -> 0.19 | S23: =Inputs!S113 -> 0.19 | T23: =Inputs!T113 -> 0.19 | U23: =Inputs!U113 -> 0.19 | V23: =Inputs!V113 -> 0.19 | W23: =Inputs!W113 -> 0.19 | X23: =Inputs!X113 -> 0.19 | Y23: =Inputs!Y113 -> 0.19 | Z23: =Inputs!Z113 -> 0.19 | AA23: =Inputs!AA113 -> 0.19 | AB23: =Inputs!AB113 -> 0.19 | AC23: =Inputs!AC113 -> 0.19 | AD23: =Inputs!AD113 -> 0.19 | AE23: =Inputs!AE113 -> 0.19 | AF23: =Inputs!AF113 -> 0.19 | AG23: =Inputs!AG113 -> 0.19 | AH23: =Inputs!AH113 -> 0.19 | AI23: =Inputs!AI113 -> 0.19
E24: Corporation tax charge after losses | G24: £m nominal prices | K24: =K22 * K23 -> 0.1566328363 | L24: 3.774047497 | M24: 5.247163892 | N24: 6.672597632 | O24: 8.056410396 | P24: 9.404250913 | Q24: 10.72139031 | R24: 12.01275468 | S24: 13.28295519 | T24: 14.53631575 | U24: 15.77689866 | V24: 17.00852822 | W24: 18.23481254 | X24: =X22 * X23 -> 19.45916376 | Y24: =Y22 * Y23 -> 19.96864378 | Z24: 21.25596683 | AA24: 22.54601327 | AB24: 23.84195098 | AC24: 25.14680291 | AD24: 26.46346213 | AE24: 27.7947058 | AF24: 29.14320816 | AG24: 30.51155259 | AH24: 31.90224279 | AI24: 11.85534707
E26: Grossing-up factor for tax on tax charge after losses | G26: scalar | K26: =1 / (1 - K23) -> 1.234567901 | L26: 1.234567901 | M26: 1.234567901 | N26: 1.234567901 | O26: 1.234567901 | P26: 1.234567901 | Q26: 1.234567901 | R26: 1.234567901 | S26: 1.234567901 | T26: 1.234567901 | U26: 1.234567901 | V26: 1.234567901 | W26: 1.234567901 | X26: =1 / (1 - X23) -> 1.234567901 | Y26: =1 / (1 - Y23) -> 1.234567901 | Z26: 1.234567901 | AA26: 1.234567901 | AB26: 1.234567901 | AC26: 1.234567901 | AD26: 1.234567901 | AE26: 1.234567901 | AF26: 1.234567901 | AG26: 1.234567901 | AH26: 1.234567901 | AI26: 1.234567901
E28: Unprofiled tax allowance (cap) | G28: £m nominal prices | K28: =K24 * K26 -> 0.193373872 | L28: 4.659317898 | M28: 6.477980113 | N28: 8.237774855 | O28: 9.946185675 | P28: 11.61018631 | Q28: 13.23628433 | R28: 14.83056133 | S28: 16.39871011 | T28: 17.94606883 | U28: 19.47765267 | V28: 20.99818299 | W28: 22.51211425 | X28: =X24 * X26 -> 24.02365896 | Y28: =Y24 * Y26 -> 24.65264664 | Z28: =Z24 * Z26 -> 26.24193436 | AA28: 27.83458428 | AB28: 29.43450738 | AC28: 31.04543569 | AD28: 32.6709409 | AE28: 34.3144516 | AF28: 35.97926934 | AG28: 37.66858344 | AH28: 39.38548493 | AI28: 14.63623095
B30: Profiled tax allowance (cap)
E32: Unprofiled tax allowance (cap) | G32: =Inputs!$I$11 -> £m 19/20 prices | K32: ='Tax Cap'!K28 / 'Tax Deductions'!K11 -> 0.1830347324 | L32: ='Tax Cap'!L28 / 'Tax Deductions'!L11 -> 4.274275726 | M32: ='Tax Cap'!M28 / 'Tax Deductions'!M11 -> 5.759493315 | N32: ='Tax Cap'!N28 / 'Tax Deductions'!N11 -> 7.098377023 | O32: ='Tax Cap'!O28 / 'Tax Deductions'!O11 -> 8.30634917 | P32: ='Tax Cap'!P28 / 'Tax Deductions'!P11 -> 9.397174393 | Q32: ='Tax Cap'!Q28 / 'Tax Deductions'!Q11 -> 10.38313885 | R32: ='Tax Cap'!R28 / 'Tax Deductions'!R11 -> 11.27521001 | S32: ='Tax Cap'!S28 / 'Tax Deductions'!S11 -> 12.08317918 | T32: ='Tax Cap'!T28 / 'Tax Deductions'!T11 -> 12.81578852 | U32: ='Tax Cap'!U28 / 'Tax Deductions'!U11 -> 13.48084443 | V32: ='Tax Cap'!V28 / 'Tax Deductions'!V11 -> 14.08531852 | W32: ='Tax Cap'!W28 / 'Tax Deductions'!W11 -> 14.63543775 | X32: ='Tax Cap'!X28 / 'Tax Deductions'!X11 -> 15.13676482 | Y32: ='Tax Cap'!Y28 / 'Tax Deductions'!Y11 -> 15.05434749 | Z32: ='Tax Cap'!Z28 / 'Tax Deductions'!Z11 -> 15.53097451 | AA32: ='Tax Cap'!AA28 / 'Tax Deductions'!AA11 -> 15.96585122 | AB32: ='Tax Cap'!AB28 / 'Tax Deductions'!AB11 -> 16.36321312 | AC32: ='Tax Cap'!AC28 / 'Tax Deductions'!AC11 -> 16.7268457 | AD32: ='Tax Cap'!AD28 / 'Tax Deductions'!AD11 -> 17.0601329 | AE32: ='Tax Cap'!AE28 / 'Tax Deductions'!AE11 -> 17.36610038 | AF32: ='Tax Cap'!AF28 / 'Tax Deductions'!AF11 -> 17.64745408 | AG32: ='Tax Cap'!AG28 / 'Tax Deductions'!AG11 -> 17.90661457 | AH32: ='Tax Cap'!AH28 / 'Tax Deductions'!AH11 -> 18.14574782 | AI32: ='Tax Cap'!AI28 / 'Tax Deductions'!AI11 -> 6.535403467
E33: Discount factor to start of operational period (cap) | G33: ='Allowances Cap'!G24 -> scalar | K33: ='Allowances Cap'!K24 -> 0.9239582371 | L33: ='Allowances Cap'!L24 -> 0.8536988239 | M33: ='Allowances Cap'!M24 -> 0.7887820603 | N33: ='Allowances Cap'!N24 -> 0.7288016819 | O33: ='Allowances Cap'!O24 -> 0.6733823172 | P33: ='Allowances Cap'!P24 -> 0.6221771387 | Q33: ='Allowances Cap'!Q24 -> 0.5748656922 | R33: ='Allowances Cap'!R24 -> 0.5311518915 | S33: ='Allowances Cap'!S24 -> 0.4907621653 | T33: ='Allowances Cap'!T24 -> 0.4534437451 | U33: ='Allowances Cap'!U24 -> 0.4189630833 | V33: ='Allowances Cap'!V24 -> 0.3871043919 | W33: ='Allowances Cap'!W24 -> 0.3576682915 | X33: ='Allowances Cap'!X24 -> 0.3304705641 | Y33: ='Allowances Cap'!Y24 -> 0.3053409998 | Z33: ='Allowances Cap'!Z24 -> 0.2821223319 | AA33: ='Allowances Cap'!AA24 -> 0.2606692524 | AB33: ='Allowances Cap'!AB24 -> 0.2408475029 | AC33: ='Allowances Cap'!AC24 -> 0.2225330342 | AD33: ='Allowances Cap'!AD24 -> 0.20561123 | AE33: ='Allowances Cap'!AE24 -> 0.1899761896 | AF33: ='Allowances Cap'!AF24 -> 0.1755300652 | AG33: ='Allowances Cap'!AG24 -> 0.1621824496 | AH33: ='Allowances Cap'!AH24 -> 0.1498498102 | AI33: ='Allowances Cap'!AI24 -> 0.1384549665
E35: Discounted unprofiled tax allowance (cap) | G35: =Inputs!$I$11 -> £m 19/20 prices | K35: =K32 * K33 -> 0.1691164486 | L35: 3.64894416 | M35: 4.542985004 | N35: 5.173309113 | O35: 5.593348652 | P35: 5.846707075 | Q35: 5.968910301 | R35: 5.988849125 | S35: 5.929967177 | T35: 5.811239145 | U35: 5.647976149 | V35: 5.452488659 | W35: 5.234632016 | X35: =X32 * X33 -> 5.002255207 | Y35: =Y32 * Y33 -> 4.596709515 | Z35: 4.381634746 | AA35: 4.161806501 | AB35: 3.94103902 | AC35: 3.722275726 | AD35: 3.507754909 | AE35: 3.299145578 | AF35: 3.097658765 | AG35: 2.904138616 | AH35: 2.719136866 | AI35: 0.904859068
E36: NPV of tax allowance (cap) | G36: =Inputs!$I$11 -> £m 19/20 prices | I36: =SUM(K35:AI35) -> 107.2468875
E38: Annuity factor (cap) | G38: ='Allowances Cap'!G31 -> scalar | I38: ='Allowances Cap'!I31 -> 0.09552605702
E40: Annuity of tax allowance (cap) | G40: =Inputs!$I$11 -> £m 19/20 prices | I40: =I36 * I38 -> 10.24487229
B42: End of sheet

Sheet Tax Floor
A1: Tax Floor | H1: Licence
E2: Parameter | G2: Units | H2: Terminology | I2: Constant | K2: Annual values
E3: Project year | K3: Year 1 | L3: Year 2 | M3: Year 3 | N3: Year 4 | O3: Year 5 | P3: Year 6 | Q3: Year 7 | R3: Year 8 | S3: Year 9 | T3: Year 10 | U3: Year 11 | V3: Year 12 | W3: Year 13 | X3: Year 14 | Y3: Year 15 | Z3: Year 16 | AA3: Year 17 | AB3: Year 18 | AC3: Year 19 | AD3: Year 20 | AE3: Year 21 | AF3: Year 22 | AG3: Year 23 | AH3: Year 24 | AI3: Year 25
B5: Unprofiled tax allowance (floor)
C7: Profits attributable to corporation tax
E9: Annuitised allowances except tax (floor) | G9: £m nominal prices | K9: ='Allowances Floor'!K34* 'Tax Deductions'!K$11 -> 62.11977083 | L9: ='Allowances Floor'!L34* 'Tax Deductions'!L$11 -> 64.09517954 | M9: ='Allowances Floor'!M34* 'Tax Deductions'!M$11 -> 66.13340625 | N9: ='Allowances Floor'!N34* 'Tax Deductions'!N$11 -> 68.23644857 | O9: ='Allowances Floor'!O34* 'Tax Deductions'!O$11 -> 70.40636764 | P9: ='Allowances Floor'!P34* 'Tax Deductions'!P$11 -> 72.64529013 | Q9: ='Allowances Floor'!Q34* 'Tax Deductions'!Q$11 -> 74.95541035 | R9: ='Allowances Floor'!R34* 'Tax Deductions'!R$11 -> 77.3389924 | S9: ='Allowances Floor'!S34* 'Tax Deductions'!S$11 -> 79.79837236 | T9: ='Allowances Floor'!T34* 'Tax Deductions'!T$11 -> 82.3359606 | U9: ='Allowances Floor'!U34* 'Tax Deductions'!U$11 -> 84.95424415 | V9: ='Allowances Floor'!V34* 'Tax Deductions'!V$11 -> 87.65578911 | W9: ='Allowances Floor'!W34* 'Tax Deductions'!W$11 -> 90.44324321 | X9: ='Allowances Floor'!X34* 'Tax Deductions'!X$11 -> 93.31933834 | Y9: ='Allowances Floor'!Y34* 'Tax Deductions'!Y$11 -> 96.2868933 | Z9: ='Allowances Floor'!Z34* 'Tax Deductions'!Z$11 -> 99.34881651 | AA9: ='Allowances Floor'!AA34* 'Tax Deductions'!AA$11 -> 102.5081089 | AB9: ='Allowances Floor'!AB34* 'Tax Deductions'!AB$11 -> 105.7678667 | AC9: ='Allowances Floor'!AC34* 'Tax Deductions'!AC$11 -> 109.1312849 | AD9: ='Allowances Floor'!AD34* 'Tax Deductions'!AD$11 -> 112.6016598 | AE9: ='Allowances Floor'!AE34* 'Tax Deductions'!AE$11 -> 116.1823925 | AF9: ='Allowances Floor'!AF34* 'Tax Deductions'!AF$11 -> 119.8769926 | AG9: ='Allowances Floor'!AG34* 'Tax Deductions'!AG$11 -> 123.689081 | AH9: ='Allowances Floor'!AH34* 'Tax Deductions'!AH$11 -> 127.6223938 | AI9: ='Allowances Floor'!AI34* 'Tax Deductions'!AI$11 -> 131.6807859
E10: Less tax deductions | G10: £m nominal prices | K10: =-'Tax Deductions'!K19 -> -106.1995996 | L10: =-'Tax Deductions'!L19 -> -90.56393768 | M10: =-'Tax Deductions'!M19 -> -86.32228309 | N10: =-'Tax Deductions'!N19 -> -82.44325838 | O10: =-'Tax Deductions'!O19 -> -78.89851106 | P10: =-'Tax Deductions'!P19 -> -75.66197494 | Q10: =-'Tax Deductions'!Q19 -> -72.70968778 | R10: =-'Tax Deductions'!R19 -> -70.01962341 | S10: =-'Tax Deductions'!S19 -> -67.57153739 | T10: =-'Tax Deductions'!T19 -> -65.34682497 | U10: =-'Tax Deductions'!U19 -> -63.32839047 | V10: =-'Tax Deductions'!V19 -> -61.50052709 | W10: =-'Tax Deductions'!W19 -> -59.84880634 | X10: =-'Tax Deductions'!X19 -> -58.3599764 | Y10: =-'Tax Deductions'!Y19 -> -60.79119936 | Z10: =-'Tax Deductions'!Z19 -> -59.29109541 | AA10: =-'Tax Deductions'!AA19 -> -57.94441177 | AB10: =-'Tax Deductions'!AB19 -> -56.73980991 | AC10: =-'Tax Deductions'!AC19 -> -55.6668838 | AD10: =-'Tax Deductions'!AD19 -> -54.71608604 | AE10: =-'Tax Deductions'!AE19 -> -53.87865981 | AF10: =-'Tax Deductions'!AF19 -> -53.14657637 | AG10: =-'Tax Deductions'!AG19 -> -52.51247746 | AH10: =-'Tax Deductions'!AH19 -> -51.96962249 | AI10: =-'Tax Deductions'!AI19 -> -164.471662
E11: Profits attributable to corporation tax | G11: £m nominal prices | K11: =SUM(K9:K10) -> -44.07982873 | L11: =SUM(L9:L10) -> -26.46875814 | M11: -20.18887684 | N11: -14.20680981 | O11: -8.492143419 | P11: -3.016684811 | Q11: 2.245722578 | R11: 7.319368997 | S11: 12.22683498 | T11: 16.98913563 | U11: 21.62585368 | V11: 26.15526202 | W11: 30.59443686 | X11: 34.95936194 | Y11: 35.49569394 | Z11: 40.0577211 | AA11: 44.5636971 | AB11: 49.02805682 | AC11: 53.46440109 | AD11: 57.88557372 | AE11: 62.30373272 | AF11: 66.73041625 | AG11: 71.17660352 | AH11: 75.65277127 | AI11: -32.79087608
C13: Tax losses
E15: Taxable losses brought forward | G15: £m nominal prices | K15: =J18 -> 0 | L15: =K18 -> -44.07982873 | M15: -70.54858687 | N15: -90.7374637 | O15: -104.9442735 | P15: -113.4364169 | Q15: -116.4531017 | R15: -114.2073792 | S15: -106.8880102 | T15: -94.66117519 | U15: -77.67203956 | V15: -56.04618589 | W15: -29.89092386 | X15: 0 | Y15: 0 | Z15: 0 | AA15: 0 | AB15: 0 | AC15: 0 | AD15: 0 | AE15: 0 | AF15: 0 | AG15: 0 | AH15: 0 | AI15: 0
E16: In-year taxable loss | G16: £m nominal prices | K16: =MIN(K11, 0) -> -44.07982873 | L16: -26.46875814 | M16: -20.18887684 | N16: -14.20680981 | O16: -8.492143419 | P16: -3.016684811 | Q16: 0 | R16: 0 | S16: 0 | T16: 0 | U16: 0 | V16: 0 | W16: 0 | X16: 0 | Y16: 0 | Z16: 0 | AA16: 0 | AB16: 0 | AC16: 0 | AD16: 0 | AE16: 0 | AF16: 0 | AG16: 0 | AH16: 0 | AI16: -32.79087608
E17: Profits used to offset losses | G17: £m nominal prices | K17: =IF(K11 >= 0, MIN(K11, -K15), 0) -> 0 | L17: 0 | M17: 0 | N17: 0 | O17: 0 | P17: 0 | Q17: 2.245722578 | R17: 7.319368997 | S17: 12.22683498 | T17: 16.98913563 | U17: 21.62585368 | V17: 26.15526202 | W17: 29.89092386 | X17: 0 | Y17: 0 | Z17: 0 | AA17: 0 | AB17: 0 | AC17: 0 | AD17: 0 | AE17: 0 | AF17: 0 | AG17: 0 | AH17: 0 | AI17: 0
E18: Taxable losses carried forward | G18: £m nominal prices | K18: =SUM(K15:K17) -> -44.07982873 | L18: =SUM(L15:L17) -> -70.54858687 | M18: -90.7374637 | N18: -104.9442735 | O18: -113.4364169 | P18: -116.4531017 | Q18: -114.2073792 | R18: -106.8880102 | S18: -94.66117519 | T18: -77.67203956 | U18: -56.04618589 | V18: -29.89092386 | W18: 0 | X18: 0 | Y18: 0 | Z18: 0 | AA18: 0 | AB18: 0 | AC18: 0 | AD18: 0 | AE18: 0 | AF18: 0 | AG18: 0 | AH18: 0 | AI18: -32.79087608
C20: Tax allowance
E22: Profits attributable to corporation tax (after taxable losses) | G22: £m nominal prices | K22: =MAX(K11 - K17,0) -> 0 | L22: 0 | M22: 0 | N22: 0 | O22: 0 | P22: 0 | Q22: 0 | R22: 0 | S22: 0 | T22: 0 | U22: 0 | V22: 0 | W22: 0.7035130024 | X22: 34.95936194 | Y22: 35.49569394 | Z22: 40.0577211 | AA22: 44.5636971 | AB22: 49.02805682 | AC22: 53.46440109 | AD22: 57.88557372 | AE22: 62.30373272 | AF22: 66.73041625 | AG22: 71.17660352 | AH22: 75.65277127 | AI22: 0
E23: Corporation tax rate | G23: =Inputs!G113 -> % | K23: =Inputs!K113 -> 0.19 | L23: =Inputs!L113 -> 0.19 | M23: =Inputs!M113 -> 0.19 | N23: =Inputs!N113 -> 0.19 | O23: =Inputs!O113 -> 0.19 | P23: =Inputs!P113 -> 0.19 | Q23: =Inputs!Q113 -> 0.19 | R23: =Inputs!R113 -> 0.19 | S23: =Inputs!S113 -> 0.19 | T23: =Inputs!T113 -> 0.19 | U23: =Inputs!U113 -> 0.19 | V23: =Inputs!V113 -> 0.19 | W23: =Inputs!W113 -> 0.19 | X23: =Inputs!X113 -> 0.19 | Y23: =Inputs!Y113 -> 0.19 | Z23: =Inputs!Z113 -> 0.19 | AA23: =Inputs!AA113 -> 0.19 | AB23: =Inputs!AB113 -> 0.19 | AC23: =Inputs!AC113 -> 0.19 | AD23: =Inputs!AD113 -> 0.19 | AE23: =Inputs!AE113 -> 0.19 | AF23: =Inputs!AF113 -> 0.19 | AG23: =Inputs!AG113 -> 0.19 | AH23: =Inputs!AH113 -> 0.19 | AI23: =Inputs!AI113 -> 0.19
E24: Corporation tax charge after losses | G24: £m nominal prices | K24: =K22 * K23 -> 0 | L24: =L22 * L23 -> 0 | M24: 0 | N24: 0 | O24: 0 | P24: 0 | Q24: 0 | R24: 0 | S24: 0 | T24: 0 | U24: 0 | V24: 0 | W24: 0.1336674705 | X24: 6.642278769 | Y24: 6.744181848 | Z24: 7.61096701 | AA24: 8.467102449 | AB24: 9.315330796 | AC24: 10.15823621 | AD24: 10.99825901 | AE24: 11.83770922 | AF24: 12.67877909 | AG24: 13.52355467 | AH24: 14.37402654 | AI24: 0
E26: Grossing-up factor for tax on tax charge after losses | G26: scalar | K26: =1 / (1 - K23) -> 1.234567901 | L26: 1.234567901 | M26: 1.234567901 | N26: 1.234567901 | O26: 1.234567901 | P26: 1.234567901 | Q26: 1.234567901 | R26: 1.234567901 | S26: 1.234567901 | T26: 1.234567901 | U26: 1.234567901 | V26: 1.234567901 | W26: 1.234567901 | X26: 1.234567901 | Y26: 1.234567901 | Z26: 1.234567901 | AA26: 1.234567901 | AB26: 1.234567901 | AC26: 1.234567901 | AD26: 1.234567901 | AE26: 1.234567901 | AF26: 1.234567901 | AG26: 1.234567901 | AH26: 1.234567901 | AI26: 1.234567901
E28: Unprofiled tax allowance (floor) | G28: £m nominal prices | K28: =K24 * K26 -> 0 | L28: 0 | M28: 0 | N28: 0 | O28: 0 | P28: 0 | Q28: 0 | R28: 0 | S28: 0 | T28: 0 | U28: 0 | V28: 0 | W28: 0.1650215685 | X28: 8.200344159 | Y28: 8.32615043 | Z28: 9.396255567 | AA28: 10.4532129 | AB28: 11.50040839 | AC28: 12.54103236 | AD28: 13.57809754 | AE28: 14.61445582 | AF28: 15.65281369 | AG28: 16.69574651 | AH28: 17.74571178 | AI28: 0
B30: Profiled tax allowance (floor)
E32: Unprofiled tax allowance (floor) | G32: =Inputs!$I$11 -> £m 19/20 prices | K32: ='Tax Floor'!K28 / 'Tax Deductions'!K$11 -> 0 | L32: ='Tax Floor'!L28 / 'Tax Deductions'!L$11 -> 0 | M32: ='Tax Floor'!M28 / 'Tax Deductions'!M$11 -> 0 | N32: ='Tax Floor'!N28 / 'Tax Deductions'!N$11 -> 0 | O32: ='Tax Floor'!O28 / 'Tax Deductions'!O$11 -> 0 | P32: ='Tax Floor'!P28 / 'Tax Deductions'!P$11 -> 0 | Q32: ='Tax Floor'!Q28 / 'Tax Deductions'!Q$11 -> 0 | R32: ='Tax Floor'!R28 / 'Tax Deductions'!R$11 -> 0 | S32: ='Tax Floor'!S28 / 'Tax Deductions'!S$11 -> 0 | T32: ='Tax Floor'!T28 / 'Tax Deductions'!T$11 -> 0 | U32: ='Tax Floor'!U28 / 'Tax Deductions'!U$11 -> 0 | V32: ='Tax Floor'!V28 / 'Tax Deductions'!V$11 -> 0 | W32: ='Tax Floor'!W28 / 'Tax Deductions'!W$11 -> 0.1072828108 | X32: ='Tax Floor'!X28 / 'Tax Deductions'!X$11 -> 5.166851608 | Y32: ='Tax Floor'!Y28 / 'Tax Deductions'!Y$11 -> 5.084434287 | Z32: ='Tax Floor'!Z28 / 'Tax Deductions'!Z$11 -> 5.561061304 | AA32: ='Tax Floor'!AA28 / 'Tax Deductions'!AA$11 -> 5.995938012 | AB32: ='Tax Floor'!AB28 / 'Tax Deductions'!AB$11 -> 6.393299913 | AC32: ='Tax Floor'!AC28 / 'Tax Deductions'!AC$11 -> 6.75693249 | AD32: ='Tax Floor'!AD28 / 'Tax Deductions'!AD$11 -> 7.090219692 | AE32: ='Tax Floor'!AE28 / 'Tax Deductions'!AE$11 -> 7.396187175 | AF32: ='Tax Floor'!AF28 / 'Tax Deductions'!AF$11 -> 7.677540868 | AG32: ='Tax Floor'!AG28 / 'Tax Deductions'!AG$11 -> 7.936701367 | AH32: ='Tax Floor'!AH28 / 'Tax Deductions'!AH$11 -> 8.175834608 | AI32: ='Tax Floor'!AI28 / 'Tax Deductions'!AI$11 -> 0
E33: Discount factor to start of operational period (floor) | G33: ='Allowances Floor'!G24 -> scalar | K33: ='Allowances Floor'!K24 -> 0.9983028851 | L33: ='Allowances Floor'!L24 -> 0.9966086504 | M33: ='Allowances Floor'!M24 -> 0.994917291 | N33: ='Allowances Floor'!N24 -> 0.993228802 | O33: ='Allowances Floor'!O24 -> 0.9915431786 | P33: ='Allowances Floor'!P24 -> 0.9898604159 | Q33: ='Allowances Floor'!Q24 -> 0.9881805091 | R33: ='Allowances Floor'!R24 -> 0.9865034532 | S33: ='Allowances Floor'!S24 -> 0.9848292435 | T33: ='Allowances Floor'!T24 -> 0.9831578751 | U33: ='Allowances Floor'!U24 -> 0.9814893432 | V33: ='Allowances Floor'!V24 -> 0.979823643 | W33: ='Allowances Floor'!W24 -> 0.9781607697 | X33: ='Allowances Floor'!X24 -> 0.9765007185 | Y33: ='Allowances Floor'!Y24 -> 0.9748434846 | Z33: ='Allowances Floor'!Z24 -> 0.9731890631 | AA33: ='Allowances Floor'!AA24 -> 0.9715374495 | AB33: ='Allowances Floor'!AB24 -> 0.9698886388 | AC33: ='Allowances Floor'!AC24 -> 0.9682426263 | AD33: ='Allowances Floor'!AD24 -> 0.9665994073 | AE33: ='Allowances Floor'!AE24 -> 0.9649589771 | AF33: ='Allowances Floor'!AF24 -> 0.9633213308 | AG33: ='Allowances Floor'!AG24 -> 0.9616864638 | AH33: ='Allowances Floor'!AH24 -> 0.9600543714 | AI33: ='Allowances Floor'!AI24 -> 0.9584250488
E35: Discounted unprofiled tax allowance (floor) | G35: =Inputs!$I$11 -> £m 19/20 prices | K35: =K32*K33 -> 0 | L35: =L32*L33 -> 0 | M35: 0 | N35: 0 | O35: 0 | P35: 0 | Q35: 0 | R35: 0 | S35: 0 | T35: 0 | U35: 0 | V35: 0 | W35: 0.1049398368 | X35: 5.045434308 | Y35: 4.956527637 | Z35: 5.411964041 | AA35: 5.825278323 | AB35: 6.20078895 | AC35: 6.54235006 | AD35: 6.853402152 | AE35: 7.13701721 | AF35: 7.395938886 | AG35: 7.632618272 | AH35: 7.849245755 | AI35: 0
E36: NPV of tax allowance (floor) | G36: =Inputs!$I$11 -> £m 19/20 prices | I36: =SUM(K35:AI35) -> 70.95550543
E38: Annuity factor (floor) | G38: ='Allowances Floor'!G31 -> scalar | I38: ='Allowances Floor'!I31 -> 0.04089000592
E40: Annuity of tax allowance (floor) | G40: =Inputs!$I$11 -> £m 19/20 prices | I40: =I36 * I38 -> 2.901371037
B42: End of sheet

Sheet Cap Floor Levels
A1: Cap Floor Levels | H1: Licence
E2: Parameter | G2: Units | H2: Terminology | I2: Constant
B4: Cap and Floor levels and adjustments
C6: Cap and Floor levels at FPA (Preliminary) / PCR (Final) and PCA adjustments at PCR
C7: Relevant stage: FPA for Preliminary levels; PCR for final levels
E8: Cap at relevant stage excluding tax (calculated through the model) | G8: =Inputs!$I$11 -> £m 19/20 prices | I8: ='Allowances Cap'!$I33 -> 101.3017212
E9: Floor at relevant stage excluding tax (calculated through the model) | G9: =Inputs!$I$11 -> £m 19/20 prices | I9: ='Allowances Floor'!$I33 -> 58.798407
E11: Cap at relevant stage - tax element (calculated through the model) | G11: =Inputs!$I$11 -> £m 19/20 prices | I11: =IF(Inputs!$I$123="No",'Tax Cap'!I40,0) -> 10.24487229
E12: Floor at relevant stage - tax element (calculated through the model) | G12: =Inputs!$I$11 -> £m 19/20 prices | I12: =IF(Inputs!$I$123="No",'Tax Floor'!I40,0) -> 2.901371037
E14: Cap at relevant stage - tax element (previously calculated through the model and fixed) | G14: =Inputs!$I$11 -> £m 19/20 prices
E15: Floor at relevant stage - tax element (previously calculated through the model and fixed) | G15: =Inputs!$I$11 -> £m 19/20 prices
E17: Cap at relevant stage including tax (calculated through the model) | G17: =Inputs!$I$11 -> £m 19/20 prices | I17: =I8+IF(Inputs!$I$123="Yes",I14,I11) -> 111.5465935
E18: Floor at relevant stage including tax (calculated through the model) | G18: =Inputs!$I$11 -> £m 19/20 prices | I18: =I9+IF(Inputs!$I$123="Yes",I15,I12) -> 61.69977804
E20: Preliminary Cap including tax (hardcoded at FPA) | G20: =Inputs!$I$11 -> £m 19/20 prices | H20: PCL
E21: Preliminary Floor including tax (hardcoded at FPA) | G21: =Inputs!$I$11 -> £m 19/20 prices | H21: PFL
E23: Cap PCA adjustment (at PCR) | G23: =Inputs!$I$11 -> £m 19/20 prices | H23: PCAC | I23: =I17-I20 -> 111.5465935
E24: Floor PCA adjustment (at PCR) | G24: =Inputs!$I$11 -> £m 19/20 prices | H24: PCAF | I24: =I18-I21 -> 61.69977804
B26: End of sheet
